Workbook

Sheet Single
C10: Construction Data:
C11: Model Number: | D11: =mki!$D$2 -> MK I | E11: =mkii!$D$2 -> Mk II | F11: =mkiii!$D$2 -> Mk III | H11: NOTES:
C12: Date Entering Service | D12: =mki!$I$4 -> 0 | E12: =mkii!$I$4 -> 2271 | F12: =mkiii!$I$4 -> 2293 | H12: Large text box: inster text here
C13: Number Constructed
C14: HULL DATA
C15: Superstructure: | D15: =mki!$B$44 -> 2 | E15: =mkii!$B$44 -> 2 | F15: =mkiii!$B$44 -> 2
C16: Damage Chart: | D16: C-Single | E16: C-Single | F16: C-Single
C17: Dimensions:
C18: Length: | D18: 87.75m
C19: Width: | D19: 57.0 m
C20: Height: | D20: 21.05m
C21: Weight: | D21: =mki!$I$44 -> 3494 mt | E21: =mkii!$I$44 -> 3494 mt | F21: =mkiii!$I$44 -> 3494 mt
C22: Cargo Specs
C23: Total SCU: | D23: =mki!$E$46&" SCU" -> 0 SCU | E23: =mkii!$E$46&" SCU" -> 0 SCU | F23: =mkiii!$E$46&" SCU" -> 0 SCU
C24: Cargo Capacity: | D24: =mki!$E$44&" mt" -> 0 mt | E24: =mkii!$E$44&" mt" -> 0 mt | F24: =mkiii!$E$44&" mt" -> 0 mt
C25: Landing Capacity: | D25: None | E25: None | F25: None
C26: EQUIPMENT DATA
C27: Computer Type: | D27: =mki!$C$8 -> L-12 | E27: =mkii!$C$8 -> L-12 | F27: =mkiii!$C$8 -> L-12
C28: Cloaking Device/ECM: | D28: =mki!$E$48 -> - | E28: =mkii!$E$48 -> - | F28: =mkiii!$E$48 -> -
C29: Power to Engage: | D29: =mki!$E$49 -> - | E29: =mkii!$E$49 -> - | F29: =mkiii!$E$49 -> -
C30: Transporters-
C31: 6-person: | D31: 2 | E31: =mkii!$C$54 ->  | F31: =mkiii!$C$54 -> 
C32: 20-person Combat: | D32: 0 | E32: =mkii!$C$55 -> 0 | F32: =mkiii!$C$55 -> 0
C33: 22-person Emergecy: | D33: 2 | E33: =mkii!$C$56 ->  | F33: =mkiii!$C$56 -> 
C34: cargo: | D34: =mki!$F$54 -> 0 | E34: =mkii!$F$54 -> 0 | F34: =mkiii!$F$54 -> 0
C35: OTHER DATA
C36: Crew: | D36: =mki!$B$46+mki!$B$47 -> 1 | E36: =mkii!$B$46+mkii!$B$47 ->  | F36: =mkiii!$B$46+mkiii!$B$47 -> 
C37: Passengers: | D37: 0 | E37: =mkii!$B$49 -> 0 | F37: =mkiii!$B$49 -> 0
C38: Troops: | D38: 0 | E38: =mkii!$B$48 -> 0 | F38: =mkiii!$B$48 -> 0
C39: Shuttlecraft- | D39: 1 | E39: 1 | F39: 1
C40: ENGINE AND POWER -
C41: Total Power Available: | D41: =(mki!$F$10*mki!$B$11)+(mki!$B$16*mki!$B$17) -> 1 | E41: =(mkii!$F$10*mkii!$B$11)+(mkii!$B$16*mkii!$B$17) -> 1 | F41: =(mkiii!$F$10*mkiii!$B$11)+(mkiii!$B$16*mkiii!$B$17) -> 1
C42: Movement Point Ratio: | D42: =mki!$D$11 -> 1/1 | E42: =mkii!$D$11 -> 4/1 | F42: =mkiii!$D$11 -> 1/4
C43: Warp Engine Type: | D43: =mki!$A$10 -> None | E43: =mkii!$A$10 -> None | F43: =mkiii!$A$10 -> None
C44: Number: | D44: =mki!$B$11 -> 1 | E44: =mkii!$B$11 -> 1 | F44: =mkiii!$B$11 -> 1
C45: Power Units: | D45: =mki!$F$11 -> 0 | E45: =mkii!$F$11 -> 0 | F45: =mkiii!$F$11 -> 0
C46: Stress Chart: | D46: =mki!$B$13 -> -/- | E46: =mkii!$B$13 -> -/- | F46: =mkiii!$B$13 -> -/-
C47: Optimum Speed: | D47: =mki!$F$12 -> 0 | E47: =mkii!$F$12 -> 7 | F47: =mkiii!$F$12 -> 7.5
C48: Max Safe Cruising: | D48: =mki!$F$13 -> 0 | E48: =mkii!$F$13 -> 9.5 | F48: =mkiii!$F$13 -> 12
C49: Impulse Engine Type: | D49: =mki!$C$17 -> FIA-1 | E49: =mkii!$C$17 -> FIA-1 | F49: =mkiii!$C$17 -> FIA-1
C50: Power Units: | D50: =mki!$D$17 -> 1 | E50: =mkii!$D$17 -> 1 | F50: =mkiii!$D$17 -> 1
C51: WEAPONS/DEFENSE
C52: Beam Weapon: | D52: =mki!$A$25 -> FH-1 | E52: =mkii!$A$25 -> None | F52: =mkiii!$A$25 -> None
C53: Number: | D53: =mki!$D$24 -> 0 | E53: =mkii!$D$24 -> 0 | F53: =mkiii!$D$24 -> 0
C54: Firing Arcs: | D54: =mki!$D$27 -> 0 | E54: =mkii!$D$27 -> 0 | F54: =mkiii!$D$27 -> 0
C55: Firing Chart: | D55: =mki!$B$25 -> F | E55: =mkii!$B$25 -> - | F55: =mkiii!$B$25 -> -
C56: Maximum Power: | D56: =mki!$B$26 -> 2 | E56: =mkii!$B$26 -> 0 | F56: =mkiii!$B$26 -> 0
C57: Damage Modifiers
C58: +3 | D58: =mki!$J$25 -> (-) | E58: =mkii!$J$25 -> (-) | F58: =mkiii!$J$25 -> (-)
C59: +2 | D59: =mki!$J$26 -> (-) | E59: =mkii!$J$26 -> (-) | F59: =mkiii!$J$26 -> (-)
C60: +1 | D60: =mki!$J$27 -> (-) | E60: =mkii!$J$27 -> (-) | F60: =mkiii!$J$27 -> (-)
C61: Torpedo Type: | D61: =mki!$A$35 -> None | E61: =mkii!$A$35 -> None | F61: =mkiii!$A$35 -> None
C62: Firing Arcs: | D62: =mki!$D$38 -> 0 | E62: =mkii!$D$38 -> 4F,2A | F62: =mkiii!$D$38 -> 0
C63: Firing Chart: | D63: =mki!$B$36 -> 0 | E63: =mkii!$B$36 -> 0 | F63: =mkiii!$B$36 -> 0
C64: Power To Arm: | D64: =mki!$B$37 -> 0 | E64: =mkii!$B$37 -> 0 | F64: =mkiii!$B$37 -> 0
C65: Damage: | D65: =mki!$D$37 -> 0 | E65: =mkii!$D$37 -> 0 | F65: =mkiii!$D$37 -> 0
C66: Shields-
C67: Shield Type: | D67: =mki!$A$20 -> ASA | E67: =mkii!$A$20 -> ASA | F67: =mkiii!$A$20 -> ASA
C68: Shield Point Ratio: | D68: =mki!$D$20 -> 1/1 | E68: =mkii!$D$20 -> 1/1 | F68: =mkiii!$D$20 -> 1/1
C69: Maximum Shield: | D69: =mki!$D$21 -> 8 | E69: =mkii!$D$21 -> 8 | F69: =mkiii!$D$21 -> 8
C70: Combat Efficiency
C71: D- | D71: =mki!$G$42 ->  | E71: =mkii!$G$42 ->  | F71: =mkiii!$G$42 -> 
C72: WDF- | D72: =mki!$G$41 -> 0 | E72: =mkii!$G$41 -> 0 | F72: =mkiii!$G$41 -> 0
L75: Created by STSTCS - Version 3.0

Sheet Sheet1 (hidden)

Sheet Dual
C10: Construction Data:
C11: Model Number: | D11: =mki!$D$2 -> MK I | E11: =mkii!$D$2 -> Mk II | F11: =mkiii!$D$2 -> Mk III | H11: Shields-
C12: Date Entering Service | D12: 2259 | E12: 2271 | F12: 2293 | H12: Shield Type: | I12: =mki!$A$20 -> ASA | J12: =mkii!$A$20 -> ASA | K12: =mkiii!$A$20 -> ASA
C13: Number Constructed | D13: 6 | E13: 14 | F13: 22 | H13: Shield Point Ratio: | I13: =mki!$D$20 -> 1/1 | J13: =mkii!$D$20 -> 1/1 | K13: =mkiii!$D$20 -> 1/1
C14: HULL DATA | H14: Maximum Shield: | I14: =mki!$D$21 -> 8 | J14: =mkii!$D$21 -> 8 | K14: =mkiii!$D$21 -> 8
C15: Superstructure: | D15: =mki!$B$44 -> 2 | E15: =mkii!$B$44 -> 2 | F15: =mkiii!$B$44 -> 2 | H15: Combat Efficiency
C16: Damage Chart: | D16: C-Single | E16: C-Single | F16: C-Single | H16: D- | I16: =mki!$G$42 ->  | J16: =mkii!$G$42 ->  | K16: =mkiii!$G$42 -> 
C17: Dimensions: | H17: WDF- | I17: =mki!$G$41 -> 0 | J17: =mkii!$G$41 -> 0 | K17: =mkiii!$G$41 -> 0
C18: Length: | D18: 313.1 meters | E18: 315.1 meters | F18: 319.0 meters
C19: Width: | D19: 139.6 meters | E19: 141.6 meters | F19: 145.4 meters
C20: Height: | D20: 106.9 meters | E20: 108.8 meters | F20: 110.8 meters | H20: NOTES:
C21: Weight: | D21: =mki!$I$44 -> 3494 mt | E21: =mkii!$I$44 -> 3494 mt | F21: =mkiii!$I$44 -> 3494 mt | H21: Lare text box: Insert text here.
C22: Cargo Specs
C23: Total SCU: | D23: =mki!$E$46&" SCU" -> 0 SCU | E23: =mkii!$E$46&" SCU" -> 0 SCU | F23: =mkiii!$E$46&" SCU" -> 0 SCU
C24: Cargo Capacity: | D24: =mki!$E$44&" mt" -> 0 mt | E24: =mkii!$E$44&" mt" -> 0 mt | F24: =mkiii!$E$44&" mt" -> 0 mt
C25: Landing Capacity: | D25: None | E25: None | F25: None
C26: EQUIPMENT DATA
C27: Computer Type: | D27: =mki!$C$8 -> L-12 | E27: =mkii!$C$8 -> L-12 | F27: =mkiii!$C$8 -> L-12
C28: Cloaking Device/ECM: | D28: =mki!$E$48 -> - | E28: =mkii!$E$48 -> - | F28: =mkiii!$E$48 -> -
C29: Power to Engage: | D29: =mki!$E$49 -> - | E29: =mkii!$E$49 -> - | F29: =mkiii!$E$49 -> -
C30: Transporters-
C31: 6-person: | D31: 3 | E31: 4 | F31: 4
C32: 20-person Combat: | D32: 1 | E32: 6 | F32: 6
C33: 22-person Emergecy: | D33: 2 | E33: 1 | F33: 1
C34: cargo: | D34: 4 | E34: =mkii!$F$54 -> 0 | F34: =mkiii!$F$54 -> 0
C35: OTHER DATA
C36: Crew: | D36: =mki!$B$46+mki!$B$47 -> 1 | E36: =mkii!$B$46+mkii!$B$47 ->  | F36: =mkiii!$B$46+mkiii!$B$47 -> 
C37: Passengers: | D37: =mki!$B$49 -> 0 | E37: =mkii!$B$49 -> 0 | F37: =mkiii!$B$49 -> 0
C38: Troops: | D38: =mki!$B$48 -> 0 | E38: =mkii!$B$48 -> 0 | F38: =mkiii!$B$48 -> 0
C39: Shuttlecraft- | D39: 12 | E39: 16 | F39: 20
C40: ENGINE AND POWER -
C41: Total Power Available: | D41: =(mki!$F$10*mki!$B$11)+(mki!$B$16*mki!$B$17) -> 1 | E41: =(mkii!$F$10*mkii!$B$11)+(mkii!$B$16*mkii!$B$17) -> 1 | F41: =(mkiii!$F$10*mkiii!$B$11)+(mkiii!$B$16*mkiii!$B$17) -> 1
C42: Movement Point Ratio: | D42: =mki!$D$11 -> 1/1 | E42: =mkii!$D$11 -> 4/1 | F42: =mkiii!$D$11 -> 1/4
C43: Warp Engine Type: | D43: =mki!$A$10 -> None | E43: =mkii!$A$10 -> None | F43: =mkiii!$A$10 -> None
C44: Number: | D44: =mki!$B$11 -> 1 | E44: =mkii!$B$11 -> 1 | F44: =mkiii!$B$11 -> 1
C45: Power Units: | D45: =mki!$F$11 -> 0 | E45: =mkii!$F$11 -> 0 | F45: =mkiii!$F$11 -> 0
C46: Stress Chart: | D46: =mki!$D$12 -> -/- | E46: =mkii!$D$12 -> -/- | F46: =mkiii!$D$12 -> -/-
C47: Optimum Speed: | D47: =mki!$F$12 -> 0 | E47: =mkii!$F$12 -> 7 | F47: =mkiii!$F$12 -> 7.5
C48: Max Safe Cruising: | D48: =mki!$F$13 -> 0 | E48: =mkii!$F$13 -> 9.5 | F48: =mkiii!$F$13 -> 12
C49: Impulse Engine Type: | D49: =mki!$C$17 -> FIA-1 | E49: =mkii!$C$17 -> FIA-1 | F49: =mkiii!$C$17 -> FIA-1
C50: Power Units: | D50: =mki!$D$17 -> 1 | E50: =mkii!$D$17 -> 1 | F50: =mkiii!$D$17 -> 1
C51: WEAPONS/DEFENSE
C52: Beam Weapon: | D52: =mki!$A$25 -> FH-1 | E52: =mkii!$A$25 -> None | F52: =mkiii!$A$25 -> None
C53: Firing Arcs: | D53: =mki!$D$27 -> 0 | E53: =mkii!$D$27 -> 0 | F53: =mkiii!$D$27 -> 0
C54: Firing Chart: | D54: =mki!$B$25 -> F | E54: =mkii!$B$25 -> - | F54: =mkiii!$B$25 -> -
C55: Maximum Power: | D55: =mki!$B$26 -> 2 | E55: =mkii!$B$26 -> 0 | F55: =mkiii!$B$26 -> 0
C56: Damage Modifiers
C57: +3 | D57: =mki!$J$25 -> (-) | E57: =mkii!$J$25 -> (-) | F57: =mkiii!$J$25 -> (-)
C58: +2 | D58: =mki!$J$26 -> (-) | E58: =mkii!$J$26 -> (-) | F58: =mkiii!$J$26 -> (-)
C59: +1 | D59: =mki!$J$27 -> (-) | E59: =mkii!$J$27 -> (-) | F59: =mkiii!$J$27 -> (-)
C60: Beam Weapon: | D60: =mki!$A$30 -> None | E60: =mkii!$A$30 -> None | F60: =mkiii!$A$30 -> None
C61: Firing Arcs: | D61: =mki!$D$32 -> 0 | E61: =mkii!$D$32 -> 0 | F61: =mkiii!$D$32 -> 0
C62: Firing Chart: | D62: =mki!$B$30 -> - | E62: =mkii!$B$30 -> - | F62: =mkiii!$B$30 -> -
C63: Maximum Power: | D63: =mki!$B$31 -> 0 | E63: =mkii!$B$31 -> 0 | F63: =mkiii!$B$31 -> 0
C64: Damage Modifiers
C65: +3 | D65: =mki!$J$30 -> (-) | E65: =mkii!$J$30 -> (-) | F65: =mkiii!$J$30 -> (-)
C66: +2 | D66: =mki!$J$31 -> (-) | E66: =mkii!$J$31 -> (-) | F66: =mkiii!$J$31 -> (-)
C67: +1 | D67: =mki!$J$32 -> (-) | E67: =mkii!$J$32 -> (-) | F67: =mkiii!$J$32 -> (-)
C68: Torpedo Type: | D68: =mki!$A$35 -> None | E68: =mkii!$A$35 -> None | F68: =mkiii!$A$35 -> None
C69: Firing Arcs: | D69: =mki!$D$38 -> 0 | E69: =mkii!$D$38 -> 4F,2A | F69: =mkiii!$D$38 -> 0
C70: Firing Chart: | D70: =mki!$B$36 -> 0 | E70: =mkii!$B$36 -> 0 | F70: =mkiii!$B$36 -> 0
C71: Power To Arm: | D71: =mki!$D$36 -> 0 | E71: =mkii!$D$36 -> 6 | F71: =mkiii!$D$36 -> 0
C72: Damage: | D72: =mki!$D$37 -> 0 | E72: =mkii!$D$37 -> 0 | F72: =mkiii!$D$37 -> 0
M75: Created by STSTCS - Version 3.0

Sheet Larger
C32: Construction Data: | G32: WEAPONS/DEFENSE
C33: Model Number: | D33: =mki!$D$2 -> MK I | E33: =mkii!$D$2 -> Mk II | F33: =mkiii!$D$2 -> Mk III | G33: Beam Weapon: | H33: =mki!$A$25 -> FH-1 | I33: =mkii!$A$25 -> None | J33: =mkiii!$A$25 -> None
C34: Date Entering Service | D34: =mki!$I$4 -> 0 | E34: =mkii!$I$4 -> 2271 | F34: =mkiii!$I$4 -> 2293 | G34: Firing Arcs: | H34: =mki!$D$27 -> 0 | I34: =mkii!$D$27 -> 0 | J34: =mkiii!$D$27 -> 0
C35: Number Constructed | G35: Firing Chart: | H35: =mki!$B$25 -> F | I35: =mkii!$B$25 -> - | J35: =mkiii!$B$25 -> -
C36: HULL DATA | G36: Maximum Power: | H36: =mki!$B$26 -> 2 | I36: =mkii!$B$26 -> 0 | J36: =mkiii!$B$26 -> 0
C37: Superstructure: | D37: =mki!$B$44 -> 2 | E37: =mkii!$B$44 -> 2 | F37: =mkiii!$B$44 -> 2 | G37: Damage Modifiers
C38: Damage Chart: | D38: C-Single | E38: C-Single | F38: C-Single | G38: +3 | H38: =mki!$J$25 -> (-) | I38: =mkii!$J$25 -> (-) | J38: =mkiii!$J$25 -> (-)
C39: Dimensions: | G39: +2 | H39: =mki!$J$26 -> (-) | I39: =mkii!$J$26 -> (-) | J39: =mkiii!$J$26 -> (-)
C40: Length: | D40: 313.1 meters | E40: 315.1 meters | F40: 315.0 meters | G40: +1 | H40: =mki!$J$27 -> (-) | I40: =mkii!$J$27 -> (-) | J40: =mkiii!$J$27 -> (-)
C41: Width: | D41: 139.6 meters | E41: 141.6 meters | F41: 145.4 meters | G41: Beam Weapon: | H41: =mki!$A$30 -> None | I41: =mkii!$A$30 -> None | J41: =mkiii!$A$30 -> None
C42: Height: | D42: 106.9 meters | E42: 108.8 meters | F42: 110.8 meters | G42: Firing Arcs: | H42: =mki!$D$32 -> 0 | I42: =mkii!$D$32 -> 0 | J42: =mkiii!$D$32 -> 0
C43: Weight: | D43: =mki!$I$44 -> 3494 mt | E43: =mkii!$I$44 -> 3494 mt | F43: =mkiii!$I$44 -> 3494 mt | G43: Firing Chart: | H43: =mki!$B$30 -> - | I43: =mkii!$B$30 -> - | J43: =mkiii!$B$30 -> -
C44: Cargo Specs | G44: Maximum Power: | H44: =mki!$B$31 -> 0 | I44: =mkii!$B$31 -> 0 | J44: =mkiii!$B$31 -> 0
C45: Total SCU: | D45: =mki!$E$46&" SCU" -> 0 SCU | E45: =mkii!$E$46&" SCU" -> 0 SCU | F45: =mkiii!$E$46&" SCU" -> 0 SCU | G45: Damage Modifiers
C46: Cargo Capacity: | D46: =mki!$E$44&" mt" -> 0 mt | E46: =mkii!$E$44&" mt" -> 0 mt | F46: =mkiii!$E$44&" mt" -> 0 mt | G46: +3 | H46: =mki!$J$30 -> (-) | I46: =mkii!$J$30 -> (-) | J46: =mkiii!$J$30 -> (-)
C47: Landing Capacity: | D47: None | E47: None | F47: None | G47: +2 | H47: =mki!$J$31 -> (-) | I47: =mkii!$J$31 -> (-) | J47: =mkiii!$J$31 -> (-)
C48: EQUIPMENT DATA | G48: +1 | H48: =mki!$J$32 -> (-) | I48: =mkii!$J$32 -> (-) | J48: =mkiii!$J$32 -> (-)
C49: Computer Type: | D49: =mki!$C$8 -> L-12 | E49: =mkii!$C$8 -> L-12 | F49: =mkiii!$C$8 -> L-12 | G49: Torpedo Type: | H49: =mki!$A$35 -> None | I49: =mkii!$A$35 -> None | J49: =mkiii!$A$35 -> None
C50: Cloaking Device/ECM: | D50: =mki!$E$48 -> - | E50: =mkii!$E$48 -> - | F50: =mkiii!$E$48 -> - | G50: Firing Arcs: | H50: =mki!$D$38 -> 0 | I50: =mkii!$D$38 -> 4F,2A | J50: =mkiii!$D$38 -> 0
C51: Power to Engage: | D51: =mki!$E$49 -> - | E51: =mkii!$E$49 -> - | F51: =mkiii!$E$49 -> - | G51: Firing Chart: | H51: =mki!$B$36 -> 0 | I51: =mkii!$B$36 -> 0 | J51: =mkiii!$B$36 -> 0
C52: Transporters- | G52: Power To Arm: | H52: =mki!$B$37 -> 0 | I52: =mkii!$B$37 -> 0 | J52: =mkiii!$B$37 -> 0
C53: 6-person: | D53: 4 | E53: 4 | F53: 4 | G53: Damage: | H53: =mki!$D$37 -> 0 | I53: =mkii!$D$37 -> 0 | J53: =mkiii!$D$37 -> 0
C54: 20-person Combat: | D54: 4 | E54: 4 | F54: 4 | G54: Shields-
C55: 22-person Emergecy: | D55: 0 | E55: 0 | F55: 0 | G55: Shield Type: | H55: =mki!$A$20 -> ASA | I55: =mkii!$A$20 -> ASA | J55: =mkiii!$A$20 -> ASA
C56: cargo: | D56: =mki!$F$54 -> 0 | E56: =mkii!$F$54 -> 0 | F56: =mkiii!$F$54 -> 0 | G56: Shield Point Ratio: | H56: =mki!$D$20 -> 1/1 | I56: =mkii!$D$20 -> 1/1 | J56: =mkiii!$D$20 -> 1/1
C57: OTHER DATA | G57: Maximum Shield: | H57: =mki!$D$21 -> 8 | I57: =mkii!$D$21 -> 8 | J57: =mkiii!$D$21 -> 8
C58: Crew: | D58: =mki!$B$46+mki!$B$47 -> 1 | E58: =mkii!$B$46+mkii!$B$47 ->  | F58: =mkiii!$B$46+mkiii!$B$47 ->  | G58: Combat Efficiency
C59: Passengers: | D59: =mki!$B$49 -> 0 | E59: =mkii!$B$49 -> 0 | F59: =mkiii!$B$49 -> 0 | G59: D- | H59: =mki!$G$42 ->  | I59: =mkii!$G$42 ->  | J59: =mkiii!$G$42 -> 
C60: Troops: | D60: =mki!$B$49 -> 0 | E60: =mkii!$B$49 -> 0 | F60: =mkiii!$B$49 -> 0 | G60: WDF- | H60: =mki!$G$41 -> 0 | I60: =mkii!$G$41 -> 0 | J60: =mkiii!$G$41 -> 0
C61: Shuttlecraft-
C62: ENGINE AND POWER -
C63: Total Power Available: | D63: =(mki!$B$11*mki!$F$10)+(mki!$B$16*mki!$B$17) -> 1 | E63: =(mkii!$B$11*mkii!$F$10)+(mkii!$B$16*mkii!$B$17) -> 1 | F63: =(mkiii!$B$11*mkiii!$F$10)+(mkiii!$B$16*mkiii!$B$17) -> 1
C64: Movement Point Ratio: | D64: =mki!$D$11 -> 1/1 | E64: =mkii!$D$11 -> 4/1 | F64: =mkiii!$D$11 -> 1/4
C65: Warp Engine Type: | D65: =mki!$A$10 -> None | E65: =mkii!$A$10 -> None | F65: =mkiii!$A$10 -> None
C66: Number: | D66: =mki!$B$11 -> 1 | E66: =mkii!$B$11 -> 1 | F66: =mkiii!$B$11 -> 1
C67: Power Units: | D67: =mki!$F$11 -> 0 | E67: =mkii!$F$11 -> 0 | F67: =mkiii!$F$11 -> 0
C68: Stress Chart: | D68: =mki!$D$12 -> -/- | E68: =mkii!$D$12 -> -/- | F68: =mkiii!$D$12 -> -/-
C69: Optimum Speed: | D69: =mki!$F$12 -> 0 | E69: =mkii!$F$12 -> 7 | F69: =mkiii!$F$12 -> 7.5
C70: Max Safe Cruising: | D70: =mki!$F$13 -> 0 | E70: =mkii!$F$13 -> 9.5 | F70: =mkiii!$F$13 -> 12
C71: Impulse Engine Type: | D71: =mki!$C$17 -> FIA-1 | E71: =mkii!$C$17 -> FIA-1 | F71: =mkiii!$C$17 -> FIA-1
C72: Power Units: | D72: =mki!$D$17 -> 1 | E72: =mkii!$D$17 -> 1 | F72: =mkiii!$D$17 -> 1
L75: Created by STSTCS - Version 3.0

Sheet mki
C1: NOTE: Do not fill in any of the grey areas. The computer will figure out all the necessary calculations. | I1: Earliest Possible Launch Date | M1: MRP | O1: SPR | S1: L-12
C2: Model: | D2: MK I | F2: TOTAL SHIP COST | H2: 129.5 | I2: =MAX(I7:I37) -> 2254 | M2: 1/4 | N2: 1 | O2: 2/3 | S2: L-12A
A3: SHIP CLASS: | B3: I | C3: =LOOKUP(B3,shipclass,'Master Data Sheet'!D3:D22) -> 1 | F3: =ROUND((LOOKUP(B3,'Master Data Sheet'!I3:I22,'Master Data Sheet'!L3:L22)*(K7+K11+K16+K20+K26+K31+K37+K40+K43)),1) -> 16.5 | G3: MCr | M3: 1/3 | N3: 2 | O3: 1/1 | S3: L-13
A4: MINIMUM SHIP MASS: | B4: =VLOOKUP(B3,'Master Data Sheet'!$E$3:$G$22,3,0) -> 1 | H4: Actual Launch Date: | I4: 0 | M4: 2/3 | N4: 3 | O4: 1/2 | S4: L-13A
A5: MAXIMUM SHIP MASS: | B5: =VLOOKUP(B3,'Master Data Sheet'!$E$3:$G$22,2,0) -> 5000 | K5: Estimated Cost | M5: 1/2 | N5: 4 | O5: 1/3 | S5: L-14
A6: COMPUTER TYPE: | C6: Number | D6: MASS(MT) | E6: SS Required | G6: Max WDF | I6: Year | M6: 1/1 | O6: 1/4 | S6: L-14A
A7: L-12 | C7: 1 | D7: =VLOOKUP(A7,'Master Data Sheet'!$D$25:$M$364,2,0)*C7 -> 50 | E7: =VLOOKUP(A7,'Master Data Sheet'!$D$25:$M$364,6,0)*C7 -> 0.1 | G7: =VLOOKUP(A7,'Master Data Sheet'!$D$25:$M$364,7,0)*C7 -> 2 | I7: =VLOOKUP(A7,'Master Data Sheet'!$D$25:$M$364,9,0) -> 2236 | K7: =VLOOKUP(A7,'Master Data Sheet'!$D$25:$M$364,10,0)*C7 -> 4 | M7: 2/1 | O7: 1/5 | S7: M-1
C8: =IF(C7>1,(A7&" x"&C7),A7) -> L-12 | M8: 3/1 | O8: 1/6 | S8: M-1A
A9: WARP ENGINE TYPE | M9: 4/1 | S9: M-2
A10: None | C10: SS Req. | D10: =VLOOKUP(A10,'Master Data Sheet'!D367:AD864,(17+B11),0) -> 0 | E10: Power units: | F10: =VLOOKUP(A10,'Master Data Sheet'!D367:AD864,(5+B11),0) -> 0 | H10: WER | I10: Year | K10: Cost | M10: 5/1 | S10: M-2A
A11: Number: | B11: 1 | C11: MRP: | D11: 1/1 | F11: =IF(B11>1,(F10&" ea."),F10) -> 0 | H11: =VLOOKUP(I12,'DATA SHEET 1'!B4:Z1003,mki!H12,0) ->  | I11: =VLOOKUP(A10,'Master Data Sheet'!D367:AD864,27,0) -> 0 | K11: =VLOOKUP(A10,'Master Data Sheet'!D367:AD864,(22+B11),0) -> 0 | M11: 6/1 | S11: M-3
A12: Mass(MT) | B12: =VLOOKUP(A10,'Master Data Sheet'!D367:AD864,(1+B11),0) -> 0 | C12: Stress Chrt: | D12: =VLOOKUP(A10,'Master Data Sheet'!D367:AD864,(13+B11),0) -> -/- | E12: Max Safe Cr: | H12: =VLOOKUP(D11,'Master Data Sheet'!O3:P26,2,0) -> 6 | I12: =F10*B11 -> 0 | M12: 7/1 | S12: M-3A
A13: Damage Chart | B13: =VLOOKUP(A10,'Master Data Sheet'!D367:AD864,(13+B11),0) -> -/- | E13: Emergency Speed: | M13: 8/1 | S13: M-3B
A14: IMPULSE ENGINE TYPE | E14: =IF((H11+H16)>41.5,"MPR Exceedes Standard Limits - Increace MRP to next level","") ->  | M14: 9/1 | S14: M-4
A15: FIA-1 | C15: Mass (mt): | D15: =VLOOKUP(A15,'Master Data Sheet'!D867:N1346,2,0)*B17 -> 150 | H15: IER: | I15: Year | K15: Cost | M15: 10/1 | S15: M-4A
A16: Power units: | B16: =VLOOKUP(A15,'Master Data Sheet'!D867:N1346,3,0) -> 1 | C16: SS Req. | D16: =VLOOKUP(A15,'Master Data Sheet'!D867:N1346,8,0)*B17 -> 0.1 | H16: =VLOOKUP(I17,'DATA SHEET 1'!B4:Z1003,mki!H12,0) -> 1.5 | I16: =VLOOKUP(A15,'Master Data Sheet'!D867:N1346,11,0) -> 2236 | K16: =VLOOKUP(A15,'Master Data Sheet'!D867:N1346,10,0)*B17 -> 1 | M16: 11/1 | S16: M-4B
A17: Number: | B17: 1 | C17: =IF(B17>1,(A15&" x"&B17),A15) -> FIA-1 | D17: =IF(B17>1,(B16&" ea."),B16) -> 1 | H17: =H12 -> 6 | I17: =B16*B17 -> 1 | M17: 12/1 | S17: M-6
M18: 13/1 | S18: M-6A
A19: SHIELD GENERATOR TYPE | H19: DPC | I19: Year | K19: Total Cost | M19: 14/1 | S19: M-7
A20: ASA | C20: SPR: | D20: =VLOOKUP(A20,'Master Data Sheet'!D1348:L1780,5,0) -> 1/1 | E20: SS Req. | F20: =VLOOKUP(A20,'Master Data Sheet'!D1348:L1780,6,0) -> 1.2 | H20: =VLOOKUP(A20,'Master Data Sheet'!D2208:X2631,(1+C3),0) -> 11.5 | I20: =VLOOKUP(A20,'Master Data Sheet'!D1348:L1780,9,0) -> 2228 | K20: =VLOOKUP(A20,'Master Data Sheet'!D1348:L1780,8,0) -> 10 | M20: 15/1 | S20: M-7A
A21: Mass (mt) | B21: =VLOOKUP(A20,'Master Data Sheet'!D1348:L1780,2,0) -> 294 | C21: Max Power: | D21: =VLOOKUP(A20,'Master Data Sheet'!D1782:X2206,(1+C3),0) -> 8 | H21: SER | M21: 16/1 | S21: M-8
H22: =VLOOKUP(A20,'Master Data Sheet'!D1348:L1780,4,0) -> 1 | M22: 17/1 | S22: M-8A
M23: 18/1 | S23: M-9
A24: BEAM TYPE | B24: Firing Chart | C24: Number: | D24: 0 | F24: SS Req (each) | G24: Total Mass | H24: WDF | I24: Year | M24: 19/1 | S24: M-9A
A25: FH-1 | B25: =VLOOKUP(A25,'Master Data Sheet'!D2634:R3164,8,0) -> F | C25: Banks: | D25: 0 | E25: Bank: | F25: =(VLOOKUP(A25,'Master Data Sheet'!D2634:R3164,12,0))*D25 -> 0 | G25: =D24*B27 -> 0 | H25: =VLOOKUP(A25,'Master Data Sheet'!D2634:R3164,9,0) -> 0.5 | I25: =VLOOKUP(A25,'Master Data Sheet'!D2634:R3164,15,0) -> 2254 | J25: =VLOOKUP(A25,'Master Data Sheet'!D2634:R3164,4,0) -> (-) | K25: Total Cost | M25: 20/1 | S25: M-10
A26: Max Power: | B26: =VLOOKUP(A25,'Master Data Sheet'!D2634:R3164,3,0) -> 2 | C26: Single: | E26: Single: | F26: =(VLOOKUP(A25,'Master Data Sheet'!D2634:R3164,10,0))*D26 -> 0 | G26: Total SS | H26: Total WDF | J26: =VLOOKUP(A25,'Master Data Sheet'!D2634:R3164,5,0) -> (-) | K26: =(VLOOKUP(A25,'Master Data Sheet'!D2634:R3164,14,0))*D24 -> 0 | S26: M-11
A27: Mass (each): | B27: =VLOOKUP(A25,'Master Data Sheet'!D2634:R3164,2,0) -> 250 | C27: Firing arcs: | G27: =F25+F26 -> 0 | H27: =H25*D24 -> 0 | J27: =VLOOKUP(A25,'Master Data Sheet'!D2634:R3164,6,0) -> (-) | S27: M-12
S28: M-12a
A29: BEAM TYPE | B29: Firing Chart | C29: Number: | F29: SS Req (each) | G29: Total Mass | H29: WDF | I29: Year | S29: M-13
A30: None | B30: =VLOOKUP(A30,'Master Data Sheet'!D2634:R3164,8,0) -> - | C30: Banks: | E30: Bank: | F30: =(VLOOKUP(A30,'Master Data Sheet'!D2634:R3164,12,0))*D30 -> 0 | G30: =B32*D29 -> 0 | H30: =VLOOKUP(A30,'Master Data Sheet'!D2634:R3164,9,0) -> 0 | I30: =VLOOKUP(A30,'Master Data Sheet'!D2634:R3164,15,0) -> 0 | J30: =VLOOKUP(A30,'Master Data Sheet'!D2634:R3164,4,0) -> (-) | K30: Total Cost | S30: M-14
A31: Max Power: | B31: =VLOOKUP(A30,'Master Data Sheet'!D2634:R3164,3,0) -> 0 | C31: Single: | E31: Single: | F31: =(VLOOKUP(A30,'Master Data Sheet'!D2634:R3164,10,0))*D31 -> 0 | G31: Total SS | H31: Total WDF | J31: =VLOOKUP(A30,'Master Data Sheet'!D2634:R3164,5,0) -> (-) | K31: =(VLOOKUP(A30,'Master Data Sheet'!D2634:R3164,14,0))*D29 -> 0 | S31: M-15
A32: Mass (each): | B32: =VLOOKUP(A30,'Master Data Sheet'!D2634:R3164,2,0) -> 0 | C32: Firing arcs: | G32: =F30+F31 -> 0 | H32: =D29*H30 -> 0 | J32: =VLOOKUP(A30,'Master Data Sheet'!D2634:R3164,6,0) -> (-) | S32: M-16
S33: I-1
A34: TORPEDO TYPE | S34: I-2
A35: None | B35: Firing Chart | S35: I-3
B36: =VLOOKUP(A35,'Master Data Sheet'!D3167:N3446,6,0) -> 0 | C36: Number: | D36: 0 | E36: SS Req (each) | G36: Total Mass | H36: WDF | I36: Year | K36: Total Cost | S36: I-3a
A37: PTA: | B37: =VLOOKUP(A35,'Master Data Sheet'!D3167:N3446,3,0) -> 0 | C37: Damage: | D37: =VLOOKUP(A35,'Master Data Sheet'!D3167:N3446,4,0) -> 0 | E37: =VLOOKUP(A35,'Master Data Sheet'!D3167:N3446,8,0) -> 0 | G37: =B38*D36 -> 0 | H37: =VLOOKUP(A35,'Master Data Sheet'!D3167:N3446,7,0) -> 0 | I37: =VLOOKUP(A35,'Master Data Sheet'!D3167:N3446,11,0) -> 0 | K37: =(VLOOKUP(A35,'Master Data Sheet'!D3167:N3446,10,0))*D36 -> 0 | S37: I-4
A38: Mass (each): | B38: =VLOOKUP(A35,'Master Data Sheet'!D3167:N3446,2,0) -> 0 | C38: Firing arcs: | G38: Total SS | H38: Total WDF | S38: I-4a
G39: =D36*E37 -> 0 | H39: =D36*H37 -> 0 | K39: Base Hull Cost | S39: I-5
K40: =LOOKUP(B3,'Master Data Sheet'!I3:I22,'Master Data Sheet'!J3:J22) -> 0.5 | S40: I-5a
A41: COMPONENT MASS: | B41: =D7+B12+D15+B21+G25+G30+G37 -> 494 | C41: =IF(G44>B5,"VESSEL OVERWEIGHT","") ->  | D41: DURRATION | F41: WDF: | G41: =H27+H32+H39 -> 0 | H41: =IF(G41>G7,"WDF Error","") ->  | S41: I-6
A42: SS REQUIRED: | B42: =ROUNDUP((E7+D10+D16+F20+G27+G32+G39),0) -> 2 | D42: Standard: | E42: 0 | F42: D: | G42: =((H11+H16+H20)*H22)+(B44*1.43) ->  | K42: SS Cost | S42: I-6a
A43: ADDITIONAL SS: | B43: 0 | C43: =IF(G44>B5,"VESSEL OVERWEIGHT","") ->  | D43: Maximum: | E43: =E42*4 -> 0 | F43: CE: | G43: =ROUND(((G42*G41)/100),1) ->  | K43: =LOOKUP(B3,'Master Data Sheet'!I3:I22,'Master Data Sheet'!K3:K22)*B44 -> 1 | S43: I-7
A44: TOTAL SS: | B44: =B42+B43 -> 2 | C44: =IF(G44>B5,"VESSEL OVERWEIGHT","") ->  | D44: Cargo Mass | E44: =E46*50 -> 0 | F44: TOTAL MASS: | G44: =B41+(B44*1500) -> 3494 | H44: mt | I44: =G44&" mt" -> 3494 mt | S44: I-7a
A45: 1 PER: | B45: 4000 | D45: Suggested SCU | E45: =ROUNDUP(((B46+B47+B48+B49)*0.85),-1) -> 10 | F45: Allowable Mass: | G45: =B5 -> 5000 | H45: =IF(G44>B5,"VESSEL OVERWEIGHT","") ->  | S45: I-8
A46: CREW: | B46: =ROUND((G44/B45),0) -> 1 | D46: Actual SCU | E46: 0 | S46: I-8a
A47: TOTAL EXTRA CREW | S47: I-9
A48: TROOPS: | D48: Cloaking Device Type | E48: - | S48: I-9a
A49: PASSENGERS: | D49: Power to Arm | E49: =VLOOKUP(E48,'Master Data Sheet'!D3448:F3463,3,0) -> - | S49: I-9b
S50: I-10
S51: I-10a
S52: I-10b
B53: TRANSPORTERS | S53: I-11
B54: standard person: | C54: =ROUNDUP((B46+B47+B49)/250,0) -> 1 | E54: Cargo | F54: =ROUNDUP((E46/125),0) -> 0 | S54: I-11a
B55: combat: | C55: =ROUNDUP((B48/20),0) -> 0 | S55: I-12
B56: emergency: | C56: =ROUNDUP((B46+B47+B49)/150,0) -> 1 | S56: I-12a
S57: I-13
S58: 1AG
S59: 1BG
S60: 1CG
S61: 1DG
S62: 1EG
S63: 1FG
S64: 1GG
S65: 1HG
S66: 1IG
S67: 1JG
S68: 1KG
S69: 1LG
S70: 1MG
S71: 1NG
S72: 1OG
S73: 1PG
S74: 1QG
S75: 1RG
S76: 1SG
S77: 1TG
S78: 1UG
S79: ZD-1
S80: ZD-2
S81: ZD-3
S82: ZD-4
S83: ZD-5
S84: ZD-6
S85: ZD-7
S86: ZD-8
S87: ZD-9
S88: ZD-10
S89: ZD-11
S90: ZD-12
S91: ZD-13
S92: ZD-14
S93: ZD-15
S94: ZD-16
S95: ZD-17
S96: ZD-18
S97: ZI-1
S98: ZI-2
S99: ZI-3
S100: ZI-4
S101: ZI-5
S102: ZI-6
S103: ZI-7
S104: ZI-8
S105: ZI-9
S106: ZI-10
S107: ZI-11
S108: ZI-12
S109: R-1M
S110: R-2M
S111: R-3M
S112: R-4M
S113: R-5M
S114: R-5M-1
S115: R-6M
S116: R-6M-1
S117: R-7M
S118: R-7M-1
S119: R-8M
S120: R-9M
S121: R-9M-1
S122: R-10M
S123: R-11M
S124: R-12M
S125: R-12M-1
S126: R-13M
S127: R-14M
S128: R-15M
S129: R-16M
S130: R-16M-1
S131: R-17M
S132: R-MX-1
S133: R-MX-2
S134: R-MX-3
S135: R-MX-4
S136: ECC-1
S137: ECC-2
S138: ECC-3
S139: ECC-4
S140: ECC-5
S141: ECC-6
S142: ECC-7
S143: ECC-8
S144: ECC-9
S145: ECC-10
S146: ECC-11
S147: ECC-12
S148: ECC-13
S149: ECC-14
S150: EIC-1
S151: EIC-2
S152: EIC-3
S153: TC-1
S154: TC-2
S155: TC-3
S156: TC-4
S157: TC-5
S158: TC-5A
S159: TC-6
S160: TC-7
S161: TC-8
S162: TC-9
S163: TC-9A
S164: TC-10
S165: TC-11
S166: TC-12
S167: TC-12A
S168: TC-13
S169: TC-14
S170: TC-15
S171: CF-1
S172: CF-2
S173: CF-3
S174: CF-3a
S175: CF-4
S176: CF-5
S177: CF-6
S178: CF-6a
S179: CF-6b
S180: CF-7
S181: CF-8
S182: CF-9
S183: CF-10
S184: CF-11
S185: CF-12
S186: CF-13
S187: CF-14
S188: CF-15
S189: CF-16
S190: CIF-1
S191: CIF-2
S192: CIF-3
S193: CIF-4
S194: CIF-5
S195: CIF-6
S196: CIF-7
S197: CIF-8
S198: CIF-9
S199: CIF-10
S200: AMC-1
... 140 more rows

Sheet mkii
C1: NOTE: Do not fill in any of the grey areas. The computer will figure out all the necessary calculations. | I1: Earliest Possible Launch Date | M1: MRP | O1: SPR | S1: L-12
C2: Model: | D2: Mk II | F2: TOTAL SHIP COST | H2: 129.5 | I2: =MAX(I7:I37) -> 2236 | M2: 1/4 | N2: 1 | O2: 2/3 | S2: L-12A
A3: SHIP CLASS: | B3: I | C3: =LOOKUP(B3,shipclass,'Master Data Sheet'!D3:D22) -> 1 | F3: =ROUND((LOOKUP(B3,'Master Data Sheet'!I3:I22,'Master Data Sheet'!L3:L22)*(K7+K11+K16+K20+K26+K31+K37+K40+K43)),1) -> 16.5 | G3: MCr | M3: 1/3 | N3: 2 | O3: 1/1 | S3: L-13
A4: MINIMUM SHIP MASS: | B4: =VLOOKUP(B3,'Master Data Sheet'!$E$3:$G$22,3,0) -> 1 | H4: Actual Launch Date: | I4: 2271 | M4: 2/3 | N4: 3 | O4: 1/2 | S4: L-13A
A5: MAXIMUM SHIP MASS: | B5: =VLOOKUP(B3,'Master Data Sheet'!$E$3:$G$22,2,0) -> 5000 | K5: Estimated Cost | M5: 1/2 | N5: 4 | O5: 1/3 | S5: L-14
A6: COMPUTER TYPE: | C6: Number | D6: MASS(MT) | E6: SS Required | G6: Max WDF | I6: Year | M6: 1/1 | O6: 1/4 | S6: L-14A
A7: L-12 | C7: 1 | D7: =VLOOKUP(A7,'Master Data Sheet'!$D$25:$M$364,2,0)*C7 -> 50 | E7: =VLOOKUP(A7,'Master Data Sheet'!$D$25:$M$364,6,0)*C7 -> 0.1 | G7: =VLOOKUP(A7,'Master Data Sheet'!$D$25:$M$364,7,0)*C7 -> 2 | I7: =VLOOKUP(A7,'Master Data Sheet'!$D$25:$M$364,9,0) -> 2236 | K7: =VLOOKUP(A7,'Master Data Sheet'!$D$25:$M$364,10,0)*C7 -> 4 | M7: 2/1 | O7: 1/5 | S7: M-1
C8: =IF(C7>1,(A7&" x"&C7),A7) -> L-12 | M8: 3/1 | O8: 1/6 | S8: M-1A
A9: WARP ENGINE TYPE | M9: 4/1 | S9: M-2
A10: None | C10: SS Req. | D10: =VLOOKUP(A10,'Master Data Sheet'!D367:AD864,(17+B11),0) -> 0 | E10: Power units: | F10: =VLOOKUP(A10,'Master Data Sheet'!D367:AD864,(5+B11),0) -> 0 | H10: WER | I10: Year | K10: Cost | M10: 5/1 | S10: M-2A
A11: Number: | B11: 1 | C11: MRP: | D11: 4/1 | F11: =IF(B11>1,(F10&" ea."),F10) -> 0 | H11: =VLOOKUP(I12,'DATA SHEET 1'!B4:Z1003,mkii!H12,0) ->  | I11: =VLOOKUP(A10,'Master Data Sheet'!D367:AD864,27,0) -> 0 | K11: =VLOOKUP(A10,'Master Data Sheet'!D367:AD864,(22+B11),0) -> 0 | M11: 6/1 | S11: M-3
A12: Mass(MT) | B12: =VLOOKUP(A10,'Master Data Sheet'!D367:AD864,(1+B11),0) -> 0 | C12: Stress Chrt: | D12: =VLOOKUP(A10,'Master Data Sheet'!D367:AD864,(13+B11),0) -> -/- | E12: Max Safe Cr: | F12: 7 | H12: =VLOOKUP(D11,'Master Data Sheet'!O3:P26,2,0) -> 9 | I12: =F10*B11 -> 0 | M12: 7/1 | S12: M-3A
A13: Damage Chart | B13: =VLOOKUP(A10,'Master Data Sheet'!D367:AD864,(13+B11),0) -> -/- | E13: Emergency Speed: | F13: 9.5 | M13: 8/1 | S13: M-3B
A14: IMPULSE ENGINE TYPE | E14: =IF((H11+H16)>41.5,"MPR Exceedes Standard Limits - Increace MRP to next level","") ->  | M14: 9/1 | S14: M-4
A15: FIA-1 | C15: Mass (mt): | D15: =VLOOKUP(A15,'Master Data Sheet'!D867:N1346,2,0)*B17 -> 150 | H15: IER: | I15: Year | K15: Cost | M15: 10/1 | S15: M-4A
A16: Power units: | B16: =VLOOKUP(A15,'Master Data Sheet'!D867:N1346,3,0) -> 1 | C16: SS Req. | D16: =VLOOKUP(A15,'Master Data Sheet'!D867:N1346,8,0)*B17 -> 0.1 | H16: =VLOOKUP(I17,'DATA SHEET 1'!B4:Z1003,mkii!H12,0) -> 0.5 | I16: =VLOOKUP(A15,'Master Data Sheet'!D867:N1346,11,0) -> 2236 | K16: =VLOOKUP(A15,'Master Data Sheet'!D867:N1346,10,0)*B17 -> 1 | M16: 11/1 | S16: M-4B
A17: Number: | B17: 1 | C17: =IF(B17>1,(A15&" x"&B17),A15) -> FIA-1 | D17: =IF(B17>1,(B16&" ea."),B16) -> 1 | H17: =H12 -> 9 | I17: =B16*B17 -> 1 | M17: 12/1 | S17: M-6
M18: 13/1 | S18: M-6A
A19: SHIELD GENERATOR TYPE | H19: DPC | I19: Year | K19: Total Cost | M19: 14/1 | S19: M-7
A20: ASA | C20: SPR: | D20: =VLOOKUP(A20,'Master Data Sheet'!D1348:L1780,5,0) -> 1/1 | E20: SS Req. | F20: =VLOOKUP(A20,'Master Data Sheet'!D1348:L1780,6,0) -> 1.2 | H20: =VLOOKUP(A20,'Master Data Sheet'!D2208:X2631,(1+C3),0) -> 11.5 | I20: =VLOOKUP(A20,'Master Data Sheet'!D1348:L1780,9,0) -> 2228 | K20: =VLOOKUP(A20,'Master Data Sheet'!D1348:L1780,8,0) -> 10 | M20: 15/1 | S20: M-7A
A21: Mass (mt) | B21: =VLOOKUP(A20,'Master Data Sheet'!D1348:L1780,2,0) -> 294 | C21: Max Power: | D21: =VLOOKUP(A20,'Master Data Sheet'!D1782:X2206,(1+C3),0) -> 8 | H21: SER | M21: 16/1 | S21: M-8
H22: =VLOOKUP(A20,'Master Data Sheet'!D1348:L1780,4,0) -> 1 | M22: 17/1 | S22: M-8A
M23: 18/1 | S23: M-9
A24: BEAM TYPE | B24: Firing Chart | C24: Number: | D24: 0 | F24: SS Req (each) | G24: Total Mass | H24: WDF | I24: Year | M24: 19/1 | S24: M-9A
A25: None | B25: =VLOOKUP(A25,'Master Data Sheet'!D2634:R3164,8,0) -> - | C25: Banks: | D25: 0 | E25: Bank: | F25: =(VLOOKUP(A25,'Master Data Sheet'!D2634:R3164,12,0))*D25 -> 0 | G25: =D24*B27 -> 0 | H25: =VLOOKUP(A25,'Master Data Sheet'!D2634:R3164,9,0) -> 0 | I25: =VLOOKUP(A25,'Master Data Sheet'!D2634:R3164,15,0) -> 0 | J25: =VLOOKUP(A25,'Master Data Sheet'!D2634:R3164,4,0) -> (-) | K25: Total Cost | M25: 20/1 | S25: M-10
A26: Max Power: | B26: =VLOOKUP(A25,'Master Data Sheet'!D2634:R3164,3,0) -> 0 | C26: Single: | E26: Single: | F26: =(VLOOKUP(A25,'Master Data Sheet'!D2634:R3164,10,0))*D26 -> 0 | G26: Total SS | H26: Total WDF | J26: =VLOOKUP(A25,'Master Data Sheet'!D2634:R3164,5,0) -> (-) | K26: =(VLOOKUP(A25,'Master Data Sheet'!D2634:R3164,14,0))*D24 -> 0 | S26: M-11
A27: Mass (each): | B27: =VLOOKUP(A25,'Master Data Sheet'!D2634:R3164,2,0) -> 0 | C27: Firing arcs: | D27: 0 | G27: =F25+F26 -> 0 | H27: =H25*D24 -> 0 | J27: =VLOOKUP(A25,'Master Data Sheet'!D2634:R3164,6,0) -> (-) | S27: M-12
S28: M-12a
A29: BEAM TYPE | B29: Firing Chart | C29: Number: | D29: 0 | F29: SS Req (each) | G29: Total Mass | H29: WDF | I29: Year | S29: M-13
A30: None | B30: =VLOOKUP(A30,'Master Data Sheet'!D2634:R3164,8,0) -> - | C30: Banks: | D30: 0 | E30: Bank: | F30: =(VLOOKUP(A30,'Master Data Sheet'!D2634:R3164,12,0))*D30 -> 0 | G30: =B32*D29 -> 0 | H30: =VLOOKUP(A30,'Master Data Sheet'!D2634:R3164,9,0) -> 0 | I30: =VLOOKUP(A30,'Master Data Sheet'!D2634:R3164,15,0) -> 0 | J30: =VLOOKUP(A30,'Master Data Sheet'!D2634:R3164,4,0) -> (-) | K30: Total Cost | S30: M-14
A31: Max Power: | B31: =VLOOKUP(A30,'Master Data Sheet'!D2634:R3164,3,0) -> 0 | C31: Single: | E31: Single: | F31: =(VLOOKUP(A30,'Master Data Sheet'!D2634:R3164,10,0))*D31 -> 0 | G31: Total SS | H31: Total WDF | J31: =VLOOKUP(A30,'Master Data Sheet'!D2634:R3164,5,0) -> (-) | K31: =(VLOOKUP(A30,'Master Data Sheet'!D2634:R3164,14,0))*D29 -> 0 | S31: M-15
A32: Mass (each): | B32: =VLOOKUP(A30,'Master Data Sheet'!D2634:R3164,2,0) -> 0 | C32: Firing arcs: | D32: 0 | G32: =F30+F31 -> 0 | H32: =D29*H30 -> 0 | J32: =VLOOKUP(A30,'Master Data Sheet'!D2634:R3164,6,0) -> (-) | S32: M-16
S33: I-1
A34: TORPEDO TYPE | S34: I-2
A35: None | B35: Firing Chart | S35: I-3
B36: =VLOOKUP(A35,'Master Data Sheet'!D3167:N3446,6,0) -> 0 | C36: Number: | D36: 6 | E36: SS Req (each) | G36: Total Mass | H36: WDF | I36: Year | K36: Total Cost | S36: I-3a
A37: PTA: | B37: =VLOOKUP(A35,'Master Data Sheet'!D3167:N3446,3,0) -> 0 | C37: Damage: | D37: =VLOOKUP(A35,'Master Data Sheet'!D3167:N3446,4,0) -> 0 | E37: =VLOOKUP(A35,'Master Data Sheet'!D3167:N3446,8,0) -> 0 | G37: =B38*D36 -> 0 | H37: =VLOOKUP(A35,'Master Data Sheet'!D3167:N3446,7,0) -> 0 | I37: =VLOOKUP(A35,'Master Data Sheet'!D3167:N3446,11,0) -> 0 | K37: =(VLOOKUP(A35,'Master Data Sheet'!D3167:N3446,10,0))*D36 -> 0 | S37: I-4
A38: Mass (each): | B38: =VLOOKUP(A35,'Master Data Sheet'!D3167:N3446,2,0) -> 0 | C38: Firing arcs: | D38: 4F,2A | G38: Total SS | H38: Total WDF | S38: I-4a
G39: =D36*E37 -> 0 | H39: =D36*H37 -> 0 | K39: Base Hull Cost | S39: I-5
K40: =LOOKUP(B3,'Master Data Sheet'!I3:I22,'Master Data Sheet'!J3:J22) -> 0.5 | S40: I-5a
A41: COMPONENT MASS: | B41: =D7+B12+D15+B21+G25+G30+G37 -> 494 | C41: =IF(G44>B5,"VESSEL OVERWEIGHT","") ->  | D41: DURRATION | F41: WDF: | G41: =H27+H32+H39 -> 0 | H41: =IF(G41>G7,"WDF Error","") ->  | S41: I-6
A42: SS REQUIRED: | B42: =ROUNDUP((E7+D10+D16+F20+G27+G32+G39),0) -> 2 | D42: Standard: | E42: 0 | F42: D: | G42: =((H11+H16+H20)*H22)+(B44*1.43) ->  | K42: SS Cost | S42: I-6a
A43: ADDITIONAL SS: | B43: 0 | C43: =IF(G44>B5,"VESSEL OVERWEIGHT","") ->  | D43: Maximum: | E43: =E42*4 -> 0 | F43: CE: | G43: =ROUND(((G42*G41)/100),1) ->  | K43: =LOOKUP(B3,'Master Data Sheet'!I3:I22,'Master Data Sheet'!K3:K22)*B44 -> 1 | S43: I-7
A44: TOTAL SS: | B44: =B42+B43 -> 2 | C44: =IF(G44>B5,"VESSEL OVERWEIGHT","") ->  | D44: Cargo Mass | E44: =E46*50 -> 0 | F44: TOTAL MASS: | G44: =B41+(B44*1500) -> 3494 | H44: mt | I44: =G44&" mt" -> 3494 mt | S44: I-7a
A45: 1 PER: | B45: 0 | D45: Suggested SCU | E45: =ROUNDUP(((B46+B47+B48+B49)*0.85),-1) ->  | F45: Allowable Mass: | G45: =B5 -> 5000 | H45: =IF(G44>B5,"VESSEL OVERWEIGHT","") ->  | S45: I-8
A46: CREW: | B46: =ROUND((G44/B45),0) ->  | D46: Actual SCU | E46: 0 | S46: I-8a
A47: TOTAL EXTRA CREW | B47: 0 | S47: I-9
A48: TROOPS: | B48: 0 | D48: Cloaking Device Type | E48: - | S48: I-9a
A49: PASSENGERS: | B49: 0 | D49: Power to Arm | E49: =VLOOKUP(E48,'Master Data Sheet'!D3448:F3463,3,0) -> - | S49: I-9b
S50: I-10
S51: I-10a
S52: I-10b
B53: TRANSPORTERS | S53: I-11
B54: standard person: | C54: =ROUNDUP((B46+B47+B49)/250,0) ->  | E54: Cargo | F54: =ROUNDUP((E46/125),0) -> 0 | S54: I-11a
B55: combat: | C55: =ROUNDUP((B48/20),0) -> 0 | S55: I-12
B56: emergency: | C56: =ROUNDUP((B46+B47+B49)/150,0) ->  | S56: I-12a
S57: I-13
S58: 1AG
S59: 1BG
S60: 1CG
S61: 1DG
S62: 1EG
S63: 1FG
S64: 1GG
S65: 1HG
S66: 1IG
S67: 1JG
S68: 1KG
S69: 1LG
S70: 1MG
S71: 1NG
S72: 1OG
S73: 1PG
S74: 1QG
S75: 1RG
S76: 1SG
S77: 1TG
S78: 1UG
S79: ZD-1
S80: ZD-2
S81: ZD-3
S82: ZD-4
S83: ZD-5
S84: ZD-6
S85: ZD-7
S86: ZD-8
S87: ZD-9
S88: ZD-10
S89: ZD-11
S90: ZD-12
S91: ZD-13
S92: ZD-14
S93: ZD-15
S94: ZD-16
S95: ZD-17
S96: ZD-18
S97: ZI-1
S98: ZI-2
S99: ZI-3
S100: ZI-4
S101: ZI-5
S102: ZI-6
S103: ZI-7
S104: ZI-8
S105: ZI-9
S106: ZI-10
S107: ZI-11
S108: ZI-12
S109: R-1M
S110: R-2M
S111: R-3M
S112: R-4M
S113: R-5M
S114: R-5M-1
S115: R-6M
S116: R-6M-1
S117: R-7M
S118: R-7M-1
S119: R-8M
S120: R-9M
S121: R-9M-1
S122: R-10M
S123: R-11M
S124: R-12M
S125: R-12M-1
S126: R-13M
S127: R-14M
S128: R-15M
S129: R-16M
S130: R-16M-1
S131: R-17M
S132: R-MX-1
S133: R-MX-2
S134: R-MX-3
S135: R-MX-4
S136: ECC-1
S137: ECC-2
S138: ECC-3
S139: ECC-4
S140: ECC-5
S141: ECC-6
S142: ECC-7
S143: ECC-8
S144: ECC-9
S145: ECC-10
S146: ECC-11
S147: ECC-12
S148: ECC-13
S149: ECC-14
S150: EIC-1
S151: EIC-2
S152: EIC-3
S153: TC-1
S154: TC-2
S155: TC-3
S156: TC-4
S157: TC-5
S158: TC-5A
S159: TC-6
S160: TC-7
S161: TC-8
S162: TC-9
S163: TC-9A
S164: TC-10
S165: TC-11
S166: TC-12
S167: TC-12A
S168: TC-13
S169: TC-14
S170: TC-15
S171: CF-1
S172: CF-2
S173: CF-3
S174: CF-3a
S175: CF-4
S176: CF-5
S177: CF-6
S178: CF-6a
S179: CF-6b
S180: CF-7
S181: CF-8
S182: CF-9
S183: CF-10
S184: CF-11
S185: CF-12
S186: CF-13
S187: CF-14
S188: CF-15
S189: CF-16
S190: CIF-1
S191: CIF-2
S192: CIF-3
S193: CIF-4
S194: CIF-5
S195: CIF-6
S196: CIF-7
S197: CIF-8
S198: CIF-9
S199: CIF-10
S200: AMC-1
... 140 more rows

Sheet mkiii
C1: NOTE: Do not fill in any of the grey areas. The computer will figure out all the necessary calculations. | I1: Earliest Possible Launch Date | M1: MRP | O1: SPR | S1: L-12
C2: Model: | D2: Mk III | F2: TOTAL SHIP COST | H2: 129.5 | I2: =MAX(I7:I37) -> 2236 | M2: 1/4 | N2: 1 | O2: 2/3 | S2: L-12A
A3: SHIP CLASS: | B3: I | C3: =LOOKUP(B3,shipclass,'Master Data Sheet'!D3:D22) -> 1 | F3: =ROUND((LOOKUP(B3,'Master Data Sheet'!I3:I22,'Master Data Sheet'!L3:L22)*(K7+K11+K16+K20+K26+K31+K37+K40+K43)),1) -> 16.5 | G3: MCr | M3: 1/3 | N3: 2 | O3: 1/1 | S3: L-13
A4: MINIMUM SHIP MASS: | B4: =VLOOKUP(B3,'Master Data Sheet'!$E$3:$G$22,3,0) -> 1 | H4: Actual Launch Date: | I4: 2293 | M4: 2/3 | N4: 3 | O4: 1/2 | S4: L-13A
A5: MAXIMUM SHIP MASS: | B5: =VLOOKUP(B3,'Master Data Sheet'!$E$3:$G$22,2,0) -> 5000 | K5: Estimated Cost | M5: 1/2 | N5: 4 | O5: 1/3 | S5: L-14
A6: COMPUTER TYPE: | C6: Number | D6: MASS(MT) | E6: SS Required | G6: Max WDF | I6: Year | M6: 1/1 | O6: 1/4 | S6: L-14A
A7: L-12 | C7: 1 | D7: =VLOOKUP(A7,'Master Data Sheet'!$D$25:$M$364,2,0)*C7 -> 50 | E7: =VLOOKUP(A7,'Master Data Sheet'!$D$25:$M$364,6,0)*C7 -> 0.1 | G7: =VLOOKUP(A7,'Master Data Sheet'!$D$25:$M$364,7,0)*C7 -> 2 | I7: =VLOOKUP(A7,'Master Data Sheet'!$D$25:$M$364,9,0) -> 2236 | K7: =VLOOKUP(A7,'Master Data Sheet'!$D$25:$M$364,10,0)*C7 -> 4 | M7: 2/1 | O7: 1/5 | S7: M-1
C8: =IF(C7>1,(A7&" x"&C7),A7) -> L-12 | M8: 3/1 | O8: 1/6 | S8: M-1A
A9: WARP ENGINE TYPE | M9: 4/1 | S9: M-2
A10: None | C10: SS Req. | D10: =VLOOKUP(A10,'Master Data Sheet'!D367:AD864,(17+B11),0) -> 0 | E10: Power units: | F10: =VLOOKUP(A10,'Master Data Sheet'!D367:AD864,(5+B11),0) -> 0 | H10: WER | I10: Year | K10: Cost | M10: 5/1 | S10: M-2A
A11: Number: | B11: 1 | C11: MRP: | D11: 1/4 | F11: =IF(B11>1,(F10&" ea."),F10) -> 0 | H11: =VLOOKUP(I12,'DATA SHEET 1'!B4:Z1003,mkiii!H12,0) ->  | I11: =VLOOKUP(A10,'Master Data Sheet'!D367:AD864,27,0) -> 0 | K11: =VLOOKUP(A10,'Master Data Sheet'!D367:AD864,(22+B11),0) -> 0 | M11: 6/1 | S11: M-3
A12: Mass(MT) | B12: =VLOOKUP(A10,'Master Data Sheet'!D367:AD864,(1+B11),0) -> 0 | C12: Stress Chrt: | D12: =VLOOKUP(A10,'Master Data Sheet'!D367:AD864,(13+B11),0) -> -/- | E12: Max Safe Cr: | F12: 7.5 | H12: =VLOOKUP(D11,'Master Data Sheet'!O3:P26,2,0) -> 2 | I12: =F10*B11 -> 0 | M12: 7/1 | S12: M-3A
A13: Damage Chart | B13: =VLOOKUP(A10,'Master Data Sheet'!D367:AD864,(13+B11),0) -> -/- | E13: Emergency Speed: | F13: 12 | M13: 8/1 | S13: M-3B
A14: IMPULSE ENGINE TYPE | E14: =IF((H11+H16)>41.5,"MPR Exceedes Standard Limits - Increace MRP to next level","") ->  | M14: 9/1 | S14: M-4
A15: FIA-1 | C15: Mass (mt): | D15: =VLOOKUP(A15,'Master Data Sheet'!D867:N1346,2,0)*B17 -> 150 | H15: IER: | I15: Year | K15: Cost | M15: 10/1 | S15: M-4A
A16: Power units: | B16: =VLOOKUP(A15,'Master Data Sheet'!D867:N1346,3,0) -> 1 | C16: SS Req. | D16: =VLOOKUP(A15,'Master Data Sheet'!D867:N1346,8,0)*B17 -> 0.1 | H16: =VLOOKUP(I17,'DATA SHEET 1'!B4:Z1003,mkiii!H12,0) -> 6 | I16: =VLOOKUP(A15,'Master Data Sheet'!D867:N1346,11,0) -> 2236 | K16: =VLOOKUP(A15,'Master Data Sheet'!D867:N1346,10,0)*B17 -> 1 | M16: 11/1 | S16: M-4B
A17: Number: | B17: 1 | C17: =IF(B17>1,(A15&" x"&B17),A15) -> FIA-1 | D17: =IF(B17>1,(B16&" ea."),B16) -> 1 | H17: =H12 -> 2 | I17: =B16*B17 -> 1 | M17: 12/1 | S17: M-6
M18: 13/1 | S18: M-6A
A19: SHIELD GENERATOR TYPE | H19: DPC | I19: Year | K19: Total Cost | M19: 14/1 | S19: M-7
A20: ASA | C20: SPR: | D20: =VLOOKUP(A20,'Master Data Sheet'!D1348:L1780,5,0) -> 1/1 | E20: SS Req. | F20: =VLOOKUP(A20,'Master Data Sheet'!D1348:L1780,6,0) -> 1.2 | H20: =VLOOKUP(A20,'Master Data Sheet'!D2208:X2631,(1+C3),0) -> 11.5 | I20: =VLOOKUP(A20,'Master Data Sheet'!D1348:L1780,9,0) -> 2228 | K20: =VLOOKUP(A20,'Master Data Sheet'!D1348:L1780,8,0) -> 10 | M20: 15/1 | S20: M-7A
A21: Mass (mt) | B21: =VLOOKUP(A20,'Master Data Sheet'!D1348:L1780,2,0) -> 294 | C21: Max Power: | D21: =VLOOKUP(A20,'Master Data Sheet'!D1782:X2206,(1+C3),0) -> 8 | H21: SER | M21: 16/1 | S21: M-8
H22: =VLOOKUP(A20,'Master Data Sheet'!D1348:L1780,4,0) -> 1 | M22: 17/1 | S22: M-8A
M23: 18/1 | S23: M-9
A24: BEAM TYPE | B24: Firing Chart | C24: Number: | D24: 0 | F24: SS Req (each) | G24: Total Mass | H24: WDF | I24: Year | M24: 19/1 | S24: M-9A
A25: None | B25: =VLOOKUP(A25,'Master Data Sheet'!D2634:R3164,8,0) -> - | C25: Banks: | D25: 0 | E25: Bank: | F25: =(VLOOKUP(A25,'Master Data Sheet'!D2634:R3164,12,0))*D25 -> 0 | G25: =D24*B27 -> 0 | H25: =VLOOKUP(A25,'Master Data Sheet'!D2634:R3164,9,0) -> 0 | I25: =VLOOKUP(A25,'Master Data Sheet'!D2634:R3164,15,0) -> 0 | J25: =VLOOKUP(A25,'Master Data Sheet'!D2634:R3164,4,0) -> (-) | K25: Total Cost | M25: 20/1 | S25: M-10
A26: Max Power: | B26: =VLOOKUP(A25,'Master Data Sheet'!D2634:R3164,3,0) -> 0 | C26: Single: | E26: Single: | F26: =(VLOOKUP(A25,'Master Data Sheet'!D2634:R3164,10,0))*D26 -> 0 | G26: Total SS | H26: Total WDF | J26: =VLOOKUP(A25,'Master Data Sheet'!D2634:R3164,5,0) -> (-) | K26: =(VLOOKUP(A25,'Master Data Sheet'!D2634:R3164,14,0))*D24 -> 0 | S26: M-11
A27: Mass (each): | B27: =VLOOKUP(A25,'Master Data Sheet'!D2634:R3164,2,0) -> 0 | C27: Firing arcs: | D27: 0 | G27: =F25+F26 -> 0 | H27: =H25*D24 -> 0 | J27: =VLOOKUP(A25,'Master Data Sheet'!D2634:R3164,6,0) -> (-) | S27: M-12
S28: M-12a
A29: BEAM TYPE | B29: Firing Chart | C29: Number: | D29: 0 | F29: SS Req (each) | G29: Total Mass | H29: WDF | I29: Year | S29: M-13
A30: None | B30: =VLOOKUP(A30,'Master Data Sheet'!D2634:R3164,8,0) -> - | C30: Banks: | E30: Bank: | F30: =(VLOOKUP(A30,'Master Data Sheet'!D2634:R3164,12,0))*D30 -> 0 | G30: =B32*D29 -> 0 | H30: =VLOOKUP(A30,'Master Data Sheet'!D2634:R3164,9,0) -> 0 | I30: =VLOOKUP(A30,'Master Data Sheet'!D2634:R3164,15,0) -> 0 | J30: =VLOOKUP(A30,'Master Data Sheet'!D2634:R3164,4,0) -> (-) | K30: Total Cost | S30: M-14
A31: Max Power: | B31: =VLOOKUP(A30,'Master Data Sheet'!D2634:R3164,3,0) -> 0 | C31: Single: | D31: 0 | E31: Single: | F31: =(VLOOKUP(A30,'Master Data Sheet'!D2634:R3164,10,0))*D31 -> 0 | G31: Total SS | H31: Total WDF | J31: =VLOOKUP(A30,'Master Data Sheet'!D2634:R3164,5,0) -> (-) | K31: =(VLOOKUP(A30,'Master Data Sheet'!D2634:R3164,14,0))*D29 -> 0 | S31: M-15
A32: Mass (each): | B32: =VLOOKUP(A30,'Master Data Sheet'!D2634:R3164,2,0) -> 0 | C32: Firing arcs: | D32: 0 | G32: =F30+F31 -> 0 | H32: =D29*H30 -> 0 | J32: =VLOOKUP(A30,'Master Data Sheet'!D2634:R3164,6,0) -> (-) | S32: M-16
S33: I-1
A34: TORPEDO TYPE | S34: I-2
A35: None | B35: Firing Chart | S35: I-3
B36: =VLOOKUP(A35,'Master Data Sheet'!D3167:N3446,6,0) -> 0 | C36: Number: | D36: 0 | E36: SS Req (each) | G36: Total Mass | H36: WDF | I36: Year | K36: Total Cost | S36: I-3a
A37: PTA: | B37: =VLOOKUP(A35,'Master Data Sheet'!D3167:N3446,3,0) -> 0 | C37: Damage: | D37: =VLOOKUP(A35,'Master Data Sheet'!D3167:N3446,4,0) -> 0 | E37: =VLOOKUP(A35,'Master Data Sheet'!D3167:N3446,8,0) -> 0 | G37: =B38*D36 -> 0 | H37: =VLOOKUP(A35,'Master Data Sheet'!D3167:N3446,7,0) -> 0 | I37: =VLOOKUP(A35,'Master Data Sheet'!D3167:N3446,11,0) -> 0 | K37: =(VLOOKUP(A35,'Master Data Sheet'!D3167:N3446,10,0))*D36 -> 0 | S37: I-4
A38: Mass (each): | B38: =VLOOKUP(A35,'Master Data Sheet'!D3167:N3446,2,0) -> 0 | C38: Firing arcs: | D38: 0 | G38: Total SS | H38: Total WDF | S38: I-4a
G39: =D36*E37 -> 0 | H39: =D36*H37 -> 0 | K39: Base Hull Cost | S39: I-5
K40: =LOOKUP(B3,'Master Data Sheet'!I3:I22,'Master Data Sheet'!J3:J22) -> 0.5 | S40: I-5a
A41: COMPONENT MASS: | B41: =D7+B12+D15+B21+G25+G30+G37 -> 494 | C41: =IF(G44>B5,"VESSEL OVERWEIGHT","") ->  | D41: DURRATION | F41: WDF: | G41: =H27+H32+H39 -> 0 | H41: =IF(G41>G7,"WDF Error","") ->  | S41: I-6
A42: SS REQUIRED: | B42: =ROUNDUP((E7+D10+D16+F20+G27+G32+G39),0) -> 2 | D42: Standard: | E42: 0 | F42: D: | G42: =((H11+H16+H20)*H22)+(B44*1.43) ->  | K42: SS Cost | S42: I-6a
A43: ADDITIONAL SS: | B43: 0 | C43: =IF(G44>B5,"VESSEL OVERWEIGHT","") ->  | D43: Maximum: | E43: =E42*4 -> 0 | F43: CE: | G43: =ROUND(((G42*G41)/100),1) ->  | K43: =LOOKUP(B3,'Master Data Sheet'!I3:I22,'Master Data Sheet'!K3:K22)*B44 -> 1 | S43: I-7
A44: TOTAL SS: | B44: =B42+B43 -> 2 | C44: =IF(G44>B5,"VESSEL OVERWEIGHT","") ->  | D44: Cargo Mass | E44: =E46*50 -> 0 | F44: TOTAL MASS: | G44: =B41+(B44*1500) -> 3494 | H44: mt | I44: =G44&" mt" -> 3494 mt | S44: I-7a
A45: 1 PER: | B45: 0 | D45: Suggested SCU | E45: =ROUNDUP(((B46+B47+B48+B49)*0.85),-1) ->  | F45: Allowable Mass: | G45: =B5 -> 5000 | H45: =IF(G44>B5,"VESSEL OVERWEIGHT","") ->  | S45: I-8
A46: CREW: | B46: =ROUND((G44/B45),0) ->  | D46: Actual SCU | E46: 0 | S46: I-8a
A47: TOTAL EXTRA CREW | B47: 0 | S47: I-9
A48: TROOPS: | B48: 0 | D48: Cloaking Device Type | E48: - | S48: I-9a
A49: PASSENGERS: | B49: 0 | D49: Power to Arm | E49: =VLOOKUP(E48,'Master Data Sheet'!D3448:F3463,3,0) -> - | S49: I-9b
S50: I-10
S51: I-10a
S52: I-10b
B53: TRANSPORTERS | S53: I-11
B54: standard person: | C54: =ROUNDUP((B46+B47+B49)/250,0) ->  | E54: Cargo | F54: =ROUNDUP((E46/125),0) -> 0 | S54: I-11a
B55: combat: | C55: =ROUNDUP((B48/20),0) -> 0 | S55: I-12
B56: emergency: | C56: =ROUNDUP((B46+B47+B49)/150,0) ->  | S56: I-12a
S57: I-13
S58: 1AG
S59: 1BG
S60: 1CG
S61: 1DG
S62: 1EG
S63: 1FG
S64: 1GG
S65: 1HG
S66: 1IG
S67: 1JG
S68: 1KG
S69: 1LG
S70: 1MG
S71: 1NG
S72: 1OG
S73: 1PG
S74: 1QG
S75: 1RG
S76: 1SG
S77: 1TG
S78: 1UG
S79: ZD-1
S80: ZD-2
S81: ZD-3
S82: ZD-4
S83: ZD-5
S84: ZD-6
S85: ZD-7
S86: ZD-8
S87: ZD-9
S88: ZD-10
S89: ZD-11
S90: ZD-12
S91: ZD-13
S92: ZD-14
S93: ZD-15
S94: ZD-16
S95: ZD-17
S96: ZD-18
S97: ZI-1
S98: ZI-2
S99: ZI-3
S100: ZI-4
S101: ZI-5
S102: ZI-6
S103: ZI-7
S104: ZI-8
S105: ZI-9
S106: ZI-10
S107: ZI-11
S108: ZI-12
S109: R-1M
S110: R-2M
S111: R-3M
S112: R-4M
S113: R-5M
S114: R-5M-1
S115: R-6M
S116: R-6M-1
S117: R-7M
S118: R-7M-1
S119: R-8M
S120: R-9M
S121: R-9M-1
S122: R-10M
S123: R-11M
S124: R-12M
S125: R-12M-1
S126: R-13M
S127: R-14M
S128: R-15M
S129: R-16M
S130: R-16M-1
S131: R-17M
S132: R-MX-1
S133: R-MX-2
S134: R-MX-3
S135: R-MX-4
S136: ECC-1
S137: ECC-2
S138: ECC-3
S139: ECC-4
S140: ECC-5
S141: ECC-6
S142: ECC-7
S143: ECC-8
S144: ECC-9
S145: ECC-10
S146: ECC-11
S147: ECC-12
S148: ECC-13
S149: ECC-14
S150: EIC-1
S151: EIC-2
S152: EIC-3
S153: TC-1
S154: TC-2
S155: TC-3
S156: TC-4
S157: TC-5
S158: TC-5A
S159: TC-6
S160: TC-7
S161: TC-8
S162: TC-9
S163: TC-9A
S164: TC-10
S165: TC-11
S166: TC-12
S167: TC-12A
S168: TC-13
S169: TC-14
S170: TC-15
S171: CF-1
S172: CF-2
S173: CF-3
S174: CF-3a
S175: CF-4
S176: CF-5
S177: CF-6
S178: CF-6a
S179: CF-6b
S180: CF-7
S181: CF-8
S182: CF-9
S183: CF-10
S184: CF-11
S185: CF-12
S186: CF-13
S187: CF-14
S188: CF-15
S189: CF-16
S190: CIF-1
S191: CIF-2
S192: CIF-3
S193: CIF-4
S194: CIF-5
S195: CIF-6
S196: CIF-7
S197: CIF-8
S198: CIF-9
S199: CIF-10
S200: AMC-1
... 140 more rows

Sheet Master Data Sheet (hidden)
D1: 1 | E1: 2 | F1: 3 | G1: 4 | H1: 5 | I1: 6 | J1: 7 | K1: 8 | L1: 9 | M1: 10 | N1: 11 | O1: 12 | P1: 13 | Q1: 14 | R1: 15 | S1: 16 | T1: 17 | U1: 18 | V1: 19 | W1: 20 | X1: 21 | Y1: 22 | Z1: 23 | AA1: 24 | AB1: 25 | AC1: 26 | AD1: 27
D2: WEIGHT: | E2: Ship Class | J2: Base Hull | O2: MPR List | Q2: Mult | U2: Crew Accom
B3: Weight | C3: 5000 | D3: 1 | E3: I | F3: 5000 | G3: 1 | H3: 1 | I3: I | J3: 0.5 | K3: 0.5 | L3: 1.0005 | O3: 1/4 | P3: 2
B4: Weight | C4: 15000 | D4: 2 | E4: II | F4: 15000 | G4: 5001 | H4: 2 | I4: II | J4: 1 | K4: 0.5 | L4: 1.0005 | O4: 1/3 | P4: 3
B5: Weight | C5: 25000 | D5: 3 | E5: III | F5: 25000 | G5: 15001 | H5: 3 | I5: III | J5: 2 | K5: 0.5 | L5: 1.001 | O5: 2/3 | P5: 4
B6: Weight | C6: 40000 | D6: 4 | E6: IV | F6: 40000 | G6: 25001 | H6: 4 | I6: IV | J6: 3 | K6: 0.5 | L6: 1.002 | O6: 1/2 | P6: 5
B7: Weight | C7: 60000 | D7: 5 | E7: V | F7: 60000 | G7: 40001 | H7: 5 | I7: V | J7: 5 | K7: 0.6 | L7: 1.002 | O7: 1/1 | P7: 6
B8: Weight | C8: 80000 | D8: 6 | E8: VI | F8: 80000 | G8: 60001 | H8: 6 | I8: VI | J8: 7 | K8: 0.6 | L8: 1.003 | O8: 2/1 | P8: 7
B9: Weight | C9: 100000 | D9: 7 | E9: VII | F9: 100000 | G9: 80001 | H9: 7 | I9: VII | J9: 9 | K9: 0.6 | L9: 1.004 | O9: 3/1 | P9: 8
B10: Weight | C10: 120000 | D10: 8 | E10: VIII | F10: 120000 | G10: 100001 | H10: 8 | I10: VIII | J10: 11 | K10: 0.7 | L10: 1.004 | O10: 4/1 | P10: 9
B11: Weight | C11: 140000 | D11: 9 | E11: IX | F11: 140000 | G11: 120001 | H11: 9 | I11: IX | J11: 14 | K11: 0.7 | L11: 1.005 | O11: 5/1 | P11: 10
B12: Weight | C12: 160000 | D12: 10 | E12: X | F12: 160000 | G12: 140001 | H12: 10 | I12: X | J12: 17 | K12: 0.7 | L12: 1.005 | O12: 6/1 | P12: 11
B13: Weight | C13: 180000 | D13: 11 | E13: XI | F13: 180000 | G13: 160001 | H13: 11 | I13: XI | J13: 20 | K13: 0.8 | L13: 1.005 | O13: 7/1 | P13: 12
B14: Weight | C14: 210000 | D14: 12 | E14: XII | F14: 210000 | G14: 180001 | H14: 12 | I14: XII | J14: 24 | K14: 0.8 | L14: 1.005 | O14: 8/1 | P14: 13
B15: Weight | C15: 240000 | D15: 13 | E15: XIII | F15: 240000 | G15: 210001 | H15: 13 | I15: XIII | J15: 28 | K15: 0.8 | L15: 1.005 | O15: 9/1 | P15: 14
B16: Weight | C16: 300000 | D16: 14 | E16: XIV | F16: 300000 | G16: 240001 | H16: 14 | I16: XIV | J16: 32 | K16: 0.9 | L16: 1.005 | O16: 10/1 | P16: 15
B17: Weight | C17: 350000 | D17: 15 | E17: XV | F17: 350000 | G17: 300001 | H17: 15 | I17: XV | J17: 36 | K17: 1 | L17: 1.005 | O17: 11/1 | P17: 16
B18: Weight | C18: 400000 | D18: 16 | E18: XVI | F18: 400000 | G18: 350001 | H18: 16 | I18: XVI | J18: 36 | K18: 1 | L18: 1.005 | O18: 12/1 | P18: 17
B19: Weight | C19: 450000 | D19: 17 | E19: XVII | F19: 450000 | G19: 400001 | H19: 17 | I19: XVII | J19: 36 | K19: 1 | L19: 1.005 | O19: 13/1 | P19: 18
B20: Weight | C20: 500000 | D20: 18 | E20: XVIII | F20: 500000 | G20: 450001 | H20: 18 | I20: XVIII | J20: 36 | K20: 1 | L20: 1.005 | O20: 14/1 | P20: 19
B21: Weight | C21: 600000 | D21: 19 | E21: XIX | F21: 600000 | G21: 500001 | H21: 19 | I21: XIX | J21: 36 | K21: 1 | L21: 1.005 | O21: 15/1 | P21: 20
B22: Weight | C22: 700000 | D22: 20 | E22: XX | F22: 700000 | G22: 600001 | H22: 20 | I22: XX | J22: 36 | K22: 1 | L22: 1.005 | O22: 16/1 | P22: 21
O23: 17/1 | P23: 22
B24: Computers | D24: Computer Control Type | E24: System Mass (mt) | F24: Appropriate Ship Classes | I24: SS Requirement | J24: Maximum WDF Allowed | K24: Availability | L24: Date Entered Service | M24: Cost | O24: 18/1 | P24: 23
B25: Computers | C25: FEDERATION | D25: L-12 | E25: 50 | F25: I | G25: - | H25: II | I25: 0.1 | J25: 2 | K25: LLL/90 | L25: 2236 | M25: 4 | O25: 19/1 | P25: 24
B26: Computers | C26: FEDERATION | D26: L-12A | E26: 30 | F26: I | G26: - | H26: IV | I26: 0.1 | J26: 0 | K26: LLL/100 | L26: 2265 | M26: 2 | O26: 20/1 | P26: 25
B27: Computers | C27: FEDERATION | D27: L-13 | E27: 450 | F27: I | G27: - | H27: IX | I27: 0.3 | J27: 5 | K27: LLL/88 | L27: 2241 | M27: 11
B28: Computers | C28: FEDERATION | D28: L-13A | E28: 250 | F28: I | G28: - | H28: XIV | I28: 0.2 | J28: 0 | K28: LLL/100 | L28: 2266 | M28: 4
B29: Computers | C29: FEDERATION | D29: L-14 | E29: 1050 | F29: II | G29: - | H29: XII | I29: 0.5 | J29: 10 | K29: LLL/85 | L29: 2242 | M29: 17
B30: Computers | C30: FEDERATION | D30: L-14A | E30: 550 | F30: II | G30: - | H30: XIV | I30: 0.3 | J30: 0 | K30: LLL/100 | L30: 2266 | M30: 6
B31: Computers | C31: FEDERATION | D31: M-1 | E31: 2900 | F31: IV | G31: - | H31: XV | I31: 0.9 | J31: 30 | K31: LLL/82 | L31: 2243 | M31: 48
B32: Computers | C32: FEDERATION | D32: M-1A | E32: 1500 | F32: III | G32: - | H32: XX | I32: 0.5 | J32: 0 | K32: LLL/99 | L32: 2267 | M32: 16
B33: Computers | C33: FEDERATION | D33: M-2 | E33: 3800 | F33: VII | G33: - | H33: XII | I33: 1.1 | J33: 40 | K33: LLL/74 | L33: 2244 | M33: 60
B34: Computers | C34: FEDERATION | D34: M-2A | E34: 2000 | F34: IV | G34: - | H34: XX | I34: 0.7 | J34: 0 | K34: LLL/98 | L34: 2268 | M34: 20
B35: Computers | C35: FEDERATION | D35: M-3 | E35: 4700 | F35: VIII | G35: - | H35: XV | I35: 1.5 | J35: 50 | K35: LLL/60 | L35: 2245 | M35: 71
B36: Computers | C36: FEDERATION | D36: M-3A | E36: 2350 | F36: IV | G36: - | H36: XX | I36: 1.2 | J36: 0 | K36: LLL/96 | L36: 2269 | M36: 24
B37: Computers | C37: FEDERATION | D37: M-3B | E37: 5000 | F37: VI | G37: - | H37: XV | I37: 1.6 | J37: 90 | K37: RRR/30 | L37: 2301 | M37: 140
B38: Computers | C38: FEDERATION | D38: M-4 | E38: 5750 | F38: IX | G38: - | H38: XVII | I38: 2 | J38: 70 | K38: LLL/42 | L38: 2252 | M38: 52
B39: Computers | C39: FEDERATION | D39: M-4A | E39: 2900 | F39: IV | G39: - | H39: XX | I39: 1.7 | J39: 0 | K39: LLL/90 | L39: 2269 | M39: 61
B40: Computers | C40: FEDERATION | D40: M-4B | E40: 5900 | F40: VII | G40: - | H40: XVII | I40: 2.1 | J40: 110 | K40: RRR/28 | L40: 2305 | M40: 170
B41: Computers | C41: FEDERATION | D41: M-6 | E41: 6000 | F41: X | G41: - | H41: XX | I41: 2 | J41: 90 | K41: LLL/20 | L41: 2269 | M41: 150
B42: Computers | C42: FEDERATION | D42: M-6A | E42: 6100 | F42: IX | G42: - | H42: XVII | I42: 2.1 | J42: 130 | K42: RRR/30 | L42: 2272 | M42: 200
B43: Computers | C43: FEDERATION | D43: M-7 | E43: 11500 | F43: IX | G43: - | H43: XX | I43: 3 | J43: 150 | K43: None | L43: 2280 | M43: 230
B44: Computers | C44: FEDERATION | D44: M-7A | E44: 11500 | F44: X | G44: - | H44: XX | I44: 3.1 | J44: 180 | K44: RRR/18 | L44: 2288 | M44: 276
B45: Computers | C45: FEDERATION | D45: M-8 | E45: 12000 | F45: XI | G45: - | H45: XIX | I45: 3.4 | J45: 210 | K45: RRR/09 | L45: 2284 | M45: 323
B46: Computers | C46: FEDERATION | D46: M-8A | E46: 14250 | F46: XII | G46: - | H46: XX | I46: 4.9 | J46: 240 | K46: RRR/31 | L46: 2331 | M46: 368
B47: Computers | C47: FEDERATION | D47: M-9 | E47: 18300 | F47: XII | G47: - | H47: XX | I47: 6 | J47: 260 | K47: RRR/29 | L47: 2338 | M47: 399
B48: Computers | C48: FEDERATION | D48: M-9A | E48: 17850 | F48: XIII | G48: - | H48: XX | I48: 6.1 | J48: 300 | K48: RRR/26 | L48: 2343 | M48: 460
B49: Computers | C49: FEDERATION | D49: M-10 | E49: 22500 | F49: XIV | G49: - | H49: XX | I49: 7.4 | J49: 320 | K49: RRR/19 | L49: 2347 | M49: 491
B50: Computers | C50: FEDERATION | D50: M-11 | E50: 23250 | F50: XIV | G50: - | H50: XX | I50: 7.6 | J50: 330 | K50: RRR/18 | L50: 2350 | M50: 506
B51: Computers | C51: FEDERATION | D51: M-12 | E51: 23850 | F51: XIV | G51: - | H51: XX | I51: 7.9 | J51: 340 | K51: RRR/17 | L51: 2352 | M51: 521
B52: Computers | C52: FEDERATION | D52: M-12a | E52: 19650 | F52: XIV | G52: - | H52: XX | I52: 6.4 | J52: 325 | K52: RRR/19 | L52: 2359 | M52: 498
B53: Computers | C53: FEDERATION | D53: M-13 | E53: 26100 | F53: XIV | G53: - | H53: XX | I53: 8.5 | J53: 370 | K53: RRR/14 | L53: 2355 | M53: 567
B54: Computers | C54: FEDERATION | D54: M-14 | E54: 27450 | F54: XV | G54: - | H54: XX | I54: 9 | J54: 390 | K54: RRR/6 | L54: 2357 | M54: 598
B55: Computers | C55: FEDERATION | D55: M-15 | E55: 29550 | F55: XV | G55: - | H55: XX | I55: 9.7 | J55: 420 | K55: RRR/3 | L55: 2359 | M55: 644
B56: Computers | C56: FEDERATION | D56: M-16 | E56: 32400 | F56: XVII | G56: - | H56: XX | I56: 10.6 | J56: 460 | K56: RRR/2 | L56: 2360 | M56: 705
B57: Computers | C57: FEDERATION | D57: I-1 | E57: 370 | F57: III | G57: - | H57: VI | I57: 0.2 | J57: 10 | K57: LLL/89 | L57: 2329 | M57: 18
B58: Computers | C58: FEDERATION | D58: I-2 | E58: 1550 | F58: IV | G58: - | H58: XV | I58: 1.2 | J58: 50 | K58: LLL/51 | L58: 2331 | M58: 90
B59: Computers | C59: FEDERATION | D59: I-3 | E59: 2475 | F59: V | G59: - | H59: XX | I59: 1.7 | J59: 75 | K59: RRR/43 | L59: 2332 | M59: 122
B60: Computers | C60: FEDERATION | D60: I-3a | E60: 2845 | F60: VI | G60: - | H60: XX | I60: 1.9 | J60: 85 | K60: RRR/42 | L60: 2341 | M60: 161
B61: Computers | C61: FEDERATION | D61: I-4 | E61: 3250 | F61: VI | G61: - | H61: XX | I61: 2.3 | J61: 100 | K61: RRR/41 | L61: 2334 | M61: 163
B62: Computers | C62: FEDERATION | D62: I-4a | E62: 4360 | F62: VII | G62: - | H62: XX | I62: 2.9 | J62: 130 | K62: RRR/40 | L62: 2342 | M62: 233
B63: Computers | C63: FEDERATION | D63: I-5 | E63: 4950 | F63: VIII | G63: - | H63: XX | I63: 3.4 | J63: 150 | K63: RRR/38 | L63: 2336 | M63: 245
B64: Computers | C64: FEDERATION | D64: I-5a | E64: 5540 | F64: IX | G64: - | H64: XX | I64: 3.9 | J64: 170 | K64: RRR/32 | L64: 2346 | M64: 304
B65: Computers | C65: FEDERATION | D65: I-6 | E65: 6500 | F65: X | G65: - | H65: XX | I65: 4.6 | J65: 200 | K65: RRR/31 | L65: 2338 | M65: 327
B66: Computers | C66: FEDERATION | D66: I-6a | E66: 7055 | F66: XI | G66: - | H66: XX | I66: 4.9 | J66: 215 | K66: RRR/28 | L66: 2350 | M66: 376
B67: Computers | C67: FEDERATION | D67: I-7 | E67: 7830 | F67: XI | G67: - | H67: XX | I67: 5.5 | J67: 240 | K67: RRR/26 | L67: 2340 | M67: 447
B68: Computers | C68: FEDERATION | D68: I-7a | E68: 8200 | F68: XII | G68: - | H68: XX | I68: 5.7 | J68: 250 | K68: RRR/25 | L68: 2351 | M68: 408
B69: Computers | C69: FEDERATION | D69: I-8 | E69: 9160 | F69: XII | G69: - | H69: XX | I69: 6.4 | J69: 280 | K69: RRR/23 | L69: 2342 | M69: 519
B70: Computers | C70: FEDERATION | D70: I-8a | E70: 9530 | F70: XIII | G70: - | H70: XX | I70: 6.6 | J70: 290 | K70: RRR/22 | L70: 2354 | M70: 474
B71: Computers | C71: FEDERATION | D71: I-9 | E71: 10860 | F71: XIV | G71: - | H71: XX | I71: 7.5 | J71: 330 | K71: RRR/18 | L71: 2345 | M71: 590
B72: Computers | C72: FEDERATION | D72: I-9a | E72: 11820 | F72: XIV | G72: - | H72: XX | I72: 8.2 | J72: 360 | K72: RRR/17 | L72: 2362 | M72: 662
B73: Computers | C73: FEDERATION | D73: I-9b | E73: 12595 | F73: XIV | G73: - | H73: XX | I73: 8.8 | J73: 385 | K73: RRR/15 | L73: 2371 | M73: 629
B74: Computers | C74: FEDERATION | D74: I-10 | E74: 13150 | F74: XV | G74: - | H74: XX | I74: 9.1 | J74: 400 | K74: RRR/12 | L74: 2352 | M74: 733
B75: Computers | C75: FEDERATION | D75: I-10a | E75: 14110 | F75: XV | G75: - | H75: XX | I75: 9.8 | J75: 430 | K75: RRR/10 | L75: 2368 | M75: 702
B76: Computers | C76: FEDERATION | D76: I-10b | E76: 14480 | F76: XV | G76: - | H76: XX | I76: 10 | J76: 440 | K76: RRR/8 | L76: 2370 | M76: 805
B77: Computers | C77: FEDERATION | D77: I-11 | E77: 15810 | F77: XVI | G77: - | H77: XX | I77: 10.9 | J77: 480 | K77: RRR/7 | L77: 2362 | M77: 880
B78: Computers | C78: FEDERATION | D78: I-11a | E78: 16030 | F78: XVI | G78: - | H78: XX | I78: 11.2 | J78: 490 | K78: RRR/5 | L78: 2375 | M78: 800
B79: Computers | C79: FEDERATION | D79: I-12 | E79: 16400 | F79: XVI | G79: - | H79: XX | I79: 11.4 | J79: 500 | K79: RRR/3 | L79: 2370 | M79: 817
B80: Computers | C80: FEDERATION | D80: I-12a | E80: 18320 | F80: XVII | G80: - | H80: XX | I80: 12.8 | J80: 560 | K80: RRR/1 | L80: 2381 | M80: 915
B81: Computers | C81: FEDERATION | D81: I-13 | E81: 19650 | F81: XVIII | G81: - | H81: XX | I81: 13.7 | J81: 600 | K81: RRR/1 | L81: 2372 | M81: 980
B82: Computers | C82: GORN | D82: 1AG | E82: 45 | F82: I | G82: - | H82: II | I82: 0.2 | J82: 5 | K82: RRR/23 | L82: 2 | M82: 2244
B83: Computers | C83: GORN | D83: 1BG | E83: 515 | F83: II | G83: - | H83: VI | I83: 0.8 | J83: 10 | K83: RRR/21 | L83: 4 | M83: 2250
B84: Computers | C84: GORN | D84: 1CG | E84: 1400 | F84: II | G84: - | H84: X | I84: 1.3 | J84: 20 | K84: RRR/20 | L84: 8 | M84: 2254
B85: Computers | C85: GORN | D85: 1DG | E85: 3350 | F85: IV | G85: - | H85: XIV | I85: 2.1 | J85: 40 | K85: RRR/16 | L85: 16 | M85: 2263
B86: Computers | C86: GORN | D86: 1EG | E86: 6800 | F86: IX | G86: - | H86: XVII | I86: 2.9 | J86: 80 | K86: RRR/8 | L86: 32 | M86: 2265
B87: Computers | C87: GORN | D87: 1FG | E87: 8200 | F87: X | G87: - | H87: XX | I87: 3.2 | J87: 100 | K87: III/7 | L87: 40 | M87: 2267
B88: Computers | C88: GORN | D88: 1GG | E88: 7300 | F88: VIII | G88: - | H88: XIX | I88: 2.8 | J88: 75 | K88: III/9 | L88: 30 | M88: 2267
B89: Computers | C89: GORN | D89: 1HG | E89: 8600 | F89: IX | G89: - | H89: XX | I89: 3.1 | J89: 110 | K89: III/6 | L89: 44 | M89: 2269
B90: Computers | C90: GORN | D90: 1IG | E90: 9100 | F90: XI | G90: - | H90: XX | I90: 3.4 | J90: 135 | K90: III/5 | L90: 54 | M90: 2271
B91: Computers | C91: GORN | D91: 1JG | E91: 8900 | F91: X | G91: - | H91: XX | I91: 3.6 | J91: 160 | K91: III/4 | L91: 64 | M91: 2277
B92: Computers | C92: GORN | D92: 1KG | E92: 6200 | F92: VII | G92: - | H92: XVII | I92: 2.4 | J92: 70 | K92: RRR/10 | L92: 28 | M92: 2279
B93: Computers | C93: GORN | D93: 1LG | E93: 10050 | F93: XII | G93: - | H93: XVIII | I93: 4.2 | J93: 185 | K93: III/3 | L93: 74 | M93: 2287
B94: Computers | C94: GORN | D94: 1MG | E94: 12600 | F94: XIII | G94: - | H94: XX | I94: 4.8 | J94: 205 | K94: III/1 | L94: 82 | M94: 2303
B95: Computers | C95: GORN | D95: 1NG | E95: 13700 | F95: XII | G95: - | H95: XVIII | I95: 4.9 | J95: 250 | K95: III/1 | L95: 103 | M95: 2330
B96: Computers | C96: GORN | D96: 1OG | E96: 14200 | F96: XIII | G96: - | H96: XIX | I96: 5.3 | J96: 275 | K96: III/1 | L96: 168 | M96: 2334
B97: Computers | C97: GORN | D97: 1PG | E97: 14600 | F97: XIV | G97: - | H97: XIX | I97: 6.3 | J97: 310 | K97: III/1 | L97: 175 | M97: 2342
B98: Computers | C98: GORN | D98: 1QG | E98: 15920 | F98: XIII | G98: - | H98: XVIII | I98: 7.4 | J98: 385 | K98: III/1 | L98: 223 | M98: 2350
B99: Computers | C99: GORN | D99: 1RG | E99: 17350 | F99: XIV | G99: - | H99: XIX | I99: 8.3 | J99: 400 | K99: III/1 | L99: 298 | M99: 2358
B100: Computers | C100: GORN | D100: 1SG | E100: 8500 | F100: IX | G100: - | H100: XVIII | I100: 3.8 | J100: 210 | K100: III/1 | L100: 98 | M100: 2360
B101: Computers | C101: GORN | D101: 1TG | E101: 19150 | F101: XIV | G101: - | H101: XX | I101: 7.9 | J101: 468 | K101: III/1 | L101: 315 | M101: 2365
B102: Computers | C102: GORN | D102: 1UG | E102: 21350 | F102: XV | G102: - | H102: XX | I102: 8.6 | J102: 500 | K102: III/1 | L102: 495 | M102: 2369
B103: Computers | C103: KLINGON | D103: ZD-1 | E103: 90 | F103: I | G103: - | H103: II | I103: 0.1 | J103: 2 | K103: LLL/58 | L103: 3 | M103: 2225
B104: Computers | C104: KLINGON | D104: ZD-2 | E104: 605 | F104: I | G104: - | H104: VII | I104: 0.4 | J104: 7 | K104: LLL/52 | L104: 11 | M104: 2228
B105: Computers | C105: KLINGON | D105: ZD-3 | E105: 1900 | F105: III | G105: - | H105: VII | I105: 0.8 | J105: 16 | K105: LLL/44 | L105: 16 | M105: 2232
B106: Computers | C106: KLINGON | D106: ZD-4 | E106: 3850 | F106: III | G106: - | H106: XII | I106: 1.2 | J106: 25 | K106: LLL/37 | L106: 47 | M106: 2238
B107: Computers | C107: KLINGON | D107: ZD-5 | E107: 7100 | F107: VI | G107: - | H107: XIV | I107: 2 | J107: 40 | K107: LLL/25 | L107: 70 | M107: 2241
B108: Computers | C108: KLINGON | D108: ZD-6 | E108: 9800 | F108: VII | G108: - | H108: XV | I108: 2.3 | J108: 60 | K108: LLL/16 | L108: 130 | M108: 2253
B109: Computers | C109: KLINGON | D109: ZD-7 | E109: 11550 | F109: IX | G109: - | H109: XX | I109: 2.8 | J109: 80 | K109: LLL/12 | L109: 218 | M109: 2261
B110: Computers | C110: KLINGON | D110: ZD-8 | E110: 14680 | F110: XI | G110: - | H110: XX | I110: 3.4 | J110: 140 | K110: LLL/03 | L110: 315 | M110: 2265
B111: Computers | C111: KLINGON | D111: ZD-9 | E111: 12500 | F111: IX | G111: - | H111: XX | I111: 3.2 | J111: 120 | K111: RRR/08 | L111: 270 | M111: 2285
B112: Computers | C112: KLINGON | D112: ZD-10 | E112: 17640 | F112: XII | G112: - | H112: XVII | I112: 3.6 | J112: 165 | K112: RRR/03 | L112: 372 | M112: 2287
B113: Computers | C113: KLINGON | D113: ZD-11 | E113: 19550 | F113: XII | G113: - | H113: XIX | I113: 4 | J113: 180 | K113: RRR/02 | L113: 405 | M113: 2298
B114: Computers | C114: KLINGON | D114: ZD-12 | E114: 20075 | F114: XIII | G114: - | H114: XX | I114: 4.8 | J114: 230 | K114: RRR/01 | L114: 517 | M114: 2314
B115: Computers | C115: KLINGON | D115: ZD-13 | E115: 20250 | F115: XIV | G115: - | H115: XX | I115: 5.2 | J115: 290 | K115: RRR/01 | L115: 652 | M115: 2329
B116: Computers | C116: KLINGON | D116: ZD-14 | E116: 24220 | F116: XIII | G116: - | H116: XX | I116: 6.8 | J116: 310 | K116: RRR/01 | L116: 776 | M116: 2333
B117: Computers | C117: KLINGON | D117: ZD-15 | E117: 25550 | F117: XV | G117: - | H117: XX | I117: 7.5 | J117: 325 | K117: RRR/01 | L117: 812 | M117: 2339
B118: Computers | C118: KLINGON | D118: ZD-16 | E118: 28190 | F118: XVI | G118: - | H118: XX | I118: 5.6 | J118: 360 | K118: RRR/01 | L118: 900 | M118: 2345
B119: Computers | C119: KLINGON | D119: ZD-17 | E119: 31530 | F119: XVII | G119: - | H119: XX | I119: 8.9 | J119: 400 | K119: RRR/01 | L119: 1002 | M119: 2349
B120: Computers | C120: KLINGON | D120: ZD-18 | E120: 32690 | F120: XVIII | G120: - | H120: XX | I120: 7.4 | J120: 415 | K120: RRR/01 | L120: 1038 | M120: 2351
B121: Computers | C121: KLINGON | D121: ZI-1 | E121: 4300 | F121: IV | G121: - | H121: XIV | I121: 0.9 | J121: 55 | K121: LLL/21 | L121: 138 | M121: 2340
B122: Computers | C122: KLINGON | D122: ZI-2 | E122: 7070 | F122: VII | G122: - | H122: XVI | I122: 2.1 | J122: 90 | K122: LLL/14 | L122: 226 | M122: 2341
B123: Computers | C123: KLINGON | D123: ZI-3 | E123: 11800 | F123: IX | G123: - | H123: XIX | I123: 2.4 | J123: 150 | K123: RRR/04 | L123: 376 | M123: 2343
B124: Computers | C124: KLINGON | D124: ZI-4 | E124: 13670 | F124: X | G124: - | H124: XX | I124: 4.1 | J124: 175 | K124: RRR/03 | L124: 438 | M124: 2344
B125: Computers | C125: KLINGON | D125: ZI-5 | E125: 17240 | F125: XI | G125: - | H125: XX | I125: 4.5 | J125: 220 | K125: RRR/02 | L125: 550 | M125: 2345
B126: Computers | C126: KLINGON | D126: ZI-6 | E126: 22120 | F126: XIII | G126: - | H126: XX | I126: 5.7 | J126: 280 | K126: RRR/01 | L126: 702 | M126: 2347
B127: Computers | C127: KLINGON | D127: ZI-7 | E127: 26530 | F127: XIV | G127: - | H127: XX | I127: 5.7 | J127: 340 | K127: RRR/01 | L127: 852 | M127: 2352
B128: Computers | C128: KLINGON | D128: ZI-8 | E128: 33370 | F128: XV | G128: - | H128: XX | I128: 9.7 | J128: 425 | K128: RRR/01 | L128: 1064 | M128: 2358
B129: Computers | C129: KLINGON | D129: ZI-9 | E129: 36140 | F129: XV | G129: - | H129: XIX | I129: 8.1 | J129: 460 | K129: RRR/01 | L129: 1150 | M129: 2364
B130: Computers | C130: KLINGON | D130: ZI-10 | E130: 41670 | F130: XVI | G130: - | H130: XX | I130: 9.5 | J130: 530 | K130: RRR/01 | L130: 1326 | M130: 2367
B131: Computers | C131: KLINGON | D131: ZI-11 | E131: 46560 | F131: XVII | G131: - | H131: XX | I131: 13.5 | J131: 590 | K131: RRR/01 | L131: 1476 | M131: 2368
B132: Computers | C132: KLINGON | D132: ZI-12 | E132: 49350 | F132: XVIII | G132: - | H132: XX | I132: 13.9 | J132: 625 | K132: RRR/01 | L132: 1564 | M132: 2375
B133: Computers | C133: ROMULAN | D133: R-1M | E133: 60 | F133: I | G133: - | H133: III | I133: 0.1 | J133: 3 | K133: LLL/43 | L133: 2220 | M133: 6
B134: Computers | C134: ROMULAN | D134: R-2M | E134: 690 | F134: II | G134: - | H134: IX | I134: 0.5 | J134: 8 | K134: LLL/39 | L134: 2226 | M134: 24
B135: Computers | C135: ROMULAN | D135: R-3M | E135: 1950 | F135: II | G135: - | H135: X | I135: 0.8 | J135: 25 | K135: LLL/32 | L135: 2233 | M135: 34
B136: Computers | C136: ROMULAN | D136: R-4M | E136: 3170 | F136: III | G136: - | H136: XII | I136: 1 | J136: 50 | K136: LLL/28 | L136: 2241 | M136: 70
B137: Computers | C137: ROMULAN | D137: R-5M | E137: 5250 | F137: VI | G137: - | H137: XV | I137: 1.8 | J137: 75 | K137: LLL/14 | L137: 2249 | M137: 100
B138: Computers | C138: ROMULAN | D138: R-5M-1 | E138: 5600 | F138: VII | G138: - | H138: XVI | I138: 1.9 | J138: 95 | K138: LLL/15 | L138: 2290 | M138: 127
B139: Computers | C139: ROMULAN | D139: R-6M | E139: 8100 | F139: X | G139: - | H139: XIX | I139: 2.1 | J139: 105 | K139: LLL/5 | L139: 2264 | M139: 230
B140: Computers | C140: ROMULAN | D140: R-6M-1 | E140: 9200 | F140: X | G140: - | H140: XVIII | I140: 2.2 | J140: 140 | K140: LLL/13 | L140: 2268 | M140: 306
B141: Computers | C141: ROMULAN | D141: R-7M | E141: 10304 | F141: XI | G141: - | H141: XX | I141: 3 | J141: 170 | K141: LLL/11 | L141: 2284 | M141: 372
B142: Computers | C142: ROMULAN | D142: R-7M-1 | E142: 11005 | F142: XI | G142: - | H142: XX | I142: 3.2 | J142: 195 | K142: LLL/10 | L142: 2287 | M142: 427
B143: Computers | C143: ROMULAN | D143: R-8M | E143: 11355 | F143: XII | G143: - | H143: XX | I143: 4.1 | J143: 215 | K143: LLL/9 | L143: 2290 | M143: 470
B144: Computers | C144: ROMULAN | D144: R-9M | E144: 12600 | F144: XIII | G144: - | H144: XX | I144: 4.8 | J144: 250 | K144: LLL/8 | L144: 2316 | M144: 547
B145: Computers | C145: ROMULAN | D145: R-9M-1 | E145: 14125 | F145: XII | G145: - | H145: XX | I145: 5.7 | J145: 295 | K145: LLL/6 | L145: 2325 | M145: 646
B146: Computers | C146: ROMULAN | D146: R-10M | E146: 15876 | F146: XIII | G146: - | H146: XX | I146: 6.1 | J146: 315 | K146: LLL/5 | L146: 2333 | M146: 790
B147: Computers | C147: ROMULAN | D147: R-11M | E147: 17136 | F147: XIV | G147: - | H147: XX | I147: 6.6 | J147: 340 | K147: LLL/4 | L147: 2335 | M147: 850
B148: Computers | C148: ROMULAN | D148: R-12M | E148: 19152 | F148: XV | G148: - | H148: XX | I148: 7.4 | J148: 380 | K148: LLL/2 | L148: 2340 | M148: 950
B149: Computers | C149: ROMULAN | D149: R-12M-1 | E149: 20664 | F149: XV | G149: - | H149: XVIII | I149: 7.9 | J149: 410 | K149: LLL/2 | L149: 2342 | M149: 1026
B150: Computers | C150: ROMULAN | D150: R-13M | E150: 23688 | F150: XIV | G150: - | H150: XIX | I150: 9.1 | J150: 470 | K150: LLL/2 | L150: 2345 | M150: 1176
B151: Computers | C151: ROMULAN | D151: R-14M | E151: 24696 | F151: XV | G151: - | H151: XX | I151: 9.5 | J151: 490 | K151: LLL/2 | L151: 2350 | M151: 1226
B152: Computers | C152: ROMULAN | D152: R-15M | E152: 26964 | F152: XVII | G152: - | H152: XX | I152: 10.4 | J152: 535 | K152: LLL/1 | L152: 2357 | M152: 1338
B153: Computers | C153: ROMULAN | D153: R-16M | E153: 28980 | F153: XVI | G153: - | H153: XX | I153: 11.2 | J153: 575 | K153: LLL/1 | L153: 2361 | M153: 1438
B154: Computers | C154: ROMULAN | D154: R-16M-1 | E154: 30744 | F154: XVII | G154: - | H154: XX | I154: 11.8 | J154: 610 | K154: LLL/1 | L154: 2370 | M154: 1526
B155: Computers | C155: ROMULAN | D155: R-17M | E155: 32760 | F155: XIX | G155: - | H155: XX | I155: 12.6 | J155: 650 | K155: LLL/1 | L155: 2380 | M155: 1626
B156: Computers | C156: ROMULAN | D156: R-MX-1 | E156: 5630 | F156: Station | G156: - | I156: 2.6 | J156: 80 | K156: LLL/17 | L156: 2240 | M156: 165
B157: Computers | C157: ROMULAN | D157: R-MX-2 | E157: 10560 | F157: Station | G157: - | I157: 4.7 | J157: 150 | K157: LLL/13 | L157: 2260 | M157: 309
B158: Computers | C158: ROMULAN | D158: R-MX-3 | E158: 31680 | F158: Station | G158: - | I158: 14.2 | J158: 450 | K158: LLL/2 | L158: 2290 | M158: 927
B159: Computers | C159: ROMULAN | D159: R-MX-4 | E159: 36620 | F159: Station | G159: - | I159: 16.5 | J159: 520 | K159: LLL/2 | L159: 2320 | M159: 1071
B160: Computers | C160: EDOAN | D160: ECC-1 | E160: 160 | F160: I | G160: - | H160: II | I160: 0.1 | J160: 2 | K160: RRR/99 | L160: 2220 | M160: 3
B161: Computers | C161: EDOAN | D161: ECC-2 | E161: 310 | F161: II | G161: - | H161: VII | I161: 0.2 | J161: 4 | K161: RRR/91 | L161: 2228 | M161: 5
B162: Computers | C162: EDOAN | D162: ECC-3 | E162: 550 | F162: IV | G162: - | H162: XIV | I162: 0.5 | J162: 7 | K162: RRR/86 | L162: 2236 | M162: 9
B163: Computers | C163: EDOAN | D163: ECC-4 | E163: 1180 | F163: III | G163: - | H163: XVIII | I163: 0.9 | J163: 15 | K163: RRR/69 | L163: 2240 | M163: 20
B164: Computers | C164: EDOAN | D164: ECC-5 | E164: 2730 | F164: IV | G164: - | H164: XVI | I164: 1.3 | J164: 35 | K164: RRR/59 | L164: 2245 | M164: 44
B165: Computers | C165: EDOAN | D165: ECC-6 | E165: 3930 | F165: VIII | G165: - | H165: XIX | I165: 2.1 | J165: 50 | K165: RRR/50 | L165: 2253 | M165: 63
B166: Computers | C166: EDOAN | D166: ECC-7 | E166: 5110 | F166: IX | G166: - | H166: XX | I166: 2.5 | J166: 65 | K166: RRR/45 | L166: 2266 | M166: 82
B167: Computers | C167: EDOAN | D167: ECC-8 | E167: 6240 | F167: X | G167: - | H167: XIX | I167: 3.5 | J167: 80 | K167: RRR/43 | L167: 2273 | M167: 100
B168: Computers | C168: EDOAN | D168: ECC-9 | E168: 7050 | F168: XI | G168: - | H168: XX | I168: 3.7 | J168: 90 | K168: RRR/41 | L168: 2286 | M168: 113
B169: Computers | C169: EDOAN | D169: ECC-10 | E169: 8250 | F169: VIII | G169: - | H169: XVII | I169: 2.8 | J169: 120 | K169: RRR/39 | L169: 2330 | M169: 156
B170: Computers | C170: EDOAN | D170: ECC-11 | E170: 9500 | F170: X | G170: - | H170: XVIII | I170: 3.9 | J170: 155 | K170: RRR/37 | L170: 2332 | M170: 188
B171: Computers | C171: EDOAN | D171: ECC-12 | E171: 13750 | F171: XI | G171: - | H171: XIX | I171: 5.1 | J171: 185 | K171: RRR/32 | L171: 2335 | M171: 261
B172: Computers | C172: EDOAN | D172: ECC-13 | E172: 18300 | F172: XII | G172: - | H172: XX | I172: 6 | J172: 260 | K172: RRR/26 | L172: 2337 | M172: 399
B173: Computers | C173: EDOAN | D173: ECC-14 | E173: 19650 | F173: XIV | G173: - | H173: XX | I173: 6.4 | J173: 325 | K173: RRR/17 | L173: 2357 | M173: 498
B174: Computers | C174: EDOAN | D174: EIC-1 | E174: 2475 | F174: V | G174: - | H174: XX | I174: 1.7 | J174: 75 | K174: RRR/42 | L174: 2332 | M174: 120
B175: Computers | C175: EDOAN | D175: EIC-2 | E175: 4950 | F175: VIII | G175: - | H175: XX | I175: 3.4 | J175: 150 | K175: RRR/27 | L175: 2336 | M175: 245
B176: Computers | C176: EDOAN | D176: EIC-3 | E176: 6500 | F176: X | G176: - | H176: XX | I176: 4.6 | J176: 200 | K176: RRR/23 | L176: 2337 | M176: 327
B177: Computers | C177: THOLIAN | D177: TC-1 | E177: 55 | F177: I | G177: - | H177: III | I177: 0.1 | J177: 2 | K177: RRR/18 | L177: 2234 | M177: 4
B178: Computers | C178: THOLIAN | D178: TC-2 | E178: 490 | F178: I | G178: - | H178: VIII | I178: 0.3 | J178: 17 | K178: RRR/15 | L178: 2238 | M178: 11
B179: Computers | C179: THOLIAN | D179: TC-3 | E179: 515 | F179: II | G179: - | H179: VII | I179: 0.9 | J179: 33 | K179: RRR/12 | L179: 2241 | M179: 36
B180: Computers | C180: THOLIAN | D180: TC-4 | E180: 1002 | F180: III | G180: - | H180: XI | I180: 1.2 | J180: 46 | K180: RRR/9 | L180: 2247 | M180: 57
B181: Computers | C181: THOLIAN | D181: TC-5 | E181: 5800 | F181: V | G181: - | H181: XV | I181: 1.6 | J181: 54 | K181: RRR/6 | L181: 2249 | M181: 68
B182: Computers | C182: THOLIAN | D182: TC-5A | E182: 6700 | F182: V | G182: - | H182: XVI | I182: 2 | J182: 62 | K182: RRR/5 | L182: 2252 | M182: 86
B183: Computers | C183: THOLIAN | D183: TC-6 | E183: 9850 | F183: VII | G183: - | H183: XVI | I183: 2.5 | J183: 95 | K183: RRR/4 | L183: 2262 | M183: 149
B184: Computers | C184: THOLIAN | D184: TC-7 | E184: 11500 | F184: VI | G184: - | H184: XX | I184: 3 | J184: 150 | K184: RRR/2 | L184: 2271 | M184: 234
B185: Computers | C185: THOLIAN | D185: TC-8 | E185: 12300 | F185: X | G185: - | H185: XX | I185: 3.5 | J185: 210 | K185: RRR/1 | L185: 2288 | M185: 325
B186: Computers | C186: THOLIAN | D186: TC-9 | E186: 7650 | F186: VI | G186: - | H186: XV | I186: 1.1 | J186: 120 | K186: RRR/3 | L186: 2331 | M186: 520
B187: Computers | C187: THOLIAN | D187: TC-9A | E187: 9350 | F187: VII | G187: - | H187: XVIII | I187: 1.7 | J187: 180 | K187: RRR/2 | L187: 2332 | M187: 670
B188: Computers | C188: THOLIAN | D188: TC-10 | E188: 10300 | F188: VIII | G188: - | H188: XX | I188: 2.6 | J188: 230 | K188: RRR/1 | L188: 2348 | M188: 1154
B189: Computers | C189: THOLIAN | D189: TC-11 | E189: 9880 | F189: VI | G189: - | H189: XVIII | I189: 2.2 | J189: 195 | K189: RRR/2 | L189: 2349 | M189: 870
B190: Computers | C190: THOLIAN | D190: TC-12 | E190: 13600 | F190: VIII | G190: - | H190: XIX | I190: 2.7 | J190: 250 | K190: RRR/1 | L190: 2351 | M190: 1230
B191: Computers | C191: THOLIAN | D191: TC-12A | E191: 15500 | F191: VIII | G191: - | H191: XX | I191: 2.9 | J191: 275 | K191: RRR/1 | L191: 2360 | M191: 1465
B192: Computers | C192: THOLIAN | D192: TC-13 | E192: 17260 | F192: IX | G192: - | H192: XX | I192: 3.1 | J192: 310 | K192: RRR/1 | L192: 2363 | M192: 1575
B193: Computers | C193: THOLIAN | D193: TC-14 | E193: 18500 | F193: XI | G193: - | H193: XX | I193: 3.5 | J193: 360 | K193: RRR/1 | L193: 2365 | M193: 1658
B194: Computers | C194: THOLIAN | D194: TC-15 | E194: 19700 | F194: XII | G194: - | H194: XX | I194: 4.6 | J194: 380 | K194: RRR/1 | L194: 2369 | M194: 1789
B195: Computers | C195: FERENGI | D195: CF-1 | E195: 270 | F195: I | G195: - | H195: II | I195: 0.1 | J195: 3 | K195: RRR/63 | L195: 2209 | M195: 7
B196: Computers | C196: FERENGI | D196: CF-2 | E196: 630 | F196: I | G196: - | H196: VI | I196: 0.3 | J196: 7 | K196: RRR/61 | L196: 2217 | M196: 17
B197: Computers | C197: FERENGI | D197: CF-3 | E197: 1660 | F197: II | G197: - | H197: X | I197: 0.7 | J197: 20 | K197: RRR/57 | L197: 2238 | M197: 47
B198: Computers | C198: FERENGI | D198: CF-3a | E198: 2680 | F198: III | G198: - | H198: IX | I198: 1.1 | J198: 30 | K198: RRR/53 | L198: 2242 | M198: 71
B199: Computers | C199: FERENGI | D199: CF-4 | E199: 4020 | F199: IV | G199: - | H199: XII | I199: 1.6 | J199: 45 | K199: RRR/51 | L199: 2244 | M199: 107
B200: Computers | C200: FERENGI | D200: CF-5 | E200: 4910 | F200: VI | G200: - | H200: XVI | I200: 2 | J200: 55 | K200: RRR/50 | L200: 2247 | M200: 131
... 3263 more rows

Sheet DATA SHEET 1 (hidden)
A1: WER | B1: 1 | C1: 2 | D1: 3 | E1: 4 | F1: =E1+1 -> 5 | G1: 6 | H1: 7 | I1: 8 | J1: 9 | K1: 10 | L1: 11 | M1: 12 | N1: 13 | O1: 14 | P1: 15 | Q1: 16 | R1: 17 | S1: 18 | T1: 19 | U1: 20 | V1: 21 | W1: 22 | X1: 23 | Y1: 24 | Z1: 25 | AA1: 26 | AB1: 27 | AC1: 28 | AD1: 29 | AE1: 30 | AF1: 31 | AG1: 32
A2: IER | B2: Engine
A3: Table | B3: Points | C3: 1/4 | D3: 1/3 | E3: 2/3 | F3: 1/2 | G3: 1/1 | H3: 2/1 | I3: 3/1 | J3: 4/1 | K3: 5/1 | L3: 6/1 | M3: 7/1 | N3: 8/1 | O3: 9/1 | P3: 10/1 | Q3: 11/1 | R3: 12/1 | S3: 13/1 | T3: 14/1 | U3: 15/1 | V3: 16/1 | W3: 17/1 | X3: 18/1 | Y3: 19/1 | Z3: 20/1 | AA3: 25/1 | AB3: 30/1 | AC3: 35/1 | AD3: 40/1 | AE3: 45/1 | AF3: 50/1 | AG3: 100/1
B4: 1 | C4: 6 | D4: 4 | E4: 2 | F4: 3 | G4: 1.5 | H4: 1 | I4: 0.5 | J4: 0.5 | K4: 0 | L4: 0 | M4: 0 | N4: 0 | O4: 0 | P4: 0 | Q4: 0 | R4: 0 | S4: 0 | T4: 0 | U4: 0 | V4: 0 | W4: 0 | X4: 0 | Y4: 0 | Z4: 0
B5: 2 | C5: 11.5 | D5: 8.5 | E5: 4 | F5: 6 | G5: 3 | H5: 1.5 | I5: 1 | J5: 1 | K5: 0.5 | L5: 0.5 | M5: 0.5 | N5: 0.5 | O5: 0.5 | P5: 0 | Q5: 0 | R5: 0 | S5: 0 | T5: 0 | U5: 0 | V5: 0 | W5: 0 | X5: 0 | Y5: 0 | Z5: 0
B6: 3 | C6: 17 | D6: 13 | E6: 6.5 | F6: 8.5 | G6: 4 | H6: 2 | I6: 1.5 | J6: 1 | K6: 1 | L6: 1 | M6: 0.5 | N6: 0.5 | O6: 0.5 | P6: 0.5 | Q6: 0.5 | R6: 0.5 | S6: 0.5 | T6: 0.5 | U6: 0 | V6: 0 | W6: 0 | X6: 0 | Y6: 0 | Z6: 0
B7: 4 | C7: 23 | D7: 17 | E7: 8.5 | F7: 11.5 | G7: 6 | H7: 3 | I7: 2 | J7: 1.5 | K7: 1 | L7: 1 | M7: 1 | N7: 1 | O7: 0.5 | P7: 0.5 | Q7: 0.5 | R7: 0.5 | S7: 0.5 | T7: 0.5 | U7: 0.5 | V7: 0.5 | W7: 0.5 | X7: 0.5 | Y7: 0.5 | Z7: 0
B8: 5 | C8: 28.5 | D8: 21.5 | E8: 11 | F8: 14 | G8: 7 | H8: 3.5 | I8: 2.5 | J8: 2 | K8: 1.5 | L8: 1 | M8: 1 | N8: 1 | O8: 1 | P8: 1 | Q8: 0.5 | R8: 0.5 | S8: 0.5 | T8: 0.5 | U8: 0.5 | V8: 0.5 | W8: 0.5 | X8: 0.5 | Y8: 0.5 | Z8: 0.5
B9: 6 | C9: 34 | D9: 26 | E9: 13 | F9: 17 | G9: 8.5 | H9: 4 | I9: 3 | J9: 2 | K9: 2 | L9: 1.5 | M9: 1 | N9: 1 | O9: 1 | P9: 1 | Q9: 1 | R9: 1 | S9: 0.5 | T9: 0.5 | U9: 0.5 | V9: 0.5 | W9: 0.5 | X9: 0.5 | Y9: 0.5 | Z9: 0.5
B10: 7 | C10: 40 | D10: 30 | E10: 15 | F10: 20 | G10: 10 | H10: 5 | I10: 3.5 | J10: 2.5 | K10: 2 | L10: 1.5 | M10: 1.5 | N10: 1 | O10: 1 | P10: 1 | Q10: 1 | R10: 1 | S10: 1 | T10: 1 | U10: 0.5 | V10: 0.5 | W10: 0.5 | X10: 0.5 | Y10: 0.5 | Z10: 0.5
B11: 8 | C11: 46 | D11: 34 | E11: 17 | F11: 23 | G11: 11.5 | H11: 6 | I11: 4 | J11: 3 | K11: 2 | L11: 2 | M11: 1.5 | N11: 1.5 | O11: 1 | P11: 1 | Q11: 1 | R11: 1 | S11: 1 | T11: 1 | U11: 1 | V11: 1 | W11: 0.5 | X11: 0.5 | Y11: 0.5 | Z11: 0.5
B12: 9 | C12: 51.5 | D12: 38.5 | E12: 19 | F12: 26 | G12: 13 | H12: 6.5 | I12: 4 | J12: 3 | K12: 2.5 | L12: 2 | M12: 2 | N12: 1.5 | O12: 1.5 | P12: 1 | Q12: 1 | R12: 1 | S12: 1 | T12: 1 | U12: 1 | V12: 1 | W12: 1 | X12: 1 | Y12: 0.5 | Z12: 0.5
B13: 10 | C13: 57 | D13: 43 | E13: 21.5 | F13: 28.5 | G13: 14 | H13: 7 | I13: 5 | J13: 3.5 | K13: 3 | L13: 2.5 | M13: 2 | N13: 2 | O13: 1.5 | P13: 1.5 | Q13: 1 | R13: 1 | S13: 1 | T13: 1 | U13: 1 | V13: 1 | W13: 1 | X13: 1 | Y13: 1 | Z13: 1
B14: 11 | C14: 63 | D14: 47 | E14: 23.5 | F14: 31.5 | G14: 16 | H14: 8 | I14: 5 | J14: 4 | K14: 3 | L14: 2.5 | M14: 2 | N14: 2 | O14: 2 | P14: 1.5 | Q14: 1.5 | R14: 1.5 | S14: 1 | T14: 1 | U14: 1 | V14: 1 | W14: 1 | X14: 1 | Y14: 1 | Z14: 1
B15: 12 | C15: 68.5 | D15: 51.5 | E15: 26 | F15: 34 | G15: 17 | H15: 8.5 | I15: 6 | J15: 4 | K15: 3.5 | L15: 3 | M15: 2.5 | N15: 2 | O15: 2 | P15: 2 | Q15: 1.5 | R15: 1.5 | S15: 1.5 | T15: 1 | U15: 1 | V15: 1 | W15: 1 | X15: 1 | Y15: 1 | Z15: 1
B16: 13 | C16: 74 | D16: 56 | E16: 28 | F16: 37 | G16: 18.5 | H16: 9 | I16: 6 | J16: 4.5 | K16: 4 | L16: 3 | M16: 2.5 | N16: 2.5 | O16: 2 | P16: 2 | Q16: 1.5 | R16: 1.5 | S16: 1.5 | T16: 1.5 | U16: 1 | V16: 1 | W16: 1 | X16: 1 | Y16: 1 | Z16: 1
B17: 14 | C17: 80 | D17: 60 | E17: 30 | F17: 40 | G17: 20 | H17: 10 | I17: 6.5 | J17: 5 | K17: 4 | L17: 3.5 | M17: 3 | N17: 2.5 | O17: 2 | P17: 2 | Q17: 2 | R17: 1.5 | S17: 1.5 | T17: 1.5 | U17: 1.5 | V17: 1 | W17: 1 | X17: 1 | Y17: 1 | Z17: 1
B18: 15 | C18: 86 | D18: 64 | E18: 32 | F18: 43 | G18: 21.5 | H18: 11 | I18: 7 | J18: 5.5 | K18: 4 | L18: 3.5 | M18: 3 | N18: 2.5 | O18: 2.5 | P18: 2 | Q18: 2 | R18: 2 | S18: 1.5 | T18: 1.5 | U18: 1.5 | V18: 1.5 | W18: 1 | X18: 1 | Y18: 1 | Z18: 1
B19: 16 | C19: 91.5 | D19: 68.5 | E19: 34 | F19: 46 | G19: 23 | H19: 11.5 | I19: 7.5 | J19: 6 | K19: 4.5 | L19: 4 | M19: 3 | N19: 3 | O19: 2.5 | P19: 2 | Q19: 2 | R19: 2 | S19: 2 | T19: 1.5 | U19: 1.5 | V19: 1.5 | W19: 1.5 | X19: 1 | Y19: 1 | Z19: 1
B20: 17 | C20: 97 | D20: 73 | E20: 36.5 | F20: 48.5 | G20: 24 | H20: 12 | I20: 8 | J20: 6 | K20: 5 | L20: 4 | M20: 3.5 | N20: 3 | O20: 2.5 | P20: 2.5 | Q20: 2 | R20: 2 | S20: 2 | T20: 2 | U20: 1.5 | V20: 1.5 | W20: 1.5 | X20: 1.5 | Y20: 1 | Z20: 1
B21: 18 | C21: 103 | D21: 77 | E21: 38.5 | F21: 51.5 | G21: 26 | H21: 13 | I21: 8.5 | J21: 6.5 | K21: 5 | L21: 4 | M21: 3.5 | N21: 3 | O21: 3 | P21: 2.5 | Q21: 2.5 | R21: 2 | S21: 2 | T21: 2 | U21: 2 | V21: 1.5 | W21: 1.5 | X21: 1.5 | Y21: 1.5 | Z21: 1
B22: 19 | C22: 108.5 | D22: 81.5 | E22: 41 | F22: 54 | G22: 27 | H22: 13.5 | I22: 9 | J22: 7 | K22: 5.5 | L22: 4.5 | M22: 4 | N22: 3.5 | O22: 3 | P22: 3 | Q22: 2.5 | R22: 2 | S22: 2 | T22: 2 | U22: 2 | V22: 1.5 | W22: 1.5 | X22: 1.5 | Y22: 1.5 | Z22: 1.5
B23: 20 | C23: 114 | D23: 86 | E23: 43 | F23: 57 | G23: 28.5 | H23: 14 | I23: 9.5 | J23: 7 | K23: 6 | L23: 5 | M23: 4 | N23: 3.5 | O23: 3 | P23: 3 | Q23: 2.5 | R23: 2.5 | S23: 2 | T23: 2 | U23: 2 | V23: 2 | W23: 1.5 | X23: 1.5 | Y23: 1.5 | Z23: 1.5
B24: 21 | C24: 120 | D24: 90 | E24: 45 | F24: 60 | G24: 30 | H24: 15 | I24: 10 | J24: 7.5 | K24: 6 | L24: 5 | M24: 4 | N24: 4 | O24: 3.5 | P24: 3 | Q24: 3 | R24: 2.5 | S24: 2.5 | T24: 2 | U24: 2 | V24: 2 | W24: 2 | X24: 1.5 | Y24: 1.5 | Z24: 1.5
B25: 22 | C25: 126 | D25: 94 | E25: 47 | F25: 63 | G25: 31.5 | H25: 16 | I25: 10.5 | J25: 8 | K25: 6 | L25: 5 | M25: 4.5 | N25: 4 | O25: 3.5 | P25: 3 | Q25: 3 | R25: 2.5 | S25: 2.5 | T25: 2 | U25: 2 | V25: 2 | W25: 2 | X25: 2 | Y25: 1.5 | Z25: 1.5
B26: 23 | C26: 131.5 | D26: 98.5 | E26: 49 | F26: 66 | G26: 33 | H26: 16.5 | I26: 11 | J26: 8 | K26: 6.5 | L26: 5.5 | M26: 4.5 | N26: 4 | O26: 3.5 | P26: 3 | Q26: 3 | R26: 3 | S26: 2.5 | T26: 2.5 | U26: 2 | V26: 2 | W26: 2 | X26: 2 | Y26: 2 | Z26: 1.5
B27: 24 | C27: 137 | D27: 103 | E27: 51.5 | F27: 68.5 | G27: 34 | H27: 17 | I27: 11.5 | J27: 8.5 | K27: 7 | L27: 6 | M27: 5 | N27: 4 | O27: 4 | P27: 3.5 | Q27: 3 | R27: 3 | S27: 2.5 | T27: 2.5 | U27: 2 | V27: 2 | W27: 2 | X27: 2 | Y27: 2 | Z27: 2
B28: 25 | C28: 143 | D28: 107 | E28: 53.5 | F28: 71.5 | G28: 36 | H28: 18 | I28: 12 | J28: 9 | K28: 7 | L28: 6 | M28: 5 | N28: 4.5 | O28: 4 | P28: 3.5 | Q28: 3 | R28: 3 | S28: 3 | T28: 2.5 | U28: 2.5 | V28: 2 | W28: 2 | X28: 2 | Y28: 2 | Z28: 2
B29: 26 | C29: 148.5 | D29: 111.5 | E29: 56 | F29: 74 | G29: 37 | H29: 18.5 | I29: 12.5 | J29: 9 | K29: 7.5 | L29: 6 | M29: 5.5 | N29: 4.5 | O29: 4 | P29: 4 | Q29: 3.5 | R29: 3 | S29: 3 | T29: 2.5 | U29: 2.5 | V29: 2.5 | W29: 2 | X29: 2 | Y29: 2 | Z29: 2
B30: 27 | C30: 154 | D30: 116 | E30: 58 | F30: 77 | G30: 38.5 | H30: 19 | I30: 13 | J30: 9.5 | K30: 8 | L30: 6.5 | M30: 5.5 | N30: 5 | O30: 4 | P30: 4 | Q30: 3.5 | R30: 3 | S30: 3 | T30: 3 | U30: 2.5 | V30: 2.5 | W30: 2 | X30: 2 | Y30: 2 | Z30: 2
B31: 28 | C31: 160 | D31: 120 | E31: 60 | F31: 80 | G31: 40 | H31: 20 | I31: 13.5 | J31: 10 | K31: 8 | L31: 6.5 | M31: 6 | N31: 5 | O31: 4.5 | P31: 4 | Q31: 3.5 | R31: 3.5 | S31: 3 | T31: 3 | U31: 2.5 | V31: 2.5 | W31: 2.5 | X31: 2 | Y31: 2 | Z31: 2
B32: 29 | C32: 166 | D32: 124 | E32: 62 | F32: 83 | G32: 41.5 | H32: 21 | I32: 14 | J32: 10.5 | K32: 8 | L32: 7 | M32: 6 | N32: 5 | O32: 4.5 | P32: 4 | Q32: 4 | R32: 3.5 | S32: 3 | T32: 3 | U32: 3 | V32: 2.5 | W32: 2.5 | X32: 2.5 | Y32: 2 | Z32: 2
B33: 30 | C33: 171.5 | D33: 128.5 | E33: 64 | F33: 86 | G33: 43 | H33: 21.5 | I33: 14 | J33: 11 | K33: 8.5 | L33: 7 | M33: 6 | N33: 5.5 | O33: 5 | P33: 4 | Q33: 4 | R33: 3.5 | S33: 3 | T33: 3 | U33: 3 | V33: 2.5 | W33: 2.5 | X33: 2.5 | Y33: 2 | Z33: 2
B34: 31 | C34: 177 | D34: 133 | E34: 66.5 | F34: 88.5 | G34: 44 | H34: 22 | I34: 15 | J34: 11 | K34: 9 | L34: 7.5 | M34: 6.5 | N34: 5.5 | O34: 5 | P34: 4.5 | Q34: 4 | R34: 3.5 | S34: 3.5 | T34: 3 | U34: 3 | V34: 3 | W34: 2.5 | X34: 2.5 | Y34: 2.5 | Z34: 2
B35: 32 | C35: 183 | D35: 137 | E35: 68.5 | F35: 91.5 | G35: 46 | H35: 23 | I35: 15 | J35: 11.5 | K35: 9 | L35: 7.5 | M35: 6.5 | N35: 6 | O35: 5 | P35: 4.5 | Q35: 4 | R35: 4 | S35: 3.5 | T35: 3 | U35: 3 | V35: 3 | W35: 2.5 | X35: 2.5 | Y35: 2.5 | Z35: 2
B36: 33 | C36: 188.5 | D36: 141.5 | E36: 71 | F36: 94 | G36: 47 | H36: 23.5 | I36: 16 | J36: 12 | K36: 9.5 | L36: 8 | M36: 7 | N36: 6 | O36: 5 | P36: 5 | Q36: 4 | R36: 4 | S36: 3.5 | T36: 3.5 | U36: 3 | V36: 3 | W36: 3 | X36: 2.5 | Y36: 2.5 | Z36: 2.5
B37: 34 | C37: 194 | D37: 146 | E37: 73 | F37: 97 | G37: 48.5 | H37: 24 | I37: 16 | J37: 12 | K37: 10 | L37: 8 | M37: 7 | N37: 6 | O37: 5.5 | P37: 5 | Q37: 4.5 | R37: 4 | S37: 4 | T37: 3.5 | U37: 3 | V37: 3 | W37: 3 | X37: 2.5 | Y37: 2.5 | Z37: 2.5
B38: 35 | C38: 200 | D38: 150 | E38: 75 | F38: 100 | G38: 50 | H38: 25 | I38: 16.5 | J38: 12.5 | K38: 10 | L38: 8.5 | M38: 7 | N38: 6 | O38: 5.5 | P38: 5 | Q38: 4.5 | R38: 4 | S38: 4 | T38: 3.5 | U38: 3.5 | V38: 3 | W38: 3 | X38: 3 | Y38: 2.5 | Z38: 2.5
B39: 36 | C39: 206 | D39: 154 | E39: 77 | F39: 103 | G39: 51.5 | H39: 26 | I39: 17 | J39: 13 | K39: 10 | L39: 8.5 | M39: 7.5 | N39: 6.5 | O39: 6 | P39: 5 | Q39: 4.5 | R39: 4 | S39: 4 | T39: 3.5 | U39: 3.5 | V39: 3 | W39: 3 | X39: 3 | Y39: 3 | Z39: 2.5
B40: 37 | C40: 211.5 | D40: 158.5 | E40: 79 | F40: 106 | G40: 53 | H40: 26.5 | I40: 17.5 | J40: 13 | K40: 10.5 | L40: 9 | M40: 7.5 | N40: 6.5 | O40: 6 | P40: 5 | Q40: 5 | R40: 4.5 | S40: 4 | T40: 4 | U40: 3.5 | V40: 3.5 | W40: 3 | X40: 3 | Y40: 3 | Z40: 2.5
B41: 38 | C41: 217 | D41: 163 | E41: 81.5 | F41: 108.5 | G41: 54 | H41: 27 | I41: 18 | J41: 13.5 | K41: 11 | L41: 9 | M41: 8 | N41: 7 | O41: 6 | P41: 5.5 | Q41: 5 | R41: 4.5 | S41: 4 | T41: 4 | U41: 3.5 | V41: 3.5 | W41: 3 | X41: 3 | Y41: 3 | Z41: 3
B42: 39 | C42: 223 | D42: 167 | E42: 83.5 | F42: 111.5 | G42: 56 | H42: 28 | I42: 18.5 | J42: 14 | K42: 11 | L42: 9 | M42: 8 | N42: 7 | O42: 6 | P42: 5.5 | Q42: 5 | R42: 4.5 | S42: 4 | T42: 4 | U42: 4 | V42: 3.5 | W42: 3 | X42: 3 | Y42: 3 | Z42: 3
B43: 40 | C43: 228.5 | D43: 171.5 | E43: 86 | F43: 114 | G43: 57 | H43: 28.5 | I43: 19 | J43: 14 | K43: 11.5 | L43: 9.5 | M43: 8 | N43: 7 | O43: 6.5 | P43: 6 | Q43: 5 | R43: 5 | S43: 4.5 | T43: 4 | U43: 4 | V43: 3.5 | W43: 3.5 | X43: 3 | Y43: 3 | Z43: 3
B44: 41 | C44: 234 | D44: 176 | E44: 88 | F44: 117 | G44: 58.5 | H44: 29 | I44: 19.5 | J44: 14.5 | K44: 12 | L44: 10 | M44: 8.5 | N44: 7.5 | O44: 6.5 | P44: 6 | Q44: 5.5 | R44: 5 | S44: 4.5 | T44: 4 | U44: 4 | V44: 3.5 | W44: 3.5 | X44: 3 | Y44: 3 | Z44: 3
B45: 42 | C45: 240 | D45: 180 | E45: 90 | F45: 120 | G45: 60 | H45: 30 | I45: 20 | J45: 15 | K45: 12 | L45: 10 | M45: 8.5 | N45: 7.5 | O45: 6.5 | P45: 6 | Q45: 5.5 | R45: 5 | S45: 4.5 | T45: 4 | U45: 4 | V45: 4 | W45: 3.5 | X45: 3.5 | Y45: 3 | Z45: 3
B46: 43 | C46: 246 | D46: 184 | E46: 92 | F46: 123 | G46: 61.5 | H46: 31 | I46: 20.5 | J46: 15.5 | K46: 12 | L46: 10 | M46: 9 | N46: 7.5 | O46: 7 | P46: 6 | Q46: 5.5 | R46: 5 | S46: 5 | T46: 4.5 | U46: 4 | V46: 4 | W46: 3.5 | X46: 3.5 | Y46: 3 | Z46: 3
B47: 44 | C47: 251.5 | D47: 188.5 | E47: 94 | F47: 126 | G47: 63 | H47: 31.5 | I47: 21 | J47: 16 | K47: 12.5 | L47: 10.5 | M47: 9 | N47: 8 | O47: 7 | P47: 6 | Q47: 6 | R47: 5 | S47: 5 | T47: 4.5 | U47: 4 | V47: 4 | W47: 3.5 | X47: 3.5 | Y47: 3.5 | Z47: 3
B48: 45 | C48: 257 | D48: 193 | E48: 96.5 | F48: 128.5 | G48: 64 | H48: 32 | I48: 21.5 | J48: 16 | K48: 13 | L48: 11 | M48: 9 | N48: 8 | O48: 7 | P48: 6.5 | Q48: 6 | R48: 5.5 | S48: 5 | T48: 4.5 | U48: 4 | V48: 4 | W48: 4 | X48: 3.5 | Y48: 3.5 | Z48: 3
B49: 46 | C49: 263 | D49: 197 | E49: 98.5 | F49: 131.5 | G49: 66 | H49: 33 | I49: 21.5 | J49: 16.5 | K49: 13 | L49: 11 | M49: 9.5 | N49: 8 | O49: 7.5 | P49: 6.5 | Q49: 6 | R49: 5.5 | S49: 5 | T49: 4.5 | U49: 4.5 | V49: 4 | W49: 4 | X49: 3.5 | Y49: 3.5 | Z49: 3
B50: 47 | C50: 268.5 | D50: 201.5 | E50: 101 | F50: 134 | G50: 67 | H50: 33.5 | I50: 22.5 | J50: 17 | K50: 13.5 | L50: 11 | M50: 9.5 | N50: 8.5 | O50: 7.5 | P50: 7 | Q50: 6 | R50: 5.5 | S50: 5 | T50: 5 | U50: 4.5 | V50: 4 | W50: 4 | X50: 4 | Y50: 3.5 | Z50: 3.5
B51: 48 | C51: 274 | D51: 206 | E51: 103 | F51: 137 | G51: 68.5 | H51: 34 | I51: 23 | J51: 17 | K51: 14 | L51: 11.5 | M51: 10 | N51: 8.5 | O51: 7.5 | P51: 7 | Q51: 6 | R51: 6 | S51: 5 | T51: 5 | U51: 4.5 | V51: 4 | W51: 4 | X51: 4 | Y51: 3.5 | Z51: 3.5
B52: 49 | C52: 280 | D52: 210 | E52: 105 | F52: 140 | G52: 70 | H52: 35 | I52: 23.5 | J52: 17.5 | K52: 14 | L52: 11.5 | M52: 10 | N52: 9 | O52: 8 | P52: 7 | Q52: 6.5 | R52: 6 | S52: 5.5 | T52: 5 | U52: 4.5 | V52: 4.5 | W52: 4 | X52: 4 | Y52: 3.5 | Z52: 3.5
B53: 50 | C53: 286 | D53: 214 | E53: 107 | F53: 143 | G53: 71.5 | H53: 36 | I53: 24 | J53: 18 | K53: 14 | L53: 12 | M53: 10 | N53: 9 | O53: 8 | P53: 7 | Q53: 6.5 | R53: 6 | S53: 5.5 | T53: 5 | U53: 5 | V53: 4.5 | W53: 4 | X53: 4 | Y53: 4 | Z53: 3.5
B54: 51 | C54: 291.5 | D54: 218.5 | E54: 109 | F54: 146 | G54: 73 | H54: 36.5 | I54: 24 | J54: 18 | K54: 14.5 | L54: 12 | M54: 10.5 | N54: 9 | O54: 8 | P54: 7 | Q54: 6.5 | R54: 6 | S54: 5.5 | T54: 5 | U54: 5 | V54: 4.5 | W54: 4 | X54: 4 | Y54: 4 | Z54: 3.5
B55: 52 | C55: 297 | D55: 223 | E55: 111.5 | F55: 148.5 | G55: 74 | H55: 37 | I55: 25 | J55: 18.5 | K55: 15 | L55: 12.5 | M55: 10.5 | N55: 9 | O55: 8 | P55: 7.5 | Q55: 7 | R55: 6 | S55: 6 | T55: 5.5 | U55: 5 | V55: 4.5 | W55: 4.5 | X55: 4 | Y55: 4 | Z55: 4
B56: 53 | C56: 303 | D56: 227 | E56: 113.5 | F56: 151.5 | G56: 76 | H56: 38 | I56: 25 | J56: 19 | K56: 15 | L56: 12.5 | M56: 11 | N56: 9.5 | O56: 8.5 | P56: 7.5 | Q56: 7 | R56: 6.5 | S56: 6 | T56: 5.5 | U56: 5 | V56: 5 | W56: 4.5 | X56: 4 | Y56: 4 | Z56: 4
B57: 54 | C57: 308.5 | D57: 231.5 | E57: 116 | F57: 154 | G57: 77 | H57: 38.5 | I57: 26 | J57: 19 | K57: 15.5 | L57: 13 | M57: 11 | N57: 9.5 | O57: 8.5 | P57: 8 | Q57: 7 | R57: 6.5 | S57: 6 | T57: 5.5 | U57: 5 | V57: 5 | W57: 4.5 | X57: 4 | Y57: 4 | Z57: 4
B58: 55 | C58: 314 | D58: 236 | E58: 118 | F58: 157 | G58: 78.5 | H58: 39 | I58: 26 | J58: 19.5 | K58: 16 | L58: 13 | M58: 11 | N58: 10 | O58: 9 | P58: 8 | Q58: 7 | R58: 6.5 | S58: 6 | T58: 5.5 | U58: 5 | V58: 5 | W58: 4.5 | X58: 4.5 | Y58: 4 | Z58: 4
B59: 56 | C59: 320 | D59: 240 | E59: 120 | F59: 160 | G59: 80 | H59: 40 | I59: 26.5 | J59: 20 | K59: 16 | L59: 13.5 | M59: 11.5 | N59: 10 | O59: 9 | P59: 8 | Q59: 7 | R59: 6.5 | S59: 6 | T59: 6 | U59: 5.5 | V59: 5 | W59: 5 | X59: 4.5 | Y59: 4 | Z59: 4
B60: 57 | C60: 326 | D60: 244 | E60: 122 | F60: 163 | G60: 81.5 | H60: 41 | I60: 27 | J60: 20.5 | K60: 16 | L60: 13.5 | M60: 11.5 | N60: 10 | O60: 9 | P60: 8 | Q60: 7.5 | R60: 7 | S60: 6 | T60: 6 | U60: 5.5 | V60: 5 | W60: 5 | X60: 4.5 | Y60: 4 | Z60: 4
B61: 58 | C61: 331.5 | D61: 248.5 | E61: 124 | F61: 166 | G61: 83 | H61: 41.5 | I61: 27.5 | J61: 21 | K61: 16.5 | L61: 14 | M61: 12 | N61: 10.5 | O61: 9 | P61: 8 | Q61: 7.5 | R61: 7 | S61: 6.5 | T61: 6 | U61: 5.5 | V61: 5 | W61: 5 | X61: 4.5 | Y61: 4.5 | Z61: 4
B62: 59 | C62: 337 | D62: 253 | E62: 126.5 | F62: 168.5 | G62: 84 | H62: 42 | I62: 28 | J62: 21 | K62: 17 | L62: 14 | M62: 12 | N62: 10.5 | O62: 9.5 | P62: 8.5 | Q62: 7.5 | R62: 7 | S62: 6.5 | T62: 6 | U62: 5.5 | V62: 5 | W62: 5 | X62: 4.5 | Y62: 4.5 | Z62: 4
B63: 60 | C63: 343 | D63: 257 | E63: 128.5 | F63: 171.5 | G63: 86 | H63: 43 | I63: 28.5 | J63: 21.5 | K63: 17 | L63: 14 | M63: 12 | N63: 11 | O63: 9.5 | P63: 8.5 | Q63: 8 | R63: 7 | S63: 6.5 | T63: 6 | U63: 6 | V63: 5.5 | W63: 5 | X63: 5 | Y63: 4.5 | Z63: 4
B64: 61 | C64: 348.5 | D64: 261.5 | E64: 131 | F64: 174 | G64: 87 | H64: 43.5 | I64: 29 | J64: 22 | K64: 17.5 | L64: 14.5 | M64: 12.5 | N64: 11 | O64: 9.5 | P64: 9 | Q64: 8 | R64: 7 | S64: 7 | T64: 6 | U64: 6 | V64: 5.5 | W64: 5 | X64: 5 | Y64: 4.5 | Z64: 4.5
B65: 62 | C65: 354 | D65: 266 | E65: 133 | F65: 177 | G65: 88.5 | H65: 44 | I65: 29.5 | J65: 22 | K65: 18 | L65: 15 | M65: 12.5 | N65: 11 | O65: 10 | P65: 9 | Q65: 8 | R65: 7.5 | S65: 7 | T65: 6.5 | U65: 6 | V65: 5.5 | W65: 5 | X65: 5 | Y65: 4.5 | Z65: 4.5
B66: 63 | C66: 360 | D66: 270 | E66: 135 | F66: 180 | G66: 90 | H66: 45 | I66: 30 | J66: 22.5 | K66: 18 | L66: 15 | M66: 13 | N66: 11 | O66: 10 | P66: 9 | Q66: 8 | R66: 7.5 | S66: 7 | T66: 6.5 | U66: 6 | V66: 5.5 | W66: 5 | X66: 5 | Y66: 5 | Z66: 4.5
B67: 64 | C67: 366 | D67: 274 | E67: 137 | F67: 183 | G67: 91.5 | H67: 46 | I67: 30.5 | J67: 23 | K67: 18 | L67: 15 | M67: 13 | N67: 11.5 | O67: 10 | P67: 9 | Q67: 8.5 | R67: 7.5 | S67: 7 | T67: 6.5 | U67: 6 | V67: 6 | W67: 5.5 | X67: 5 | Y67: 5 | Z67: 4.5
B68: 65 | C68: 371.5 | D68: 278.5 | E68: 139 | F68: 186 | G68: 93 | H68: 46.5 | I68: 31 | J68: 23 | K68: 18.5 | L68: 15.5 | M68: 13 | N68: 11.5 | O68: 10.5 | P68: 9 | Q68: 8.5 | R68: 8 | S68: 7 | T68: 6.5 | U68: 6 | V68: 6 | W68: 5.5 | X68: 5 | Y68: 5 | Z68: 4.5
B69: 66 | C69: 377 | D69: 283 | E69: 141.5 | F69: 188.5 | G69: 94 | H69: 47 | I69: 31.5 | J69: 23.5 | K69: 19 | L69: 16 | M69: 13.5 | N69: 12 | O69: 10.5 | P69: 9.5 | Q69: 8.5 | R69: 8 | S69: 7 | T69: 7 | U69: 6 | V69: 6 | W69: 5.5 | X69: 5 | Y69: 5 | Z69: 5
B70: 67 | C70: 383 | D70: 287 | E70: 143.5 | F70: 191.5 | G70: 96 | H70: 48 | I70: 32 | J70: 24 | K70: 19 | L70: 16 | M70: 13.5 | N70: 12 | O70: 10.5 | P70: 9.5 | Q70: 9 | R70: 8 | S70: 7.5 | T70: 7 | U70: 6.5 | V70: 6 | W70: 5.5 | X70: 5.5 | Y70: 5 | Z70: 5
B71: 68 | C71: 388.5 | D71: 291.5 | E71: 146 | F71: 194 | G71: 97 | H71: 48.5 | I71: 32.5 | J71: 24 | K71: 19.5 | L71: 16 | M71: 14 | N71: 12 | O71: 11 | P71: 10 | Q71: 9 | R71: 8 | S71: 7.5 | T71: 7 | U71: 6.5 | V71: 6 | W71: 6 | X71: 5.5 | Y71: 5 | Z71: 5
B72: 69 | C72: 394 | D72: 296 | E72: 148 | F72: 197 | G72: 98.5 | H72: 49 | I72: 32.5 | J72: 24.5 | K72: 20 | L72: 16.5 | M72: 14 | N72: 12.5 | O72: 11 | P72: 10 | Q72: 9 | R72: 8 | S72: 7.5 | T72: 7 | U72: 6.5 | V72: 6 | W72: 6 | X72: 5.5 | Y72: 5 | Z72: 5
B73: 70 | C73: 400 | D73: 300 | E73: 150 | F73: 200 | G73: 100 | H73: 50 | I73: 33.5 | J73: 25 | K73: 20 | L73: 16.5 | M73: 14 | N73: 12.5 | O73: 11 | P73: 10 | Q73: 9 | R73: 8.5 | S73: 7.5 | T73: 7 | U73: 6.5 | V73: 6 | W73: 6 | X73: 5.5 | Y73: 5 | Z73: 5
B74: 71 | C74: 406 | D74: 304 | E74: 152 | F74: 203 | G74: 101.5 | H74: 51 | I74: 34 | J74: 25.5 | K74: 20 | L74: 17 | M74: 14.5 | N74: 12.5 | O74: 11 | P74: 10 | Q74: 9 | R74: 8.5 | S74: 8 | T74: 7 | U74: 7 | V74: 6.5 | W74: 6 | X74: 5.5 | Y74: 5.5 | Z74: 5
B75: 72 | C75: 411.5 | D75: 308.5 | E75: 154 | F75: 206 | G75: 103 | H75: 51.5 | I75: 34 | J75: 26 | K75: 20.5 | L75: 17 | M75: 14.5 | N75: 13 | O75: 11.5 | P75: 10 | Q75: 9.5 | R75: 8.5 | S75: 8 | T75: 7.5 | U75: 7 | V75: 6.5 | W75: 6 | X75: 6 | Y75: 5.5 | Z75: 5
B76: 73 | C76: 417 | D76: 313 | E76: 156.5 | F76: 208.5 | G76: 104 | H76: 52 | I76: 35 | J76: 26 | K76: 21 | L76: 17.5 | M76: 15 | N76: 13 | O76: 11.5 | P76: 10.5 | Q76: 9.5 | R76: 8.5 | S76: 8 | T76: 7.5 | U76: 7 | V76: 6.5 | W76: 6 | X76: 6 | Y76: 5.5 | Z76: 5
B77: 74 | C77: 423 | D77: 317 | E77: 158.5 | F77: 211.5 | G77: 106 | H77: 53 | I77: 35 | J77: 26.5 | K77: 21 | L77: 17.5 | M77: 15 | N77: 13 | O77: 12 | P77: 10.5 | Q77: 9.5 | R77: 9 | S77: 8 | T77: 7.5 | U77: 7 | V77: 6.5 | W77: 6 | X77: 6 | Y77: 5.5 | Z77: 5
B78: 75 | C78: 428.5 | D78: 321.5 | E78: 161 | F78: 214 | G78: 107 | H78: 53.5 | I78: 36 | J78: 27 | K78: 21.5 | L78: 18 | M78: 15.5 | N78: 13.5 | O78: 12 | P78: 11 | Q78: 10 | R78: 9 | S78: 8 | T78: 7.5 | U78: 7 | V78: 6.5 | W78: 6.5 | X78: 6 | Y78: 5.5 | Z78: 5.5
B79: 76 | C79: 434 | D79: 326 | E79: 163 | F79: 217 | G79: 108.5 | H79: 54 | I79: 36 | J79: 27 | K79: 22 | L79: 18 | M79: 15.5 | N79: 13.5 | O79: 12 | P79: 11 | Q79: 10 | R79: 9 | S79: 8.5 | T79: 8 | U79: 7 | V79: 7 | W79: 6.5 | X79: 6 | Y79: 6 | Z79: 5.5
B80: 77 | C80: 440 | D80: 330 | E80: 165 | F80: 220 | G80: 110 | H80: 55 | I80: 36.5 | J80: 27.5 | K80: 22 | L80: 18.5 | M80: 16 | N80: 14 | O80: 12 | P80: 11 | Q80: 10 | R80: 9 | S80: 8.5 | T80: 8 | U80: 7.5 | V80: 7 | W80: 6.5 | X80: 6 | Y80: 6 | Z80: 5.5
B81: 78 | C81: 446 | D81: 334 | E81: 167 | F81: 223 | G81: 111.5 | H81: 56 | I81: 37 | J81: 28 | K81: 22 | L81: 18.5 | M81: 16 | N81: 14 | O81: 12.5 | P81: 11 | Q81: 10 | R81: 9 | S81: 8.5 | T81: 8 | U81: 7.5 | V81: 7 | W81: 6.5 | X81: 6 | Y81: 6 | Z81: 5.5
B82: 79 | C82: 451.5 | D82: 338.5 | E82: 169 | F82: 226 | G82: 113 | H82: 56.5 | I82: 37.5 | J82: 28 | K82: 22.5 | L82: 19 | M82: 16 | N82: 14 | O82: 12.5 | P82: 11 | Q82: 10 | R82: 9.5 | S82: 8.5 | T82: 8 | U82: 7.5 | V82: 7 | W82: 6.5 | X82: 6 | Y82: 6 | Z82: 5.5
B83: 80 | C83: 457 | D83: 343 | E83: 171.5 | F83: 228.5 | G83: 114 | H83: 57 | I83: 38 | J83: 28.5 | K83: 23 | L83: 19 | M83: 16.5 | N83: 14 | O83: 12.5 | P83: 11.5 | Q83: 10.5 | R83: 9.5 | S83: 9 | T83: 8 | U83: 7.5 | V83: 7 | W83: 7 | X83: 6.5 | Y83: 6 | Z83: 6
B84: 81 | C84: 463 | D84: 347 | E84: 173.5 | F84: 231.5 | G84: 116 | H84: 58 | I84: 38.5 | J84: 29 | K84: 23 | L84: 19 | M84: 16.5 | N84: 14.5 | O84: 13 | P84: 11.5 | Q84: 10.5 | R84: 9.5 | S84: 9 | T84: 8 | U84: 8 | V84: 7 | W84: 7 | X84: 6.5 | Y84: 6 | Z84: 6
B85: 82 | C85: 468.5 | D85: 351.5 | E85: 176 | F85: 234 | G85: 117 | H85: 58.5 | I85: 39 | J85: 29 | K85: 23.5 | L85: 19.5 | M85: 17 | N85: 14.5 | O85: 13 | P85: 12 | Q85: 10.5 | R85: 10 | S85: 9 | T85: 8.5 | U85: 8 | V85: 7.5 | W85: 7 | X85: 6.5 | Y85: 6 | Z85: 6
B86: 83 | C86: 474 | D86: 356 | E86: 178 | F86: 237 | G86: 118.5 | H86: 59 | I86: 39.5 | J86: 29.5 | K86: 24 | L86: 20 | M86: 17 | N86: 15 | O86: 13 | P86: 12 | Q86: 11 | R86: 10 | S86: 9 | T86: 8.5 | U86: 8 | V86: 7.5 | W86: 7 | X86: 6.5 | Y86: 6 | Z86: 6
B87: 84 | C87: 480 | D87: 360 | E87: 180 | F87: 240 | G87: 120 | H87: 60 | I87: 40 | J87: 30 | K87: 24 | L87: 20 | M87: 17 | N87: 15 | O87: 13.5 | P87: 12 | Q87: 11 | R87: 10 | S87: 9 | T87: 8.5 | U87: 8 | V87: 7.5 | W87: 7 | X87: 6.5 | Y87: 6.5 | Z87: 6
B88: 85 | C88: 486 | D88: 364 | E88: 182 | F88: 243 | G88: 121.5 | H88: 61 | I88: 40.5 | J88: 30.5 | K88: 24 | L88: 20 | M88: 17.5 | N88: 15 | O88: 13.5 | P88: 12 | Q88: 11 | R88: 10 | S88: 9.5 | T88: 8.5 | U88: 8 | V88: 7.5 | W88: 7 | X88: 7 | Y88: 6.5 | Z88: 6
B89: 86 | C89: 491.5 | D89: 368.5 | E89: 184 | F89: 246 | G89: 123 | H89: 61.5 | I89: 41 | J89: 31 | K89: 24.5 | L89: 20.5 | M89: 17.5 | N89: 15.5 | O89: 13.5 | P89: 12 | Q89: 11 | R89: 10 | S89: 9.5 | T89: 9 | U89: 8 | V89: 7.5 | W89: 7 | X89: 7 | Y89: 6.5 | Z89: 6
B90: 87 | C90: 497 | D90: 373 | E90: 186.5 | F90: 248.5 | G90: 124 | H90: 62 | I90: 41.5 | J90: 31 | K90: 25 | L90: 21 | M90: 18 | N90: 15.5 | O90: 14 | P90: 12.5 | Q90: 11 | R90: 10.5 | S90: 9.5 | T90: 9 | U90: 8 | V90: 8 | W90: 7.5 | X90: 7 | Y90: 6.5 | Z90: 6
B91: 88 | C91: 503 | D91: 377 | E91: 188.5 | F91: 251.5 | G91: 126 | H91: 63 | I91: 42 | J91: 31.5 | K91: 25 | L91: 21 | M91: 18 | N91: 16 | O91: 14 | P91: 12.5 | Q91: 11.5 | R91: 10.5 | S91: 9.5 | T91: 9 | U91: 8.5 | V91: 8 | W91: 7.5 | X91: 7 | Y91: 6.5 | Z91: 6
B92: 89 | C92: 508.5 | D92: 381.5 | E92: 191 | F92: 254 | G92: 127 | H92: 63.5 | I92: 42.5 | J92: 32 | K92: 25.5 | L92: 21 | M92: 18 | N92: 16 | O92: 14 | P92: 13 | Q92: 11.5 | R92: 10.5 | S92: 10 | T92: 9 | U92: 8.5 | V92: 8 | W92: 7.5 | X92: 7 | Y92: 6.5 | Z92: 6.5
B93: 90 | C93: 514 | D93: 386 | E93: 193 | F93: 257 | G93: 128.5 | H93: 64 | I93: 43 | J93: 32 | K93: 26 | L93: 21.5 | M93: 18.5 | N93: 16 | O93: 14 | P93: 13 | Q93: 11.5 | R93: 11 | S93: 10 | T93: 9 | U93: 8.5 | V93: 8 | W93: 7.5 | X93: 7 | Y93: 7 | Z93: 6.5
B94: 91 | C94: 520 | D94: 390 | E94: 195 | F94: 260 | G94: 130 | H94: 65 | I94: 43.5 | J94: 32.5 | K94: 26 | L94: 21.5 | M94: 18.5 | N94: 16 | O94: 14.5 | P94: 13 | Q94: 12 | R94: 11 | S94: 10 | T94: 9 | U94: 8.5 | V94: 8 | W94: 7.5 | X94: 7 | Y94: 7 | Z94: 6.5
B95: 92 | C95: 526 | D95: 394 | E95: 197 | F95: 263 | G95: 131.5 | H95: 66 | I95: 44 | J95: 33 | K95: 26 | L95: 22 | M95: 19 | N95: 16.5 | O95: 14.5 | P95: 13 | Q95: 12 | R95: 11 | S95: 10 | T95: 9.5 | U95: 9 | V95: 8 | W95: 8 | X95: 7.5 | Y95: 7 | Z95: 6.5
B96: 93 | C96: 531.5 | D96: 398.5 | E96: 199 | F96: 266 | G96: 133 | H96: 66.5 | I96: 44 | J96: 33 | K96: 26.5 | L96: 22 | M96: 19 | N96: 16.5 | O96: 15 | P96: 13 | Q96: 12 | R96: 11 | S96: 10 | T96: 9.5 | U96: 9 | V96: 8.5 | W96: 8 | X96: 7.5 | Y96: 7 | Z96: 6.5
B97: 94 | C97: 537 | D97: 403 | E97: 201.5 | F97: 268.5 | G97: 134 | H97: 67 | I97: 45 | J97: 33.5 | K97: 27 | L97: 22.5 | M97: 19 | N97: 17 | O97: 15 | P97: 13.5 | Q97: 12 | R97: 11 | S97: 10.5 | T97: 9.5 | U97: 9 | V97: 8.5 | W97: 8 | X97: 7.5 | Y97: 7 | Z97: 7
B98: 95 | C98: 543 | D98: 407 | E98: 203.5 | F98: 271.5 | G98: 136 | H98: 68 | I98: 45 | J98: 34 | K98: 27 | L98: 22.5 | M98: 19.5 | N98: 17 | O98: 15 | P98: 13.5 | Q98: 12.5 | R98: 11.5 | S98: 10.5 | T98: 9.5 | U98: 9 | V98: 8.5 | W98: 8 | X98: 7.5 | Y98: 7 | Z98: 7
B99: 96 | C99: 548.5 | D99: 411.5 | E99: 206 | F99: 274 | G99: 137 | H99: 68.5 | I99: 46 | J99: 34 | K99: 27.5 | L99: 23 | M99: 19.5 | N99: 17 | O99: 15 | P99: 14 | Q99: 12.5 | R99: 11.5 | S99: 10.5 | T99: 10 | U99: 9 | V99: 8.5 | W99: 8 | X99: 7.5 | Y99: 7 | Z99: 7
B100: 97 | C100: 554 | D100: 416 | E100: 208 | F100: 277 | G100: 138.5 | H100: 69 | I100: 46 | J100: 34.5 | K100: 28 | L100: 23 | M100: 20 | N100: 17.5 | O100: 15.5 | P100: 14 | Q100: 12.5 | R100: 11.5 | S100: 10.5 | T100: 10 | U100: 9 | V100: 8.5 | W100: 8 | X100: 7.5 | Y100: 7 | Z100: 7
B101: 98 | C101: 560 | D101: 420 | E101: 210 | F101: 280 | G101: 140 | H101: 70 | I101: 46.5 | J101: 35 | K101: 28 | L101: 23.5 | M101: 20 | N101: 17.5 | O101: 15.5 | P101: 14 | Q101: 13 | R101: 11.5 | S101: 11 | T101: 10 | U101: 9.5 | V101: 9 | W101: 8 | X101: 8 | Y101: 7.5 | Z101: 7
B102: 99 | C102: 566 | D102: 424 | E102: 212 | F102: 283 | G102: 141.5 | H102: 71 | I102: 47 | J102: 35.5 | K102: 28 | L102: 23.5 | M102: 20 | N102: 17.5 | O102: 16 | P102: 14 | Q102: 13 | R102: 12 | S102: 11 | T102: 10 | U102: 9.5 | V102: 9 | W102: 8.5 | X102: 8 | Y102: 7.5 | Z102: 7
B103: 100 | C103: 571.5 | D103: 428.5 | E103: 214 | F103: 286 | G103: 143 | H103: 71.5 | I103: 47.5 | J103: 36 | K103: 28.5 | L103: 24 | M103: 20.5 | N103: 18 | O103: 16 | P103: 14 | Q103: 13 | R103: 12 | S103: 11 | T103: 10 | U103: 9.5 | V103: 9 | W103: 8.5 | X103: 8 | Y103: 7.5 | Z103: 7
B104: 101 | C104: 577 | D104: 433 | E104: 216.5 | F104: 288.5 | G104: 144 | H104: 72 | I104: 48 | J104: 36 | K104: 29 | L104: 24 | M104: 20.5 | N104: 18 | O104: 16 | P104: 14.5 | Q104: 13 | R104: 12 | S104: 11 | T104: 10.5 | U104: 9.5 | V104: 9 | W104: 8.5 | X104: 8 | Y104: 7.5 | Z104: 7
B105: 102 | C105: 583 | D105: 437 | E105: 218.5 | F105: 291.5 | G105: 146 | H105: 73 | I105: 48.5 | J105: 36.5 | K105: 29 | L105: 24 | M105: 21 | N105: 18 | O105: 16 | P105: 14.5 | Q105: 13 | R105: 12 | S105: 11 | T105: 10.5 | U105: 10 | V105: 9 | W105: 8.5 | X105: 8 | Y105: 7.5 | Z105: 7
B106: 103 | C106: 588.5 | D106: 441.5 | E106: 221 | F106: 294 | G106: 147 | H106: 73.5 | I106: 49 | J106: 37 | K106: 29.5 | L106: 24.5 | M106: 21 | N106: 18.5 | O106: 16.5 | P106: 15 | Q106: 13.5 | R106: 12 | S106: 11.5 | T106: 10.5 | U106: 10 | V106: 9 | W106: 8.5 | X106: 8 | Y106: 8 | Z106: 7.5
B107: 104 | C107: 594 | D107: 446 | E107: 223 | F107: 297 | G107: 148.5 | H107: 74 | I107: 49.5 | J107: 37 | K107: 30 | L107: 25 | M107: 21 | N107: 18.5 | O107: 16.5 | P107: 15 | Q107: 13.5 | R107: 12.5 | S107: 11.5 | T107: 10.5 | U107: 10 | V107: 9 | W107: 9 | X107: 8 | Y107: 8 | Z107: 7.5
B108: 105 | C108: 600 | D108: 450 | E108: 225 | F108: 300 | G108: 150 | H108: 75 | I108: 50 | J108: 37.5 | K108: 30 | L108: 25 | M108: 21.5 | N108: 19 | O108: 16.5 | P108: 15 | Q108: 13.5 | R108: 12.5 | S108: 11.5 | T108: 11 | U108: 10 | V108: 9.5 | W108: 9 | X108: 8.5 | Y108: 8 | Z108: 7.5
B109: 106 | C109: 606 | D109: 454 | E109: 227 | F109: 303 | G109: 151.5 | H109: 76 | I109: 50.5 | J109: 38 | K109: 30 | L109: 25 | M109: 21.5 | N109: 19 | O109: 17 | P109: 15 | Q109: 14 | R109: 12.5 | S109: 11.5 | T109: 11 | U109: 10 | V109: 9.5 | W109: 9 | X109: 8.5 | Y109: 8 | Z109: 7.5
B110: 107 | C110: 611.5 | D110: 458.5 | E110: 229 | F110: 306 | G110: 153 | H110: 76.5 | I110: 51 | J110: 38 | K110: 30.5 | L110: 25.5 | M110: 22 | N110: 19 | O110: 17 | P110: 15 | Q110: 14 | R110: 13 | S110: 12 | T110: 11 | U110: 10 | V110: 9.5 | W110: 9 | X110: 8.5 | Y110: 8 | Z110: 7.5
B111: 108 | C111: 617 | D111: 463 | E111: 231.5 | F111: 308.5 | G111: 154 | H111: 77 | I111: 51.5 | J111: 38.5 | K111: 31 | L111: 26 | M111: 22 | N111: 19 | O111: 17 | P111: 15.5 | Q111: 14 | R111: 13 | S111: 12 | T111: 11 | U111: 10 | V111: 9.5 | W111: 9 | X111: 8.5 | Y111: 8 | Z111: 8
B112: 109 | C112: 623 | D112: 467 | E112: 233.5 | F112: 311.5 | G112: 156 | H112: 78 | I112: 52 | J112: 39 | K112: 31 | L112: 26 | M112: 22 | N112: 19.5 | O112: 17.5 | P112: 15.5 | Q112: 14 | R112: 13 | S112: 12 | T112: 11 | U112: 10.5 | V112: 10 | W112: 9 | X112: 8.5 | Y112: 8 | Z112: 8
B113: 110 | C113: 628.5 | D113: 471.5 | E113: 236 | F113: 314 | G113: 157 | H113: 78.5 | I113: 52.5 | J113: 39 | K113: 31.5 | L113: 26 | M113: 22.5 | N113: 19.5 | O113: 17.5 | P113: 16 | Q113: 14 | R113: 13 | S113: 12 | T113: 11 | U113: 10.5 | V113: 10 | W113: 9 | X113: 9 | Y113: 8 | Z113: 8
B114: 111 | C114: 634 | D114: 476 | E114: 238 | F114: 317 | G114: 158.5 | H114: 79 | I114: 53 | J114: 39.5 | K114: 32 | L114: 26.5 | M114: 22.5 | N114: 20 | O114: 17.5 | P114: 16 | Q114: 14.5 | R114: 13 | S114: 12 | T114: 11.5 | U114: 10.5 | V114: 10 | W114: 9.5 | X114: 9 | Y114: 8.5 | Z114: 8
B115: 112 | C115: 640 | D115: 480 | E115: 240 | F115: 320 | G115: 160 | H115: 80 | I115: 53.5 | J115: 40 | K115: 32 | L115: 26.5 | M115: 23 | N115: 20 | O115: 18 | P115: 16 | Q115: 14.5 | R115: 13.5 | S115: 12.5 | T115: 11.5 | U115: 10.5 | V115: 10 | W115: 9.5 | X115: 9 | Y115: 8.5 | Z115: 8
B116: 113 | C116: 646 | D116: 484 | E116: 242 | F116: 323 | G116: 161.5 | H116: 81 | I116: 54 | J116: 40.5 | K116: 32 | L116: 27 | M116: 23 | N116: 20 | O116: 18 | P116: 16 | Q116: 14.5 | R116: 13.5 | S116: 12.5 | T116: 11.5 | U116: 11 | V116: 10 | W116: 9.5 | X116: 9 | Y116: 8.5 | Z116: 8
B117: 114 | C117: 651.5 | D117: 488.5 | E117: 244 | F117: 326 | G117: 163 | H117: 81.5 | I117: 54 | J117: 41 | K117: 32.5 | L117: 27 | M117: 23 | N117: 20.5 | O117: 18 | P117: 16 | Q117: 15 | R117: 13.5 | S117: 12.5 | T117: 11.5 | U117: 11 | V117: 10 | W117: 9.5 | X117: 9 | Y117: 8.5 | Z117: 8
B118: 115 | C118: 657 | D118: 493 | E118: 246.5 | F118: 328.5 | G118: 164 | H118: 82 | I118: 55 | J118: 41 | K118: 33 | L118: 27.5 | M118: 23.5 | N118: 20.5 | O118: 18 | P118: 16.5 | Q118: 15 | R118: 13.5 | S118: 12.5 | T118: 12 | U118: 11 | V118: 10 | W118: 9.5 | X118: 9 | Y118: 8.5 | Z118: 8
B119: 116 | C119: 663 | D119: 497 | E119: 248.5 | F119: 331.5 | G119: 166 | H119: 83 | I119: 55 | J119: 41.5 | K119: 33 | L119: 27.5 | M119: 23.5 | N119: 21 | O119: 18.5 | P119: 16.5 | Q119: 15 | R119: 14 | S119: 13 | T119: 12 | U119: 11 | V119: 10.5 | W119: 10 | X119: 9 | Y119: 9 | Z119: 8
B120: 117 | C120: 668.5 | D120: 501.5 | E120: 251 | F120: 334 | G120: 167 | H120: 83.5 | I120: 56 | J120: 42 | K120: 33.5 | L120: 28 | M120: 24 | N120: 21 | O120: 18.5 | P120: 17 | Q120: 15 | R120: 14 | S120: 13 | T120: 12 | U120: 11 | V120: 10.5 | W120: 10 | X120: 9 | Y120: 9 | Z120: 8.5
B121: 118 | C121: 674 | D121: 506 | E121: 253 | F121: 337 | G121: 168.5 | H121: 84 | I121: 56 | J121: 42 | K121: 34 | L121: 28 | M121: 24 | N121: 21 | O121: 19 | P121: 17 | Q121: 15.5 | R121: 14 | S121: 13 | T121: 12 | U121: 11 | V121: 10.5 | W121: 10 | X121: 9.5 | Y121: 9 | Z121: 8.5
B122: 119 | C122: 680 | D122: 510 | E122: 255 | F122: 340 | G122: 170 | H122: 85 | I122: 56.5 | J122: 42.5 | K122: 34 | L122: 28.5 | M122: 24 | N122: 21 | O122: 19 | P122: 17 | Q122: 15.5 | R122: 14 | S122: 13 | T122: 12 | U122: 11.5 | V122: 10.5 | W122: 10 | X122: 9.5 | Y122: 9 | Z122: 8.5
B123: 120 | C123: 686 | D123: 514 | E123: 257 | F123: 343 | G123: 171.5 | H123: 86 | I123: 57 | J123: 43 | K123: 34 | L123: 28.5 | M123: 24.5 | N123: 21.5 | O123: 19 | P123: 17 | Q123: 15.5 | R123: 14 | S123: 13 | T123: 12 | U123: 11.5 | V123: 11 | W123: 10 | X123: 9.5 | Y123: 9 | Z123: 8.5
B124: 121 | C124: 691.5 | D124: 518.5 | E124: 259 | F124: 346 | G124: 173 | H124: 86.5 | I124: 57.5 | J124: 43 | K124: 34.5 | L124: 29 | M124: 24.5 | N124: 21.5 | O124: 19 | P124: 17 | Q124: 16 | R124: 14.5 | S124: 13 | T124: 12.5 | U124: 11.5 | V124: 11 | W124: 10 | X124: 9.5 | Y124: 9 | Z124: 8.5
B125: 122 | C125: 697 | D125: 523 | E125: 261.5 | F125: 348.5 | G125: 174 | H125: 87 | I125: 58 | J125: 43.5 | K125: 35 | L125: 29 | M125: 25 | N125: 22 | O125: 19.5 | P125: 17.5 | Q125: 16 | R125: 14.5 | S125: 13.5 | T125: 12.5 | U125: 11.5 | V125: 11 | W125: 10 | X125: 9.5 | Y125: 9 | Z125: 9
B126: 123 | C126: 703 | D126: 527 | E126: 263.5 | F126: 351.5 | G126: 176 | H126: 88 | I126: 58.5 | J126: 44 | K126: 35 | L126: 29 | M126: 25 | N126: 22 | O126: 19.5 | P126: 17.5 | Q126: 16 | R126: 14.5 | S126: 13.5 | T126: 12.5 | U126: 12 | V126: 11 | W126: 10.5 | X126: 10 | Y126: 9 | Z126: 9
B127: 124 | C127: 708.5 | D127: 531.5 | E127: 266 | F127: 354 | G127: 177 | H127: 88.5 | I127: 59 | J127: 44 | K127: 35.5 | L127: 29.5 | M127: 25.5 | N127: 22 | O127: 19.5 | P127: 18 | Q127: 16 | R127: 15 | S127: 13.5 | T127: 12.5 | U127: 12 | V127: 11 | W127: 10.5 | X127: 10 | Y127: 9.5 | Z127: 9
B128: 125 | C128: 714 | D128: 536 | E128: 268 | F128: 357 | G128: 178.5 | H128: 89 | I128: 59.5 | J128: 44.5 | K128: 36 | L128: 30 | M128: 25.5 | N128: 22.5 | O128: 20 | P128: 18 | Q128: 16 | R128: 15 | S128: 14 | T128: 13 | U128: 12 | V128: 11 | W128: 10.5 | X128: 10 | Y128: 9.5 | Z128: 9
B129: 126 | C129: 720 | D129: 540 | E129: 270 | F129: 360 | G129: 180 | H129: 90 | I129: 60 | J129: 45 | K129: 36 | L129: 30 | M129: 26 | N129: 22.5 | O129: 20 | P129: 18 | Q129: 16.5 | R129: 15 | S129: 14 | T129: 13 | U129: 12 | V129: 11 | W129: 10.5 | X129: 10 | Y129: 9.5 | Z129: 9
B130: 127 | C130: 726 | D130: 544 | E130: 272 | F130: 363 | G130: 181.5 | H130: 91 | I130: 60.5 | J130: 45.5 | K130: 36 | L130: 30 | M130: 26 | N130: 22.5 | O130: 20 | P130: 18 | Q130: 16.5 | R130: 15 | S130: 14 | T130: 13 | U130: 12 | V130: 11.5 | W130: 10.5 | X130: 10 | Y130: 9.5 | Z130: 9
B131: 128 | C131: 731.5 | D131: 548.5 | E131: 274 | F131: 366 | G131: 183 | H131: 91.5 | I131: 61 | J131: 46 | K131: 36.5 | L131: 30.5 | M131: 26 | N131: 23 | O131: 20.5 | P131: 18 | Q131: 16.5 | R131: 15 | S131: 14 | T131: 13 | U131: 12 | V131: 11.5 | W131: 11 | X131: 10 | Y131: 9.5 | Z131: 9
B132: 129 | C132: 737 | D132: 553 | E132: 276.5 | F132: 368.5 | G132: 184 | H132: 92 | I132: 61.5 | J132: 46 | K132: 37 | L132: 31 | M132: 26.5 | N132: 23 | O132: 20.5 | P132: 18.5 | Q132: 17 | R132: 15.5 | S132: 14 | T132: 13 | U132: 12 | V132: 11.5 | W132: 11 | X132: 10 | Y132: 9.5 | Z132: 9
B133: 130 | C133: 743 | D133: 557 | E133: 278.5 | F133: 371.5 | G133: 186 | H133: 93 | I133: 62 | J133: 46.5 | K133: 37 | L133: 31 | M133: 26.5 | N133: 23 | O133: 20.5 | P133: 18.5 | Q133: 17 | R133: 15.5 | S133: 14 | T133: 13 | U133: 12.5 | V133: 11.5 | W133: 11 | X133: 10.5 | Y133: 10 | Z133: 9
B134: 131 | C134: 748.5 | D134: 561.5 | E134: 281 | F134: 374 | G134: 187 | H134: 93.5 | I134: 62.5 | J134: 47 | K134: 37.5 | L134: 31 | M134: 27 | N134: 23.5 | O134: 21 | P134: 19 | Q134: 17 | R134: 15.5 | S134: 14.5 | T134: 13.5 | U134: 12.5 | V134: 11.5 | W134: 11 | X134: 10.5 | Y134: 10 | Z134: 9.5
B135: 132 | C135: 754 | D135: 566 | E135: 283 | F135: 377 | G135: 188.5 | H135: 94 | I135: 63 | J135: 47 | K135: 38 | L135: 31.5 | M135: 27 | N135: 23.5 | O135: 21 | P135: 19 | Q135: 17 | R135: 16 | S135: 14.5 | T135: 13.5 | U135: 12.5 | V135: 12 | W135: 11 | X135: 10.5 | Y135: 10 | Z135: 9.5
B136: 133 | C136: 760 | D136: 570 | E136: 285 | F136: 380 | G136: 190 | H136: 95 | I136: 63.5 | J136: 47.5 | K136: 38 | L136: 31.5 | M136: 27 | N136: 24 | O136: 21 | P136: 19 | Q136: 17 | R136: 16 | S136: 14.5 | T136: 13.5 | U136: 12.5 | V136: 12 | W136: 11 | X136: 10.5 | Y136: 10 | Z136: 9.5
B137: 134 | C137: 766 | D137: 574 | E137: 287 | F137: 383 | G137: 191.5 | H137: 96 | I137: 64 | J137: 48 | K137: 38 | L137: 32 | M137: 27.5 | N137: 24 | O137: 21 | P137: 19 | Q137: 17.5 | R137: 16 | S137: 15 | T137: 13.5 | U137: 13 | V137: 12 | W137: 11 | X137: 10.5 | Y137: 10 | Z137: 9.5
B138: 135 | C138: 771.5 | D138: 578.5 | E138: 289 | F138: 386 | G138: 193 | H138: 96.5 | I138: 64 | J138: 48 | K138: 38.5 | L138: 32 | M138: 27.5 | N138: 24 | O138: 21.5 | P138: 19 | Q138: 17.5 | R138: 16 | S138: 15 | T138: 14 | U138: 13 | V138: 12 | W138: 11.5 | X138: 11 | Y138: 10 | Z138: 9.5
B139: 136 | C139: 777 | D139: 583 | E139: 291.5 | F139: 388.5 | G139: 194 | H139: 97 | I139: 65 | J139: 48.5 | K139: 39 | L139: 32.5 | M139: 28 | N139: 24 | O139: 21.5 | P139: 19.5 | Q139: 17.5 | R139: 16 | S139: 15 | T139: 14 | U139: 13 | V139: 12 | W139: 11.5 | X139: 11 | Y139: 10 | Z139: 10
B140: 137 | C140: 783 | D140: 587 | E140: 293.5 | F140: 391.5 | G140: 196 | H140: 98 | I140: 65 | J140: 49 | K140: 39 | L140: 32.5 | M140: 28 | N140: 24.5 | O140: 22 | P140: 19.5 | Q140: 18 | R140: 16.5 | S140: 15 | T140: 14 | U140: 13 | V140: 12 | W140: 11.5 | X140: 11 | Y140: 10.5 | Z140: 10
B141: 138 | C141: 788.5 | D141: 591.5 | E141: 296 | F141: 394 | G141: 197 | H141: 98.5 | I141: 66 | J141: 49 | K141: 39.5 | L141: 33 | M141: 28 | N141: 24.5 | O141: 22 | P141: 20 | Q141: 18 | R141: 16.5 | S141: 15 | T141: 14 | U141: 13 | V141: 12.5 | W141: 11.5 | X141: 11 | Y141: 10.5 | Z141: 10
B142: 139 | C142: 794 | D142: 596 | E142: 298 | F142: 397 | G142: 198.5 | H142: 99 | I142: 66 | J142: 49.5 | K142: 40 | L142: 33 | M142: 28.5 | N142: 25 | O142: 22 | P142: 20 | Q142: 18 | R142: 16.5 | S142: 15 | T142: 14 | U142: 13 | V142: 12.5 | W142: 11.5 | X142: 11 | Y142: 10.5 | Z142: 10
B143: 140 | C143: 800 | D143: 600 | E143: 300 | F143: 400 | G143: 200 | H143: 100 | I143: 66.5 | J143: 50 | K143: 40 | L143: 33.5 | M143: 28.5 | N143: 25 | O143: 22 | P143: 20 | Q143: 18 | R143: 16.5 | S143: 15.5 | T143: 14 | U143: 13.5 | V143: 12.5 | W143: 12 | X143: 11 | Y143: 10.5 | Z143: 10
B144: 141 | C144: 806 | D144: 604 | E144: 302 | F144: 403 | G144: 201.5 | H144: 101 | I144: 67 | J144: 50.5 | K144: 40 | L144: 33.5 | M144: 29 | N144: 25 | O144: 22.5 | P144: 20 | Q144: 18.5 | R144: 17 | S144: 15.5 | T144: 14.5 | U144: 13.5 | V144: 12.5 | W144: 12 | X144: 11 | Y144: 10.5 | Z144: 10
B145: 142 | C145: 811.5 | D145: 608.5 | E145: 304 | F145: 406 | G145: 203 | H145: 101.5 | I145: 67.5 | J145: 51 | K145: 40.5 | L145: 34 | M145: 29 | N145: 25.5 | O145: 22.5 | P145: 20 | Q145: 18.5 | R145: 17 | S145: 15.5 | T145: 14.5 | U145: 13.5 | V145: 12.5 | W145: 12 | X145: 11 | Y145: 10.5 | Z145: 10
B146: 143 | C146: 817 | D146: 613 | E146: 306.5 | F146: 408.5 | G146: 204 | H146: 102 | I146: 68 | J146: 51 | K146: 41 | L146: 34 | M146: 29 | N146: 25.5 | O146: 22.5 | P146: 20.5 | Q146: 18.5 | R146: 17 | S146: 16 | T146: 14.5 | U146: 13.5 | V146: 13 | W146: 12 | X146: 11.5 | Y146: 11 | Z146: 10
B147: 144 | C147: 823 | D147: 617 | E147: 308.5 | F147: 411.5 | G147: 206 | H147: 103 | I147: 68.5 | J147: 51.5 | K147: 41 | L147: 34 | M147: 29.5 | N147: 26 | O147: 23 | P147: 20.5 | Q147: 19 | R147: 17 | S147: 16 | T147: 14.5 | U147: 14 | V147: 13 | W147: 12 | X147: 11.5 | Y147: 11 | Z147: 10
B148: 145 | C148: 828.5 | D148: 621.5 | E148: 311 | F148: 414 | G148: 207 | H148: 103.5 | I148: 69 | J148: 52 | K148: 41.5 | L148: 34.5 | M148: 29.5 | N148: 26 | O148: 23 | P148: 21 | Q148: 19 | R148: 17 | S148: 16 | T148: 15 | U148: 14 | V148: 13 | W148: 12 | X148: 11.5 | Y148: 11 | Z148: 10.5
B149: 146 | C149: 834 | D149: 626 | E149: 313 | F149: 417 | G149: 208.5 | H149: 104 | I149: 69.5 | J149: 52 | K149: 42 | L149: 35 | M149: 30 | N149: 26 | O149: 23 | P149: 21 | Q149: 19 | R149: 17.5 | S149: 16 | T149: 15 | U149: 14 | V149: 13 | W149: 12 | X149: 11.5 | Y149: 11 | Z149: 10.5
B150: 147 | C150: 840 | D150: 630 | E150: 315 | F150: 420 | G150: 210 | H150: 105 | I150: 70 | J150: 52.5 | K150: 42 | L150: 35 | M150: 30 | N150: 26 | O150: 23.5 | P150: 21 | Q150: 19 | R150: 17.5 | S150: 16 | T150: 15 | U150: 14 | V150: 13 | W150: 12.5 | X150: 11.5 | Y150: 11 | Z150: 10.5
B151: 148 | C151: 846 | D151: 634 | E151: 317 | F151: 423 | G151: 211.5 | H151: 106 | I151: 70.5 | J151: 53 | K151: 42 | L151: 35 | M151: 30 | N151: 26.5 | O151: 23.5 | P151: 21 | Q151: 19 | R151: 17.5 | S151: 16 | T151: 15 | U151: 14 | V151: 13 | W151: 12.5 | X151: 12 | Y151: 11 | Z151: 10.5
B152: 149 | C152: 851.5 | D152: 638.5 | E152: 319 | F152: 426 | G152: 213 | H152: 106.5 | I152: 71 | J152: 53 | K152: 42.5 | L152: 35.5 | M152: 30.5 | N152: 26.5 | O152: 23.5 | P152: 21 | Q152: 19.5 | R152: 18 | S152: 16.5 | T152: 15 | U152: 14 | V152: 13.5 | W152: 12.5 | X152: 12 | Y152: 11 | Z152: 10.5
B153: 150 | C153: 857 | D153: 643 | E153: 321.5 | F153: 428.5 | G153: 214 | H153: 107 | I153: 71.5 | J153: 53.5 | K153: 43 | L153: 36 | M153: 30.5 | N153: 27 | O153: 24 | P153: 21.5 | Q153: 19.5 | R153: 18 | S153: 16.5 | T153: 15.5 | U153: 14 | V153: 13.5 | W153: 12.5 | X153: 12 | Y153: 11 | Z153: 11
B154: 151 | C154: 863 | D154: 647 | E154: 323.5 | F154: 431.5 | G154: 216 | H154: 108 | I154: 72 | J154: 54 | K154: 43 | L154: 36 | M154: 31 | N154: 27 | O154: 24 | P154: 21.5 | Q154: 19.5 | R154: 18 | S154: 16.5 | T154: 15.5 | U154: 14.5 | V154: 13.5 | W154: 12.5 | X154: 12 | Y154: 11.5 | Z154: 11
B155: 152 | C155: 868.5 | D155: 651.5 | E155: 326 | F155: 434 | G155: 217 | H155: 108.5 | I155: 72.5 | J155: 54 | K155: 43.5 | L155: 36 | M155: 31 | N155: 27 | O155: 24 | P155: 22 | Q155: 20 | R155: 18 | S155: 17 | T155: 15.5 | U155: 14.5 | V155: 13.5 | W155: 13 | X155: 12 | Y155: 11.5 | Z155: 11
B156: 153 | C156: 874 | D156: 656 | E156: 328 | F156: 437 | G156: 218.5 | H156: 109 | I156: 73 | J156: 54.5 | K156: 44 | L156: 36.5 | M156: 31 | N156: 27.5 | O156: 24 | P156: 22 | Q156: 20 | R156: 18 | S156: 17 | T156: 15.5 | U156: 14.5 | V156: 13.5 | W156: 13 | X156: 12 | Y156: 11.5 | Z156: 11
B157: 154 | C157: 880 | D157: 660 | E157: 330 | F157: 440 | G157: 220 | H157: 110 | I157: 73.5 | J157: 55 | K157: 44 | L157: 36.5 | M157: 31.5 | N157: 27.5 | O157: 24.5 | P157: 22 | Q157: 20 | R157: 18.5 | S157: 17 | T157: 16 | U157: 14.5 | V157: 14 | W157: 13 | X157: 12 | Y157: 11.5 | Z157: 11
B158: 155 | C158: 886 | D158: 664 | E158: 332 | F158: 443 | G158: 221.5 | H158: 111 | I158: 74 | J158: 55.5 | K158: 44 | L158: 37 | M158: 31.5 | N158: 27.5 | O158: 24.5 | P158: 22 | Q158: 20 | R158: 18.5 | S158: 17 | T158: 16 | U158: 15 | V158: 14 | W158: 13 | X158: 12.5 | Y158: 11.5 | Z158: 11
B159: 156 | C159: 891.5 | D159: 668.5 | E159: 334 | F159: 446 | G159: 223 | H159: 111.5 | I159: 74 | J159: 56 | K159: 44.5 | L159: 37 | M159: 32 | N159: 28 | O159: 25 | P159: 22 | Q159: 20 | R159: 18.5 | S159: 17 | T159: 16 | U159: 15 | V159: 14 | W159: 13 | X159: 12.5 | Y159: 12 | Z159: 11
B160: 157 | C160: 897 | D160: 673 | E160: 336.5 | F160: 448.5 | G160: 224 | H160: 112 | I160: 75 | J160: 56 | K160: 45 | L160: 37.5 | M160: 32 | N160: 28 | O160: 25 | P160: 22.5 | Q160: 20.5 | R160: 18.5 | S160: 17 | T160: 16 | U160: 15 | V160: 14 | W160: 13 | X160: 12.5 | Y160: 12 | Z160: 11
B161: 158 | C161: 903 | D161: 677 | E161: 338.5 | F161: 451.5 | G161: 226 | H161: 113 | I161: 75 | J161: 56.5 | K161: 45 | L161: 37.5 | M161: 32 | N161: 28 | O161: 25 | P161: 22.5 | Q161: 20.5 | R161: 19 | S161: 17.5 | T161: 16 | U161: 15 | V161: 14 | W161: 13 | X161: 12.5 | Y161: 12 | Z161: 11
B162: 159 | C162: 908.5 | D162: 681.5 | E162: 341 | F162: 454 | G162: 227 | H162: 113.5 | I162: 76 | J162: 57 | K162: 45.5 | L162: 38 | M162: 32.5 | N162: 28.5 | O162: 25 | P162: 23 | Q162: 20.5 | R162: 19 | S162: 17.5 | T162: 16 | U162: 15 | V162: 14 | W162: 13.5 | X162: 12.5 | Y162: 12 | Z162: 11.5
B163: 160 | C163: 914 | D163: 686 | E163: 343 | F163: 457 | G163: 228.5 | H163: 114 | I163: 76 | J163: 57 | K163: 46 | L163: 38 | M163: 32.5 | N163: 28.5 | O163: 25.5 | P163: 23 | Q163: 21 | R163: 19 | S163: 17.5 | T163: 16.5 | U163: 15 | V163: 14 | W163: 13.5 | X163: 12.5 | Y163: 12 | Z163: 11.5
B164: 161 | C164: 920 | D164: 690 | E164: 345 | F164: 460 | G164: 230 | H164: 115 | I164: 76.5 | J164: 57.5 | K164: 46 | L164: 38.5 | M164: 33 | N164: 29 | O164: 25.5 | P164: 23 | Q164: 21 | R164: 19 | S164: 17.5 | T164: 16.5 | U164: 15.5 | V164: 14.5 | W164: 13.5 | X164: 13 | Y164: 12 | Z164: 11.5
B165: 162 | C165: 926 | D165: 694 | E165: 347 | F165: 463 | G165: 231.5 | H165: 116 | I165: 77 | J165: 58 | K165: 46 | L165: 38.5 | M165: 33 | N165: 29 | O165: 26 | P165: 23 | Q165: 21 | R165: 19 | S165: 18 | T165: 16.5 | U165: 15.5 | V165: 14.5 | W165: 13.5 | X165: 13 | Y165: 12 | Z165: 11.5
B166: 163 | C166: 931.5 | D166: 698.5 | E166: 349 | F166: 466 | G166: 233 | H166: 116.5 | I166: 77.5 | J166: 58 | K166: 46.5 | L166: 39 | M166: 33 | N166: 29 | O166: 26 | P166: 23 | Q166: 21 | R166: 19.5 | S166: 18 | T166: 16.5 | U166: 15.5 | V166: 14.5 | W166: 13.5 | X166: 13 | Y166: 12 | Z166: 11.5
B167: 164 | C167: 937 | D167: 703 | E167: 351.5 | F167: 468.5 | G167: 234 | H167: 117 | I167: 78 | J167: 58.5 | K167: 47 | L167: 39 | M167: 33.5 | N167: 29 | O167: 26 | P167: 23.5 | Q167: 21 | R167: 19.5 | S167: 18 | T167: 17 | U167: 15.5 | V167: 14.5 | W167: 14 | X167: 13 | Y167: 12.5 | Z167: 12
B168: 165 | C168: 943 | D168: 707 | E168: 353.5 | F168: 471.5 | G168: 236 | H168: 118 | I168: 78.5 | J168: 59 | K168: 47 | L168: 39 | M168: 33.5 | N168: 29.5 | O168: 26 | P168: 23.5 | Q168: 21.5 | R168: 19.5 | S168: 18 | T168: 17 | U168: 16 | V168: 15 | W168: 14 | X168: 13 | Y168: 12.5 | Z168: 12
B169: 166 | C169: 948.5 | D169: 711.5 | E169: 356 | F169: 474 | G169: 237 | H169: 118.5 | I169: 79 | J169: 59 | K169: 47.5 | L169: 39.5 | M169: 34 | N169: 29.5 | O169: 26.5 | P169: 24 | Q169: 21.5 | R169: 20 | S169: 18 | T169: 17 | U169: 16 | V169: 15 | W169: 14 | X169: 13 | Y169: 12.5 | Z169: 12
B170: 167 | C170: 954 | D170: 716 | E170: 358 | F170: 477 | G170: 238.5 | H170: 119 | I170: 79.5 | J170: 59.5 | K170: 48 | L170: 40 | M170: 34 | N170: 30 | O170: 26.5 | P170: 24 | Q170: 21.5 | R170: 20 | S170: 18.5 | T170: 17 | U170: 16 | V170: 15 | W170: 14 | X170: 13 | Y170: 12.5 | Z170: 12
B171: 168 | C171: 960 | D171: 720 | E171: 360 | F171: 480 | G171: 240 | H171: 120 | I171: 80 | J171: 60 | K171: 48 | L171: 40 | M171: 34 | N171: 30 | O171: 26.5 | P171: 24 | Q171: 22 | R171: 20 | S171: 18.5 | T171: 17 | U171: 16 | V171: 15 | W171: 14 | X171: 13.5 | Y171: 12.5 | Z171: 12
B172: 169 | C172: 966 | D172: 724 | E172: 362 | F172: 483 | G172: 241.5 | H172: 121 | I172: 80.5 | J172: 60.5 | K172: 48 | L172: 40 | M172: 34.5 | N172: 30 | O172: 27 | P172: 24 | Q172: 22 | R172: 20 | S172: 18.5 | T172: 17 | U172: 16 | V172: 15 | W172: 14 | X172: 13.5 | Y172: 13 | Z172: 12
B173: 170 | C173: 971.5 | D173: 728.5 | E173: 364 | F173: 486 | G173: 243 | H173: 121.5 | I173: 81 | J173: 61 | K173: 48.5 | L173: 40.5 | M173: 34.5 | N173: 30.5 | O173: 27 | P173: 24 | Q173: 22 | R173: 20 | S173: 18.5 | T173: 17.5 | U173: 16 | V173: 15 | W173: 14 | X173: 13.5 | Y173: 13 | Z173: 12
B174: 171 | C174: 977 | D174: 733 | E174: 366.5 | F174: 488.5 | G174: 244 | H174: 122 | I174: 81.5 | J174: 61 | K174: 49 | L174: 41 | M174: 35 | N174: 30.5 | O174: 27 | P174: 24.5 | Q174: 22 | R174: 20.5 | S174: 19 | T174: 17.5 | U174: 16 | V174: 15 | W174: 14.5 | X174: 13.5 | Y174: 13 | Z174: 12
B175: 172 | C175: 983 | D175: 737 | E175: 368.5 | F175: 491.5 | G175: 246 | H175: 123 | I175: 82 | J175: 61.5 | K175: 49 | L175: 41 | M175: 35 | N175: 31 | O175: 27.5 | P175: 24.5 | Q175: 22.5 | R175: 20.5 | S175: 19 | T175: 17.5 | U175: 16.5 | V175: 15.5 | W175: 14.5 | X175: 13.5 | Y175: 13 | Z175: 12
B176: 173 | C176: 988.5 | D176: 741.5 | E176: 371 | F176: 494 | G176: 247 | H176: 123.5 | I176: 82.5 | J176: 62 | K176: 49.5 | L176: 41 | M176: 35.5 | N176: 31 | O176: 27.5 | P176: 25 | Q176: 22.5 | R176: 20.5 | S176: 19 | T176: 17.5 | U176: 16.5 | V176: 15.5 | W176: 14.5 | X176: 14 | Y176: 13 | Z176: 12.5
B177: 174 | C177: 994 | D177: 746 | E177: 373 | F177: 497 | G177: 248.5 | H177: 124 | I177: 83 | J177: 62 | K177: 50 | L177: 41.5 | M177: 35.5 | N177: 31 | O177: 27.5 | P177: 25 | Q177: 22.5 | R177: 21 | S177: 19 | T177: 18 | U177: 16.5 | V177: 15.5 | W177: 14.5 | X177: 14 | Y177: 13 | Z177: 12.5
B178: 175 | C178: 1000 | D178: 750 | E178: 375 | F178: 500 | G178: 250 | H178: 125 | I178: 83.5 | J178: 62.5 | K178: 50 | L178: 41.5 | M178: 36 | N178: 31 | O178: 28 | P178: 25 | Q178: 23 | R178: 21 | S178: 19 | T178: 18 | U178: 16.5 | V178: 15.5 | W178: 15 | X178: 14 | Y178: 13 | Z178: 12.5
B179: 176 | C179: 1006 | D179: 754 | E179: 377 | F179: 503 | G179: 251.5 | H179: 126 | I179: 84 | J179: 63 | K179: 50 | L179: 42 | M179: 36 | N179: 31.5 | O179: 28 | P179: 25 | Q179: 23 | R179: 21 | S179: 19.5 | T179: 18 | U179: 17 | V179: 16 | W179: 15 | X179: 14 | Y179: 13 | Z179: 12.5
B180: 177 | C180: 1011.5 | D180: 758.5 | E180: 379 | F180: 506 | G180: 253 | H180: 126.5 | I180: 84 | J180: 63 | K180: 50.5 | L180: 42 | M180: 36 | N180: 31.5 | O180: 28 | P180: 25 | Q180: 23 | R180: 21 | S180: 19.5 | T180: 18 | U180: 17 | V180: 16 | W180: 15 | X180: 14 | Y180: 13.5 | Z180: 12.5
B181: 178 | C181: 1017 | D181: 763 | E181: 381.5 | F181: 508.5 | G181: 254 | H181: 127 | I181: 85 | J181: 63.5 | K181: 51 | L181: 42.5 | M181: 36.5 | N181: 32 | O181: 28 | P181: 25.5 | Q181: 23 | R181: 21 | S181: 19.5 | T181: 18 | U181: 17 | V181: 16 | W181: 15 | X181: 14 | Y181: 13.5 | Z181: 13
B182: 179 | C182: 1023 | D182: 767 | E182: 383.5 | F182: 511.5 | G182: 256 | H182: 128 | I182: 85 | J182: 64 | K182: 51 | L182: 42.5 | M182: 36.5 | N182: 32 | O182: 28.5 | P182: 25.5 | Q182: 23 | R182: 21.5 | S182: 19.5 | T182: 18 | U182: 17 | V182: 16 | W182: 15 | X182: 14 | Y182: 13.5 | Z182: 13
B183: 180 | C183: 1028.5 | D183: 771.5 | E183: 386 | F183: 514 | G183: 257 | H183: 128.5 | I183: 86 | J183: 64 | K183: 51.5 | L183: 43 | M183: 37 | N183: 32 | O183: 28.5 | P183: 26 | Q183: 23.5 | R183: 21.5 | S183: 20 | T183: 18.5 | U183: 17 | V183: 16 | W183: 15 | X183: 14 | Y183: 13.5 | Z183: 13
B184: 181 | C184: 1034 | D184: 776 | E184: 388 | F184: 517 | G184: 258.5 | H184: 129 | I184: 86 | J184: 64.5 | K184: 52 | L184: 43 | M184: 37 | N184: 32.5 | O184: 29 | P184: 26 | Q184: 23.5 | R184: 21.5 | S184: 20 | T184: 18.5 | U184: 17 | V184: 16 | W184: 15 | X184: 14.5 | Y184: 13.5 | Z184: 13
B185: 182 | C185: 1040 | D185: 780 | E185: 390 | F185: 520 | G185: 260 | H185: 130 | I185: 86.5 | J185: 65 | K185: 52 | L185: 43.5 | M185: 37 | N185: 32.5 | O185: 29 | P185: 26 | Q185: 23.5 | R185: 21.5 | S185: 20 | T185: 18.5 | U185: 17.5 | V185: 16 | W185: 15 | X185: 14.5 | Y185: 13.5 | Z185: 13
B186: 183 | C186: 1046 | D186: 784 | E186: 392 | F186: 523 | G186: 261.5 | H186: 131 | I186: 87 | J186: 65.5 | K186: 52 | L186: 43.5 | M186: 37.5 | N186: 32.5 | O186: 29 | P186: 26 | Q186: 24 | R186: 22 | S186: 20 | T186: 18.5 | U186: 17.5 | V186: 16.5 | W186: 15.5 | X186: 14.5 | Y186: 14 | Z186: 13
B187: 184 | C187: 1051.5 | D187: 788.5 | E187: 394 | F187: 526 | G187: 263 | H187: 131.5 | I187: 87.5 | J187: 66 | K187: 52.5 | L187: 44 | M187: 37.5 | N187: 33 | O187: 29 | P187: 26 | Q187: 24 | R187: 22 | S187: 20 | T187: 19 | U187: 17.5 | V187: 16.5 | W187: 15.5 | X187: 14.5 | Y187: 14 | Z187: 13
B188: 185 | C188: 1057 | D188: 793 | E188: 396.5 | F188: 528.5 | G188: 264 | H188: 132 | I188: 88 | J188: 66 | K188: 53 | L188: 44 | M188: 38 | N188: 33 | O188: 29.5 | P188: 26.5 | Q188: 24 | R188: 22 | S188: 20.5 | T188: 19 | U188: 17.5 | V188: 16.5 | W188: 15.5 | X188: 14.5 | Y188: 14 | Z188: 13
B189: 186 | C189: 1063 | D189: 797 | E189: 398.5 | F189: 531.5 | G189: 266 | H189: 133 | I189: 88.5 | J189: 66.5 | K189: 53 | L189: 44 | M189: 38 | N189: 33 | O189: 29.5 | P189: 26.5 | Q189: 24 | R189: 22 | S189: 20.5 | T189: 19 | U189: 18 | V189: 16.5 | W189: 15.5 | X189: 15 | Y189: 14 | Z189: 13
B190: 187 | C190: 1068.5 | D190: 801.5 | E190: 401 | F190: 534 | G190: 267 | H190: 133.5 | I190: 89 | J190: 67 | K190: 53.5 | L190: 44.5 | M190: 38 | N190: 33.5 | O190: 29.5 | P190: 27 | Q190: 24 | R190: 22 | S190: 20.5 | T190: 19 | U190: 18 | V190: 16.5 | W190: 16 | X190: 15 | Y190: 14 | Z190: 13.5
B191: 188 | C191: 1074 | D191: 806 | E191: 403 | F191: 537 | G191: 268.5 | H191: 134 | I191: 89.5 | J191: 67 | K191: 54 | L191: 45 | M191: 38.5 | N191: 33.5 | O191: 30 | P191: 27 | Q191: 24.5 | R191: 22.5 | S191: 20.5 | T191: 19 | U191: 18 | V191: 17 | W191: 16 | X191: 15 | Y191: 14 | Z191: 13.5
B192: 189 | C192: 1080 | D192: 810 | E192: 405 | F192: 540 | G192: 270 | H192: 135 | I192: 90 | J192: 67.5 | K192: 54 | L192: 45 | M192: 38.5 | N192: 34 | O192: 30 | P192: 27 | Q192: 24.5 | R192: 22.5 | S192: 21 | T192: 19 | U192: 18 | V192: 17 | W192: 16 | X192: 15 | Y192: 14 | Z192: 13.5
B193: 190 | C193: 1086 | D193: 814 | E193: 407 | F193: 543 | G193: 271.5 | H193: 136 | I193: 90.5 | J193: 68 | K193: 54 | L193: 45 | M193: 39 | N193: 34 | O193: 30 | P193: 27 | Q193: 24.5 | R193: 22.5 | S193: 21 | T193: 19.5 | U193: 18 | V193: 17 | W193: 16 | X193: 15 | Y193: 14 | Z193: 13.5
B194: 191 | C194: 1091.5 | D194: 818.5 | E194: 409 | F194: 546 | G194: 273 | H194: 136.5 | I194: 91 | J194: 68 | K194: 54.5 | L194: 45.5 | M194: 39 | N194: 34 | O194: 30.5 | P194: 27 | Q194: 25 | R194: 23 | S194: 21 | T194: 19.5 | U194: 18 | V194: 17 | W194: 16 | X194: 15 | Y194: 14.5 | Z194: 13.5
B195: 192 | C195: 1097 | D195: 823 | E195: 411.5 | F195: 548.5 | G195: 274 | H195: 137 | I195: 91.5 | J195: 68.5 | K195: 55 | L195: 46 | M195: 39 | N195: 34 | O195: 30.5 | P195: 27.5 | Q195: 25 | R195: 23 | S195: 21 | T195: 19.5 | U195: 18 | V195: 17 | W195: 16 | X195: 15 | Y195: 14.5 | Z195: 14
B196: 193 | C196: 1103 | D196: 827 | E196: 413.5 | F196: 551.5 | G196: 276 | H196: 138 | I196: 92 | J196: 69 | K196: 55 | L196: 46 | M196: 39.5 | N196: 34.5 | O196: 30.5 | P196: 27.5 | Q196: 25 | R196: 23 | S196: 21 | T196: 19.5 | U196: 18.5 | V196: 17 | W196: 16 | X196: 15.5 | Y196: 14.5 | Z196: 14
B197: 194 | C197: 1108.5 | D197: 831.5 | E197: 416 | F197: 554 | G197: 277 | H197: 138.5 | I197: 92.5 | J197: 69 | K197: 55.5 | L197: 46 | M197: 39.5 | N197: 34.5 | O197: 31 | P197: 28 | Q197: 25 | R197: 23 | S197: 21.5 | T197: 20 | U197: 18.5 | V197: 17.5 | W197: 16.5 | X197: 15.5 | Y197: 14.5 | Z197: 14
B198: 195 | C198: 1114 | D198: 836 | E198: 418 | F198: 557 | G198: 278.5 | H198: 139 | I198: 93 | J198: 69.5 | K198: 56 | L198: 46.5 | M198: 40 | N198: 35 | O198: 31 | P198: 28 | Q198: 25.5 | R198: 23 | S198: 21.5 | T198: 20 | U198: 18.5 | V198: 17.5 | W198: 16.5 | X198: 15.5 | Y198: 14.5 | Z198: 14
B199: 196 | C199: 1120 | D199: 840 | E199: 420 | F199: 560 | G199: 280 | H199: 140 | I199: 93.5 | J199: 70 | K199: 56 | L199: 46.5 | M199: 40 | N199: 35 | O199: 31 | P199: 28 | Q199: 25.5 | R199: 23.5 | S199: 21.5 | T199: 20 | U199: 18.5 | V199: 17.5 | W199: 16.5 | X199: 15.5 | Y199: 15 | Z199: 14
B200: 197 | C200: 1126 | D200: 844 | E200: 422 | F200: 563 | G200: 281.5 | H200: 141 | I200: 94 | J200: 70.5 | K200: 56 | L200: 47 | M200: 40 | N200: 35 | O200: 31 | P200: 28 | Q200: 25.5 | R200: 23.5 | S200: 21.5 | T200: 20 | U200: 19 | V200: 17.5 | W200: 16.5 | X200: 15.5 | Y200: 15 | Z200: 14
... 803 more rows
